Workbook

Sheet RewardGroup
B1: Id | C1: Info | D1: IsUpset | E1: RewardItem | F1: RewardMaxNum | G1: ShowItem | H1: Loop | I1: NoUse1 | J1: NoUse2 | K1: NoUse3
B2: int | C2: string | D2: int | E2: mut,int#int,1 | F2: int | G2: mut,int#int,2 | H2: int | I2: string | J2: string | K2: string
B3: 2 | C3: 0 | D3: 4 | E3: 4 | F3: 4 | G3: 3 | H3: 4 | I3: 0 | J3: 0 | K3: 0
B4: 奖励组id | C4: 备注用 | D4: 组内抽取道具规则 1组内全出 2按照物品在组队的占比出 3按照组内道具概率，依次抽取 4N选1 | E4: 对应rewarditem表id | F4: 组内最大道具种类 | G4: 界面显示用 (自选箱必填） | H4: 如果抽取规则选3 ，则需要设置循环轮数 | I4: 备注 | J4: 备注 | K4: 备注
A5: 默认值 | B5: 0 | D5: 0 | F5: 0 | H5: 0
A6: 正确性校对
A7: 校对值
B8: 18 | C8: 试炼_回春散 | D8: 2 | E8: 20#21#22 | F8: 1
B9: 19 | C9: 试炼_精英怪_星星 | D9: 1 | E9: 22 | F9: 1
B10: 20 | C10: 试炼-次元炸弹 | D10: 1 | E10: 20 | F10: 1 | H10: 0 | I10: 次元炸弹
B11: 41 | C11: 试炼钻石 | D11: 2 | E11: 23#25 | F11: 1 | G11: 16#1
B12: 42 | C12: 试炼突破石 | D12: 2 | E12: 24#26 | F12: 1 | G12: 4#1
B13: 43 | C13: 试炼福利怪-金币炸弹二选一 | D13: 2 | E13: 27#28 | F13: 1
B14: 44 | C14: 特权-试炼炸弹 | D14: 1 | E14: 28 | F14: 1
B15: 45 | C15: 每日福利 | D15: 1 | E15: 300#302 | F15: 1
B16: 46 | C16: 国庆活动 | D16: 1 | E16: 303#304#305 | F16: 1
B17: 47 | C17: 测试服补偿邮件 | D17: 1 | E17: 302#303 | F17: 1
B18: 48 | C18: 手机绑定奖励 | D18: 1 | E18: 304#305 | F18: 1 | G18: 16#200|19#1
B19: 21 | C19: 英雄副本-勋章*10 | D19: 2 | E19: 101 | F19: 1 | H19: 0 | I19: 英雄副本-勋章*10
B20: 22 | C20: 绿色普通装备 | D20: 2 | E20: 1001#1004#1007#1010#1013#1016#1019#1022#1025#1028#1031 | F20: 1 | H20: 0 | I20: 不带特性，不带副属性，纯主属性 | J20: 1
B21: 23 | C21: 绿色带副属性 | D21: 2 | E21: 1001#1004#1007#1010#1013#1016#1019#1022#1025#1028#1031 | F21: 1 | H21: 0 | I21: 绿色带副属性 | J21: 1
B22: 24 | C22: 绿色装备不可重铸 | D22: 2 | E22: 1001#1004#1007#1010#1013#1016#1019#1022#1025#1028#1031 | F22: 1 | H22: 0 | I22: 绿色装备带重铸等级 | J22: 1
B23: 25 | C23: 绿色装备带特性 | D23: 2 | E23: 1001#1004#1007#1010#1013#1016#1019#1022#1025#1028#1031 | F23: 1 | H23: 0 | I23: 绿色装备带特性 | J23: 1
B24: 26 | C24: 蓝色0-1副属性 | D24: 2 | E24: 1034#1037#1040#1043#1046#1049#1052#1055#1058#1061#1064 | F24: 1 | H24: 0 | I24: 蓝色0-1副属性 | J24: 0.8
B25: 27 | C25: 蓝色1-2副属性 | D25: 2 | E25: 1034#1037#1040#1043#1046#1049#1052#1055#1058#1061#1064 | F25: 1 | H25: 0 | I25: 蓝色1-2副属性 | J25: 0.8
B26: 28 | C26: 蓝色不可重铸装备 | D26: 2 | E26: 1034#1037#1040#1043#1046#1049#1052#1055#1058#1061#1064 | F26: 1 | H26: 0 | I26: 蓝色带重铸等级装备 | J26: 0.8
B27: 29 | C27: 蓝色带特性装备 | D27: 2 | E27: 1034#1037#1040#1043#1046#1049#1052#1055#1058#1061#1064 | F27: 1 | H27: 0 | I27: 蓝色带特性装备 | J27: 0.8
B28: 30 | C28: 紫色普通装备 | D28: 2 | E28: 1067#1070#1073#1076#1079#1082#1085#1088#1091#1094#1097 | F28: 1 | H28: 0 | I28: 紫色普通装备 | J28: 0.8
B29: 31 | C29: 紫色重铸装备、紫色特性装备 | D29: 2 | E29: 1067#1070#1073#1076#1079#1082#1085#1088#1091#1094#1097 | F29: 1 | H29: 0 | I29: 紫色重铸装备、紫色特性装备 | J29: 0.6
B30: 32 | C30: 紫色装备-戒指 | D30: 2 | E30: 1067#1070#1073#1076#1079#1082#1085#1088#1091#1094#1097 | F30: 1 | H30: 0 | I30: 紫色装备-戒指 | J30: 0.6
B31: 33 | C31: 紫色装备-腰带 | D31: 2 | E31: 1067#1070#1073#1076#1079#1082#1085#1088#1091#1094#1097 | F31: 1 | H31: 0 | I31: 紫色装备-腰带 | J31: 0.6
B32: 34 | C32: 橙色2-4装备 | D32: 2 | E32: 1100#1105#1110#1115#1120#1125#1130#1135#1140#1145#1150 | F32: 1 | H32: 0 | I32: 橙色2-4装备 | J32: 0.6
B33: 35 | C33: 橙色2-4戒指、腰带 | D33: 2 | E33: 1100#1105#1110#1115#1120#1125#1130#1135#1140#1145#1150 | F33: 1 | H33: 0 | I33: 橙色2-4戒指、腰带 | J33: 0.6
B34: 36 | C34: 橙色3-3装备 | D34: 2 | E34: 1100#1105#1110#1115#1120#1125#1130#1135#1140#1145#1150 | F34: 1 | H34: 0 | I34: 橙色3-3装备 | J34: 0.6
B35: 37 | C35: 橙色4-4装备 | D35: 2 | E35: 1100#1105#1110#1115#1120#1125#1130#1135#1140#1145#1150 | F35: 1 | H35: 0 | I35: 橙色4-4装备 | J35: 0.6
B36: 38 | C36: 橙色重铸装备 | D36: 2 | E36: 1100#1105#1110#1115#1120#1125#1130#1135#1140#1145#1150 | F36: 1 | H36: 0 | I36: 橙色重铸装备 | J36: 0.6
B37: 39 | C37: 橙色特性装备 | D37: 2 | E37: 1100#1105#1110#1115#1120#1125#1130#1135#1140#1145#1150 | F37: 1 | H37: 0 | I37: 橙色特性装备 | J37: 0.276
B38: 52 | C38: 绿色普通装备 | D38: 2 | E38: 1001#1004#1007#1010#1013#1016#1019#1022#1025#1028#1031 | F38: 1 | H38: 0 | I38: 不带特性，不带副属性，纯主属性 | J38: 1 | K38: 不带空组
B39: 53 | C39: 绿色带副属性 | D39: 2 | E39: 1001#1004#1007#1010#1013#1016#1019#1022#1025#1028#1031 | F39: 1 | H39: 0 | I39: 绿色带副属性 | J39: 1 | K39: 不带空组
B40: 54 | C40: 绿色装备带重铸等级 | D40: 2 | E40: 1001#1004#1007#1010#1013#1016#1019#1022#1025#1028#1031 | F40: 1 | H40: 0 | I40: 绿色装备带重铸等级 | J40: 1 | K40: 不带空组
B41: 55 | C41: 绿色装备带特性 | D41: 2 | E41: 1001#1004#1007#1010#1013#1016#1019#1022#1025#1028#1031 | F41: 1 | H41: 0 | I41: 绿色装备带特性 | J41: 1 | K41: 不带空组
B42: 56 | C42: 蓝色0-1副属性 | D42: 2 | E42: 1034#1037#1040#1043#1046#1049#1052#1055#1058#1061#1064 | F42: 1 | H42: 0 | I42: 蓝色0-1副属性 | J42: 1 | K42: 不带空组
B43: 57 | C43: 蓝色1-2副属性 | D43: 2 | E43: 1034#1037#1040#1043#1046#1049#1052#1055#1058#1061#1064 | F43: 1 | H43: 0 | I43: 蓝色1-2副属性 | J43: 1 | K43: 不带空组
B44: 58 | C44: 蓝色带重铸等级装备 | D44: 2 | E44: 1034#1037#1040#1043#1046#1049#1052#1055#1058#1061#1064 | F44: 1 | H44: 0 | I44: 蓝色带重铸等级装备 | J44: 1 | K44: 不带空组
B45: 59 | C45: 蓝色带特性装备 | D45: 2 | E45: 1034#1037#1040#1043#1046#1049#1052#1055#1058#1061#1064 | F45: 1 | H45: 0 | I45: 蓝色带特性装备 | J45: 1 | K45: 不带空组
B46: 60 | C46: 紫色普通装备 | D46: 2 | E46: 1067#1070#1073#1076#1079#1082#1085#1088#1091#1094#1097 | F46: 1 | H46: 0 | I46: 紫色2-3装备 | J46: 1 | K46: 不带空组
B47: 61 | C47: 紫色重铸装备、紫色特性装备 | D47: 2 | E47: 1067#1070#1073#1076#1079#1082#1085#1088#1091#1094#1097 | F47: 1 | H47: 0 | I47: 紫色重铸装备 | J47: 1 | K47: 不带空组
B48: 62 | C48: 紫色装备-戒指 | D48: 2 | E48: 1067#1070#1073#1076#1079#1082#1085#1088#1091#1094#1097 | F48: 1 | H48: 0 | I48: 紫色特性装备 | J48: 1 | K48: 不带空组
B49: 63 | C49: 紫色装备-腰带 | D49: 2 | E49: 1067#1070#1073#1076#1079#1082#1085#1088#1091#1094#1097 | F49: 1 | H49: 0 | I49: 橙色2-4装备 | J49: 1 | K49: 不带空组
B50: 64 | C50: 橙色2-4装备 | D50: 2 | E50: 1100#1105#1110#1115#1120#1125#1130#1135#1140#1145#1150 | F50: 1 | H50: 0 | I50: 橙色重铸装备 | J50: 1 | K50: 不带空组
B51: 65 | C51: 橙色2-4戒指、腰带 | D51: 2 | E51: 1100#1105#1110#1115#1120#1125#1130#1135#1140#1145#1150 | F51: 1 | H51: 0 | I51: 橙色特性装备 | J51: 1 | K51: 不带空组
B52: 66 | C52: 橙色3-3装备 | D52: 2 | E52: 1100#1105#1110#1115#1120#1125#1130#1135#1140#1145#1150 | F52: 1 | H52: 0 | I52: 紫色装备特性-武器 | J52: 1 | K52: 不带空组
B53: 67 | C53: 橙色4-4装备 | D53: 2 | E53: 1100#1105#1110#1115#1120#1125#1130#1135#1140#1145#1150 | F53: 1 | H53: 0 | I53: 紫色装备特性-铠甲 | J53: 1 | K53: 不带空组
B54: 68 | C54: 橙色重铸装备 | D54: 2 | E54: 1100#1105#1110#1115#1120#1125#1130#1135#1140#1145#1150 | F54: 1 | H54: 0 | I54: 紫色装备-戒指 | J54: 1 | K54: 不带空组
B55: 69 | C55: 橙色特性装备 | D55: 2 | E55: 1100#1105#1110#1115#1120#1125#1130#1135#1140#1145#1150 | F55: 1 | H55: 0 | I55: 紫色装备-腰带 | J55: 1 | K55: 不带空组
B56: 201 | C56: 0.035绿色1 | D56: 2 | E56: 1350#1001#1004#1007#1010#1013#1016#1022#1025#1028#1031 | F56: 1 | I56: 绿色1级装备 | J56: 一级 | K56: 0.08
B57: =B56+1 -> 202 | C57: 0.025绿色1 | D57: 2 | E57: 1351#1001#1004#1007#1010#1013#1016#1022#1025#1028#1031 | F57: 1 | I57: 绿色1级装备 | J57: 一级 | K57: 0.08
B58: =B57+1 -> 203 | C58: 0.015绿色1 | D58: 2 | E58: 1352#1001#1004#1007#1010#1013#1016#1022#1025#1028#1031 | F58: 1 | I58: 绿色1级装备 | J58: 一级 | K58: 0.08
B59: 205 | C59: 0.01绿色2 | D59: 2 | E59: 1355#1002#1005#1008#1011#1014#1017#1023#1026#1029#1032 | F59: 1 | I59: 绿色2级装备 | J59: 一级 | K59: 0.05
B60: =B59+1 -> 206 | C60: 0.025绿色2 | D60: 2 | E60: 1356#1002#1005#1008#1011#1014#1017#1023#1026#1029#1032 | F60: 1 | I60: 绿色2级装备 | J60: 一级 | K60: 0.05
B61: 210 | C61: 0.01绿色3 | D61: 2 | E61: 1360#1003#1006#1009#1012#1015#1018#1024#1027#1030#1033 | F61: 1 | I61: 绿色3级装备 | J61: 一级 | K61: 0.05
B62: =B61+1 -> 211 | C62: 0.035绿色3 | D62: 2 | E62: 1361#1003#1006#1009#1012#1015#1018#1024#1027#1030#1033 | F62: 1 | I62: 绿色3级装备 | J62: 一级 | K62: 0.05
B63: 215 | C63: 0.025蓝色1 | D63: 2 | E63: 1365#1034#1037#1040#1043#1046#1049#1055#1058#1061#1064 | F63: 1 | I63: 蓝色1级装备 | J63: 一级 | K63: 0.03
B64: =B63+1 -> 216 | C64: 0.015蓝色1 | D64: 2 | E64: 1366#1034#1037#1040#1043#1046#1049#1055#1058#1061#1064 | F64: 1 | I64: 蓝色1级装备 | J64: 一级 | K64: 0.03
B65: =B64+1 -> 217 | C65: 0.01蓝色1 | D65: 2 | E65: 1367#1034#1037#1040#1043#1046#1049#1055#1058#1061#1064 | F65: 1 | I65: 蓝色1级装备 | J65: 一级 | K65: 0.03
B66: 220 | C66: 0.01蓝2 | D66: 2 | E66: 1370#1035#1038#1041#1044#1047#1050#1056#1059#1062#1065 | F66: 1 | I66: 蓝色2级装备 | J66: 一级 | K66: 0.03
B67: =B66+1 -> 221 | C67: 0.008蓝色2 | D67: 2 | E67: 1371#1034#1037#1040#1043#1046#1049#1055#1058#1061#1064 | F67: 1 | I67: 蓝色2级装备 | J67: 一级 | K67: 0.03
B68: =B67+1 -> 222 | C68: 0.01蓝色2 | D68: 2 | E68: 1372#1035#1038#1041#1044#1047#1050#1056#1059#1062#1065 | F68: 1 | I68: 蓝色2级装备 | J68: 一级 | K68: 0.03
B69: 225 | C69: 0.007蓝色3 | D69: 2 | E69: 1375#1036#1039#1042#1045#1048#1051#1057#1060#1063#1066 | F69: 1 | I69: 蓝色3级装备 | J69: 一级 | K69: 0.03
B70: =B69+1 -> 226 | C70: 0.01蓝色3 | D70: 2 | E70: 1376#1036#1039#1042#1045#1048#1051#1057#1060#1063#1066 | F70: 1 | I70: 蓝色3级装备 | J70: 一级 | K70: 0.03
B71: =B70+1 -> 227 | C71: 0.01蓝色3 | D71: 2 | E71: 1377#1036#1039#1042#1045#1048#1051#1057#1060#1063#1066 | F71: 1 | I71: 蓝色3级装备 | J71: 一级 | K71: 0.03
B72: 230 | C72: 0.01紫色1 | D72: 2 | E72: 1380#1067#1070#1073#1076#1079#1082#1088#1091#1094#1097 | F72: 1 | I72: 紫色1级装备 | J72: 一级 | K72: 0.02
B73: =B72+1 -> 231 | C73: 0.005紫色1 | D73: 2 | E73: 1381#1067#1070#1073#1076#1079#1082#1088#1091#1094#1097 | F73: 1 | I73: 紫色1级装备 | J73: 一级 | K73: 0.02
B74: 232 | C74: 0.004紫色1 | D74: 2 | E74: 1382#1067#1070#1073#1076#1079#1082#1088#1091#1094#1097 | F74: 1 | I74: 紫色1级装备 | J74: 一级 | K74: 0.02
B75: 235 | C75: 0.005紫色2 | D75: 2 | E75: 1385#1068#1071#1074#1077#1080#1083#1089#1092#1095#1098 | F75: 1 | I75: 紫色2级装备 | J75: 一级 | K75: 0.01
B76: 236 | C76: 0.003紫色2 | D76: 2 | E76: 1386#1068#1071#1074#1077#1080#1083#1089#1092#1095#1098 | F76: 1 | I76: 紫色2级装备 | J76: 一级 | K76: 0.01
B77: 240 | C77: 0.003紫色3 | D77: 2 | E77: 1390#1069#1072#1075#1078#1081#1084#1090#1093#1096#1099 | F77: 1 | I77: 紫色3级装备 | J77: 一级 | K77: 0.01
B78: 241 | C78: 0.005紫色3 | D78: 2 | E78: 1391#1069#1072#1075#1078#1081#1084#1090#1093#1096#1099 | F78: 1 | I78: 紫色3级装备 | J78: 一级 | K78: 0.01
B79: 242 | C79: 0.01紫色3 | D79: 2 | E79: 1392#1069#1072#1075#1078#1081#1084#1090#1093#1096#1099 | F79: 1 | I79: 紫色3级装备 | J79: 一级 | K79: 0.01
B80: 245 | C80: 0.0006橙色1 | D80: 2 | E80: 1395#1100#1105#1110#1115#1120#1125#1135#1140#1145#1150 | F80: 1 | I80: 橙色1级装备 | J80: 一级 | K80: 0.01
B81: 246 | C81: 0.0003橙色1 | D81: 2 | E81: 1396#1100#1105#1110#1115#1120#1125#1135#1140#1145#1150 | F81: 1 | I81: 橙色1级装备 | J81: 一级 | K81: 0.01
B82: 247 | C82: 0.00025橙色1 | D82: 2 | E82: 1397#1100#1105#1110#1115#1120#1125#1135#1140#1145#1150 | F82: 1 | I82: 橙色1级装备 | J82: 一级 | K82: 0.01
B83: 248 | C83: 0.00015橙色1 | D83: 2 | E83: 1398#1100#1105#1110#1115#1120#1125#1135#1140#1145#1150 | F83: 1 | I83: 橙色1级装备 | J83: 一级 | K83: 0.01
B84: 250 | C84: 0.0003橙色2 | D84: 2 | E84: 1400#1101#1106#1111#1116#1121#1126#1136#1141#1146#1151 | F84: 1 | I84: 橙色2级装备 | J84: 一级 | K84: 0.02
B85: 251 | C85: 0.00025橙色2 | D85: 2 | E85: 1401#1101#1106#1111#1116#1121#1126#1136#1141#1146#1151 | F85: 1 | I85: 橙色2级装备 | J85: 一级 | K85: 0.02
B86: 252 | C86: 0.00015橙色2 | D86: 2 | E86: 1402#1101#1106#1111#1116#1121#1126#1136#1141#1146#1151 | F86: 1 | I86: 橙色2级装备 | J86: 一级 | K86: 0.02
B87: 255 | C87: 0.0003橙色3 | D87: 2 | E87: 1405#1102#1107#1112#1117#1122#1127#1137#1142#1147#1152 | F87: 1 | I87: 橙色3级装备 | J87: 一级 | K87: 0.02
B88: 256 | C88: 0.0002橙色3 | D88: 2 | E88: 1406#1102#1107#1112#1117#1122#1127#1137#1142#1147#1152 | F88: 1 | I88: 橙色3级装备 | J88: 一级 | K88: 0.02
B89: 260 | C89: 0.0002橙色4 | D89: 2 | E89: 1410#1103#1108#1113#1118#1123#1128#1138#1143#1148#1153 | F89: 1 | I89: 橙色4级装备 | J89: 一级 | K89: 0.02
B90: 265 | C90: 0.0002橙色5 | D90: 2 | E90: 1411#1104#1109#1114#1119#1124#1129#1139#1144#1149#1154 | F90: 1 | I90: 橙色5级装备 | J90: 一级 | K90: 0.02
B91: 401 | C91: 魂印卡池金币 | D91: 1 | E91: 270001 | F91: 1 | I91: 魂印卡池
B92: 402 | C92: 魂印卡池绿装 | D92: 2 | E92: 270002#270003#270004#270005 | F92: 1 | I92: 魂印卡池
B93: 403 | C93: 魂印卡池蓝装 | D93: 2 | E93: 270006#270007#270008#270009#270010#270011 | F93: 1 | I93: 魂印卡池
B94: 404 | C94: 魂印卡池紫装 | D94: 2 | E94: 270012#270013#270014#270015#270016#270017#270018#270019 | F94: 1 | I94: 魂印卡池
B95: 405 | C95: 魂印卡池橙装 | D95: 2 | E95: 270020#270021#270022#270023#270024#270025#270026#270027#270028#270029#270030 | F95: 1 | I95: 魂印卡池
B96: 451 | C96: 三星法宝 | D96: 2 | E96: 265001#265002#265003#265004#265005 | F96: 1 | I96: 三星法宝
B97: 452 | C97: 四星法宝 | D97: 2 | E97: 265101#265102#265103#265104#265105 | F97: 1 | I97: 四星法宝
B98: 453 | C98: 五星法宝 | D98: 2 | E98: 265201#265202#265203#265204#265205#265206 | F98: 1 | I98: 五星法宝
B99: 481 | C99: 解锁进阶奖励 | D99: 1 | E99: 310 | F99: 1 | I99: 解锁进阶奖励
B100: 482 | C100: 解锁每日积分包 | D100: 1 | E100: 311 | F100: 1 | I100: 解锁每日积分包
B101: 483 | C101: 幸运转盘宝箱 | D101: 2 | E101: 501#502#503#504 | F101: 1 | I101: 幸运转盘宝箱
B102: 484 | C102: 高级转盘宝箱 | D102: 2 | E102: 510#511 | F102: 1 | I102: 高级转盘宝箱
B103: 485 | C103: 关卡掉落3星 | D103: 2 | E103: 514#515 | F103: 1 | I103: 高级转盘宝箱
B104: 486 | C104: 关卡掉落4星 | D104: 2 | E104: 516#517 | F104: 1 | I104: 高级转盘宝箱
B105: 501 | C105: 3星随机猎妖师 | D105: 2 | E105: 60047#60048#60049#60050#60051#60052#65053#65054 | F105: 1 | I105: 3星随机妖灵师
B106: 502 | C106: 火系4星随机猎妖师 | D106: 2 | E106: 65065#65066#65068#65067 | F106: 1 | I106: 火系4星随机妖灵师 | J106: 吴 | K106: 人
B107: 503 | C107: 水系4星随机猎妖师 | D107: 2 | E107: 65057#65058#65059#65060 | F107: 1 | I107: 水系4星随机妖灵师 | J107: 魏 | K107: 妖
B108: 504 | C108: 地系4星随机猎妖师 | D108: 2 | E108: 65069#65070#65071#65072 | F108: 1 | I108: 地系4星随机妖灵师 | J108: 群 | K108: 道
B109: 505 | C109: 风系4星随机猎妖师 | D109: 2 | E109: 65061#65062#65063#65064 | F109: 1 | I109: 风系4星随机妖灵师 | J109: 蜀 | K109: 佛
B110: 506 | C110: 光系4星随机猎妖师 | D110: 2 | E110: 60026#60027#60028#60046 | F110: 1 | I110: 光系4星随机妖灵师
B111: 507 | C111: 暗系4星随机猎妖师 | D111: 2 | E111: 60034#60035#60044 | F111: 1 | I111: 暗系4星随机妖灵师
B112: 508 | C112: 火系5星随机猎妖师 | D112: 2 | E112: 60001#60004#60009#60014#60016#60017#60021#60032#60035#60036#60040#60046#65075 | F112: 1 | I112: 火系5星随机妖灵师 | J112: 吴 | K112: 人
B113: 509 | C113: 水系5星随机猎妖师 | D113: 2 | E113: 60002#60003#60005#60006#60008#60011#60018#60020#60028#60031#60044#60045#65073 | F113: 1 | I113: 水系5星随机妖灵师 | J113: 魏 | K113: 妖
B114: 510 | C114: 地系5星随机猎妖师 | D114: 2 | E114: 60013#60019#60024#60025#60026#60027#60037#60038#60041#60042#60043#65076#65078 | F114: 1 | I114: 地系5星随机妖灵师 | J114: 群 | K114: 道
B115: 511 | C115: 风系5星随机猎妖师 | D115: 2 | E115: 60007#60010#60012#60015#60022#60023#60029#60030#60033#60034#60039#65074#65077 | F115: 1 | I115: 风系5星随机妖灵师 | J115: 蜀 | K115: 佛
B116: 512 | C116: 4星随机猎妖师 | D116: 2 | E116: 65059#65065#65068#65071#65057#65061#65063#65069#65060#65062#65066#65067#65072#65058#65064#65070 | F116: 1 | I116: 4星随机妖灵师
B117: 513 | C117: 5星随机猎妖师 | D117: 2 | E117: 60001#60004#60009#60014#60016#60017#60021#60032#60035#60036#60040#60046#65075#60002#60003#60005#60006#60008#60011#60018#60020#60028#60031#60044#60045#65073#60013#60019#60024#60025#60026#60027#60037#60038#60041#60042#60043#65076#65078#60007#60010#60012#60015#60022#60023#60029#60030#60033#60034#60039#65074#65077 | F117: 1 | I117: 5星随机妖灵师
B118: 514 | C118: 5星随机猎妖师 | D118: 1 | E118: 60074 | F118: 1 | I118: 5星随机妖灵师(殷婉儿)
B119: 515 | C119: 5星随机猎妖师 | D119: 1 | E119: 60071 | F119: 1 | I119: 5星随机妖灵师(白木)
B120: 516 | C120: 5星随机猎妖师 | D120: 2 | E120: 60053#60059 | F120: 1 | I120: 风系5星随机妖灵师（伪5星）
B121: 517 | C121: 5星随机猎妖师 | D121: 2 | E121: 60101#60102#60103#60104#60105#60106#60107#60108#60110#60111#60112#60113#60116#60118#60119#60120#60121#60122 | F121: 1 | I121: 5星随机妖灵师(4系）
B122: 518 | C122: 5星随机猎妖师 | D122: 2 | E122: 60101#60102#60103#60104#60105#60106#60107#60108#60109#60110#60111#60112#60113#60114#60115#60116#60117#60118#60119#60120#60121#60122#60123 | F122: 1 | I122: 元素招募卡池
B123: 519 | C123: 5星随机猎妖师 | D123: 2 | E123: 60053#60054#60055#60056#60057#60058#60059#60060#60061#60062#60063#60064#60065#60066#60067#60068#60069#60070#60071#60072#60073#60074#60075#60001#60002#60005#60006#60007#60008#60009#60013#60016#60017#60018#60019#60020#60021#60022 | F123: 1 | I123: 5星随机妖灵师（除光暗）
B124: 520 | C124: 5星随机猎妖师 | D124: 2 | E124: 60201#60202#60203#60204#60205#60206#60207#60208#60209#60210#60211#60212#60213#60214#60215#60216#60217#60218#60219#60220#60221#60222#60223 | F124: 1 | I124: 神来运转箱
B125: 521 | C125: 5星随机猎妖师 | D125: 2 | E125: 60055#60056#60057#60063#60064#60073#60075 | F125: 1 | I125: 5星随机妖灵师（光暗不含橙色）
B126: 522 | C126: 5星随机猎妖师 | D126: 2 | E126: 60094#60095#60055#60056#60057#60063#60064#60073#60075 | F126: 1 | I126: 5星随机妖灵师（光暗含橙色5%）
B127: 523 | C127: 光暗4星猎妖师 | D127: 2 | E127: 60026#60027#60028#60046#60034#60035#60044 | F127: 1 | I127: 光暗4星妖灵师
B128: 524 | C128: 四系4星猎妖师 | D128: 2 | E128: 60036#60037#60039#60043#60025#60038#60040#60041#60029#60031#60032#60045#60024#60030#60042#60033 | F128: 1 | I128: 四系4星妖灵师
B129: 525 | C129: 光系5星猎妖师 | D129: 2 | E129: 60015 | F129: 1 | I129: 光系5星猎妖师
B130: 526 | C130: 暗系5星猎妖师 | D130: 2 | E130: 60014 | F130: 1 | I130: 暗系5星猎妖师
B131: 601 | C131: 许槿然 | D131: 1 | E131: 60053 | F131: 1 | I131: 许槿然
B132: 602 | C132: 炎琪儿 | D132: 1 | E132: 60054 | F132: 1 | I132: 炎琪儿
B133: 603 | C133: 楚恒 | D133: 1 | E133: 60055 | F133: 1 | I133: 楚恒
B134: 604 | C134: 柳月 | D134: 1 | E134: 60056 | F134: 1 | I134: 柳月
B135: 605 | C135: 岑以航 | D135: 1 | E135: 60057 | F135: 1 | I135: 岑以航
B136: 606 | C136: 姜燧 | D136: 1 | E136: 60058 | F136: 1 | I136: 姜燧
B137: 607 | C137: 晏息 | D137: 1 | E137: 60059 | F137: 1 | I137: 晏息
B138: 608 | C138: 冉宜 | D138: 1 | E138: 60060 | F138: 1 | I138: 冉宜
B139: 609 | C139: 孙晴 | D139: 1 | E139: 60061 | F139: 1 | I139: 孙晴
B140: 610 | C140: 艾欣 | D140: 1 | E140: 60062 | F140: 1 | I140: 艾欣
B141: 611 | C141: 影蓟 | D141: 1 | E141: 60063 | F141: 1 | I141: 影蓟
B142: 612 | C142: 辛夷 | D142: 1 | E142: 60064 | F142: 1 | I142: 辛夷
B143: 613 | C143: 岑以璇 | D143: 1 | E143: 60065 | F143: 1 | I143: 岑以璇
B144: 614 | C144: 薛苓 | D144: 1 | E144: 60066 | F144: 1 | I144: 薛苓
B145: 615 | C145: 伏冥 | D145: 1 | E145: 60067 | F145: 1 | I145: 伏冥
B146: 616 | C146: 呼延腾 | D146: 1 | E146: 60068 | F146: 1 | I146: 呼延腾
B147: 617 | C147: 贾裴武 | D147: 1 | E147: 60069 | F147: 1 | I147: 贾裴武
B148: 618 | C148: 孟灿 | D148: 1 | E148: 60070 | F148: 1 | I148: 孟灿
B149: 619 | C149: 白木 | D149: 1 | E149: 60071 | F149: 1 | I149: 白木
B150: 620 | C150: 紫川 | D150: 1 | E150: 60072 | F150: 1 | I150: 紫川
B151: 621 | C151: 靖之 | D151: 1 | E151: 60073 | F151: 1 | I151: 靖之
B152: 622 | C152: 殷婉儿 | D152: 1 | E152: 60074 | F152: 1 | I152: 殷婉儿
B153: 623 | C153: 林越 | D153: 1 | E153: 60075 | F153: 1 | I153: 林越
B154: 701 | C154: 孙策 | D154: 1 | E154: 60001 | F154: 1
B155: 702 | C155: 张辽 | D155: 1 | E155: 60002 | F155: 1
B156: 703 | C156: 夏侯惇 | D156: 1 | E156: 60003 | F156: 1
B157: 704 | C157: 大乔 | D157: 1 | E157: 60004 | F157: 1
B158: 705 | C158: 郭嘉 | D158: 1 | E158: 60005 | F158: 1
B159: 706 | C159: 张郃 | D159: 1 | E159: 60006 | F159: 1
B160: 707 | C160: 刘备 | D160: 1 | E160: 60007 | F160: 1
B161: 708 | C161: 曹操 | D161: 1 | E161: 60008 | F161: 1
B162: 709 | C162: 小乔 | D162: 1 | E162: 60009 | F162: 1
B163: 710 | C163: 马超 | D163: 1 | E163: 60010 | F163: 1
B164: 711 | C164: 司马懿 | D164: 1 | E164: 60011 | F164: 1
B165: 712 | C165: 张飞 | D165: 1 | E165: 60012 | F165: 1
B166: 713 | C166: 袁绍 | D166: 1 | E166: 60013 | F166: 1
B167: 714 | C167: 周瑜 | D167: 1 | E167: 60014 | F167: 1
B168: 715 | C168: 关羽 | D168: 1 | E168: 60015 | F168: 1
B169: 716 | C169: 孙坚 | D169: 1 | E169: 60016 | F169: 1
B170: 717 | C170: 孙权 | D170: 1 | E170: 60017 | F170: 1
B171: 718 | C171: 荀彧 | D171: 1 | E171: 60018 | F171: 1
B172: 719 | C172: 董卓 | D172: 1 | E172: 60019 | F172: 1
B173: 720 | C173: 曹仁 | D173: 1 | E173: 60020 | F173: 1
B174: 721 | C174: 太史慈 | D174: 1 | E174: 60021 | F174: 1
B175: 722 | C175: 诸葛亮 | D175: 1 | E175: 60022 | F175: 1
B176: 723 | C176: 赵云 | D176: 1 | E176: 60023 | F176: 1
B177: 724 | C177: 华佗 | D177: 1 | E177: 60024 | F177: 1
B178: 725 | C178: 贾诩 | D178: 1 | E178: 60025 | F178: 1
B179: 726 | C179: 吕布 | D179: 1 | E179: 60026 | F179: 1
B180: 727 | C180: 张角 | D180: 1 | E180: 60027 | F180: 1
B181: 728 | C181: 曹丕 | D181: 1 | E181: 60028 | F181: 1
B182: 729 | C182: 魏延 | D182: 1 | E182: 60029 | F182: 1
B183: 730 | C183: 庞统 | D183: 1 | E183: 60030 | F183: 1
B184: 731 | C184: 许褚 | D184: 1 | E184: 60031 | F184: 1
B185: 732 | C185: 甘宁 | D185: 1 | E185: 60032 | F185: 1
B186: 733 | C186: 黄月英 | D186: 1 | E186: 60033 | F186: 1
B187: 734 | C187: 马岱 | D187: 1 | E187: 60034 | F187: 1
B188: 735 | C188: 陆逊 | D188: 1 | E188: 60035 | F188: 1
B189: 736 | C189: 鲁肃 | D189: 1 | E189: 60036 | F189: 1
B190: 737 | C190: 公孙瓒 | D190: 1 | E190: 60037 | F190: 1
B191: 738 | C191: 于吉 | D191: 1 | E191: 60038 | F191: 1
B192: 739 | C192: 姜维 | D192: 1 | E192: 60039 | F192: 1
B193: 740 | C193: 张昭 | D193: 1 | E193: 60040 | F193: 1
B194: 741 | C194: 华雄 | D194: 1 | E194: 60041 | F194: 1
B195: 742 | C195: 袁术 | D195: 1 | E195: 60042 | F195: 1
B196: 743 | C196: 貂蝉 | D196: 1 | E196: 60043 | F196: 1
B197: 744 | C197: 典韦 | D197: 1 | E197: 60044 | F197: 1
B198: 745 | C198: 甄姬 | D198: 1 | E198: 60045 | F198: 1
B199: 746 | C199: 吕蒙 | D199: 1 | E199: 60046 | F199: 1
B200: 747 | C200: 赤肥肥 | D200: 1 | E200: 60047 | F200: 1
... 3892 more rows

Sheet Sheet1
D1: 绿色 | E1: 1001 | F1: 1002 | G1: 1003 | H1: 1004 | I1: 1005 | J1: 1006 | K1: 1007 | L1: 1008 | M1: 1009 | N1: 1010 | O1: 1011 | P1: 1012 | Q1: 1013 | R1: 1014 | S1: 1015 | T1: 1016 | U1: 1017 | V1: 1018 | W1: 1019 | X1: 1020 | Y1: 1021 | Z1: 1022 | AA1: 1023 | AB1: 1024 | AC1: 1025 | AD1: 1026 | AE1: 1027 | AF1: 1028 | AG1: 1029 | AH1: 1030 | AI1: 1031 | AJ1: 1032 | AK1: 1033 | AL1: 1034 | AM1: 1035 | AN1: 1036 | AO1: 1037 | AP1: 1038 | AQ1: 1039 | AR1: 1040 | AS1: 1041 | AT1: 1042 | AU1: 1043 | AV1: 1044 | AW1: 1045 | AX1: 1046 | AY1: 1047 | AZ1: 1048 | BA1: 1049 | BB1: 1050 | BC1: 1051 | BD1: 1052 | BE1: 1053 | BF1: 1054 | BG1: 1055 | BH1: 1056 | BI1: 1057 | BJ1: 1058 | BK1: 1059 | BL1: 1060 | BM1: 1061 | BN1: 1062 | BO1: 1063 | BP1: 1064 | BQ1: 1065 | BR1: 1066 | BS1: 1067 | BT1: 1068 | BU1: 1069 | BV1: 1070 | BW1: 1071 | BX1: 1072 | BY1: 1073 | BZ1: 1074 | CA1: 1075 | CB1: 1076 | CC1: 1077 | CD1: 1078
D2: 蓝色 | E2: 2101 | F2: 2102 | G2: 2103 | H2: 2104 | I2: 2105 | J2: 2106 | K2: 2107 | L2: 2108 | M2: 2109 | N2: 2110 | O2: 2111 | P2: 2112 | Q2: 2113 | R2: 2114 | S2: 2115 | T2: 2116 | U2: 2117 | V2: 2118 | W2: 2119 | X2: 2120 | Y2: 2121 | Z2: 2122 | AA2: 2123
D3: 紫色 | E3: 3001 | F3: 3002 | G3: 3003 | H3: 3004 | I3: 3005 | J3: 3006 | K3: 3007 | L3: 3008 | M3: 3009 | N3: 3010 | O3: 3011 | P3: 3012 | Q3: 3013 | R3: 3014 | S3: 3015 | T3: 3016 | U3: 3017 | V3: 3018 | W3: 3019 | X3: 3020 | Y3: 3021 | Z3: 3022 | AA3: 3023 | AB3: 3024 | AC3: 3025 | AD3: 3026 | AE3: 3027 | AF3: 3028 | AG3: 3029 | AH3: 3030 | AI3: 3031 | AJ3: 3032 | AK3: 3033 | AL3: 3034 | AM3: 3035 | AN3: 3036 | AO3: 3037 | AP3: 3038 | AQ3: 3039 | AR3: 3040 | AS3: 3041 | AT3: 3042 | AU3: 3043 | AV3: 3044 | AW3: 3045 | AX3: 3046 | AY3: 3047 | AZ3: 3048 | BA3: 3049 | BB3: 3050 | BC3: 3051 | BD3: 3052 | BE3: 3053 | BF3: 3054 | BG3: 3055 | BH3: 3056 | BI3: 3057 | BJ3: 3058 | BK3: 3059 | BL3: 3060 | BM3: 3061 | BN3: 3062 | BO3: 3063 | BP3: 3064 | BQ3: 3065 | BR3: 3066 | BS3: 3067 | BT3: 3068 | BU3: 3069 | BV3: 3070 | BW3: 3071 | BX3: 3072 | BY3: 3073 | BZ3: 3074 | CA3: 3075 | CB3: 3076 | CC3: 3077 | CD3: 3078 | CE3: 3079 | CF3: 3080 | CG3: 3081 | CH3: 3082 | CI3: 3083 | CJ3: 3084 | CK3: 3085 | CL3: 3086 | CM3: 3087
D4: 橙色 | E4: 4001 | F4: 4002 | G4: 4003 | H4: 4004 | I4: 4005 | J4: 4006 | K4: 4007 | L4: 4008 | M4: 4009 | N4: 4010 | O4: 4011 | P4: 4012 | Q4: 4013 | R4: 4014 | S4: 4015 | T4: 4016 | U4: 4017 | V4: 4018 | W4: 4019 | X4: 4020 | Y4: 4021 | Z4: 4022 | AA4: 4023 | AB4: 4024 | AC4: 4025 | AD4: 4026 | AE4: 4027 | AF4: 4028 | AG4: 4029 | AH4: 4030 | AI4: 4031 | AJ4: 4032 | AK4: 4033 | AL4: 4034 | AM4: 4035 | AN4: 4036 | AO4: 4037 | AP4: 4038 | AQ4: 4039 | AR4: 4040 | AS4: 4041 | AT4: 4042 | AU4: 4043 | AV4: 4044 | AW4: 4045 | AX4: 4046 | AY4: 4047 | AZ4: 4048 | BA4: 4049 | BB4: 4050 | BC4: 4051
E6: 个数
D7: 绿色 | E7: =COUNT(E1:CM1) -> 78
D8: 蓝色 | E8: =COUNT(E2:CM2) -> 23
D9: 紫色 | E9: 87
D10: 橙色 | E10: 51
E17: 12013 | F17: #50| | G17: =E17&F17 -> 12013#50| | H17: =G17&G18&G19&G20&G21&G22&G23&G24&G25&G26&G27&G28&G29&G30&G31&G32&G33 -> 12013#50|11028#50|11031#50|11044#50|11045#50|11029#50|11030#50|11034#50|11039#50|11032#50|11035#50|11036#50|11046#50|11025#50|11027#50|11037#50|11038#50|
E18: 11028 | F18: #50| | G18: =E18&F18 -> 11028#50| | H18: 12013#50|11028#50|11031#50|11044#50|11045#50|11029#50|11030#50|11034#50|11039#50|11032#50|11035#50|11036#50|11046#50|11025#50|11027#50|11037#50|11038#50
E19: 11031 | F19: #50| | G19: 11031#50|
E20: 11044 | F20: #50| | G20: 11044#50|
E21: 11045 | F21: #50| | G21: 11045#50|
E22: 11029 | F22: #50| | G22: 11029#50|
E23: 11030 | F23: #50| | G23: 11030#50|
E24: 11034 | F24: #50| | G24: 11034#50|
E25: 11039 | F25: #50| | G25: 11039#50|
E26: 11032 | F26: #50| | G26: 11032#50|
E27: 11035 | F27: #50| | G27: 11035#50|
E28: 11036 | F28: #50| | G28: 11036#50|
E29: 11046 | F29: #50| | G29: 11046#50|
E30: 11025 | F30: #50| | G30: 11025#50|
E31: 11027 | F31: #50| | G31: 11027#50|
E32: 11037 | F32: #50| | G32: 11037#50|
E33: 11038 | F33: #50| | G33: 11038#50|

Sheet Sheet3
E1: Info | F1: Id
E2: string | F2: int
E3: 3 | F3: 2
E4: 备注用 | F4: 奖励组id
F5: 0
E8: 试炼-次元炸弹 | F8: 20
E9: 英雄副本-勋章*10 | F9: 21
E10: 绿色普通装备 | F10: 22
E11: 绿色带副属性 | F11: 23
E12: 绿色装备带重铸等级 | F12: 24
E13: 绿色装备带特性 | F13: 25
E14: 蓝色0-1副属性 | F14: 26
E15: 蓝色1-2副属性 | F15: 27
E16: 蓝色带重铸等级装备 | F16: 28
E17: 蓝色带特性装备 | F17: 29
E18: 紫色普通装备 | F18: 30
E19: 紫色重铸装备、紫色特性装备 | F19: 31
E20: 紫色装备-戒指 | F20: 32
E21: 紫色装备-腰带 | F21: 33
E22: 橙色2-4装备 | F22: 34
E23: 橙色2-4戒指、腰带 | F23: 35
E24: 橙色3-3装备 | F24: 36
E25: 橙色4-4装备 | F25: 37
E26: 橙色重铸装备 | F26: 38
E27: 橙色特性装备 | F27: 39
E28: 绿色普通装备 | F28: 52
E29: 绿色带副属性 | F29: 53
E30: 绿色装备带重铸等级 | F30: 54
E31: 绿色装备带特性 | F31: 55
E32: 蓝色0-1副属性 | F32: 56
E33: 蓝色1-2副属性 | F33: 57
E34: 蓝色带重铸等级装备 | F34: 58
E35: 蓝色带特性装备 | F35: 59
E36: 紫色普通装备 | F36: 60
E37: 紫色重铸装备、紫色特性装备 | F37: 61
E38: 紫色装备-戒指 | F38: 62
E39: 紫色装备-腰带 | F39: 63
E40: 橙色2-4装备 | F40: 64
E41: 橙色2-4戒指、腰带 | F41: 65
E42: 橙色3-3装备 | F42: 66
E43: 橙色4-4装备 | F43: 67
E44: 橙色重铸装备 | F44: 68
E45: 橙色特性装备 | F45: 69
E46: 挂机1 | F46: 101
E47: 挂机2 | F47: 102
E48: 挂机3 | F48: 103
E49: 挂机4 | F49: 104
E50: 挂机5 | F50: 105
E51: 挂机6 | F51: 106
E52: 挂机7 | F52: 107
E53: 挂机8 | F53: 108
E54: 挂机1 | F54: 91
E55: 挂机2 | F55: 92
E56: 挂机3 | F56: 93
E57: 挂机4 | F57: 94
E58: 挂机5 | F58: 95
E59: 挂机6 | F59: 96
E60: 挂机7 | F60: 97
E61: 挂机8 | F61: 98
E62: 挂机1 | F62: 111
E63: 挂机2 | F63: 112
E64: 挂机3 | F64: 113
E65: 挂机4 | F65: 114
E66: 挂机5 | F66: 115
E67: 挂机6 | F67: 116
E68: 挂机7 | F68: 117
E69: 挂机8 | F69: 118
E70: 挂机1 | F70: 121
E71: 挂机2 | F71: 122
E72: 挂机3 | F72: 123
E73: 挂机4 | F73: 124
E74: 挂机5 | F74: 125
E75: 挂机6 | F75: 126
E76: 挂机7 | F76: 127
E77: 挂机8 | F77: 128
E78: 挂机1 | F78: 131
E79: 挂机2 | F79: 132
E80: 挂机3 | F80: 133
E81: 挂机4 | F81: 134
E82: 挂机5 | F82: 135
E83: 挂机6 | F83: 136
E84: 挂机7 | F84: 137
E85: 挂机8 | F85: 138
E86: 挂机1 | F86: 151
E87: 挂机2 | F87: 152
E88: 挂机3 | F88: 153
E89: 挂机4 | F89: 154
E90: 挂机5 | F90: 155
E91: 挂机6 | F91: 156
E92: 挂机7 | F92: 157
E93: 挂机8 | F93: 158
E94: 挂机1 | F94: 81
E95: 挂机2 | F95: 82
E96: 挂机3 | F96: 83
E97: 挂机4 | F97: 84
E98: 挂机5 | F98: 85
E99: 挂机6 | F99: 86
E100: 挂机7 | F100: 87
E101: 挂机8 | F101: 88
E102: 挂机1 | F102: 161
E103: 挂机2 | F103: 162
E104: 挂机3 | F104: 163
E105: 挂机4 | F105: 164
E106: 挂机5 | F106: 165
E107: 挂机6 | F107: 166
E108: 挂机7 | F108: 167
E109: 挂机8 | F109: 168
E110: 挂机1 | F110: 171
E111: 挂机2 | F111: 172
E112: 挂机3 | F112: 173
E113: 挂机4 | F113: 174
E114: 挂机5 | F114: 175
E115: 挂机6 | F115: 176
E116: 挂机7 | F116: 177
E117: 挂机8 | F117: 178
E118: 挂机1 | F118: 181
E119: 挂机2 | F119: 182
E120: 挂机3 | F120: 183
E121: 挂机4 | F121: 184
E122: 挂机5 | F122: 185
E123: 挂机6 | F123: 186
E124: 挂机7 | F124: 187
E125: 挂机8 | F125: 188
E126: 挂机1 | F126: 191
E127: 挂机2 | F127: 192
E128: 挂机3 | F128: 193
E129: 挂机4 | F129: 194
E130: 挂机5 | F130: 195
E131: 挂机6 | F131: 196
E132: 挂机7 | F132: 197
E133: 挂机8 | F133: 198
E134: 挂机1 | F134: 71
E135: 挂机2 | F135: 72
E136: 挂机3 | F136: 73
E137: 挂机4 | F137: 74
E138: 挂机5 | F138: 75
E139: 挂机6 | F139: 76
E140: 挂机7 | F140: 77
E141: 挂机8 | F141: 78
E142: 挂机1 | F142: 201
E143: 挂机2 | F143: 202
E144: 挂机3 | F144: 203
E145: 挂机4 | F145: 204
E146: 挂机5 | F146: 205
E147: 挂机6 | F147: 206
E148: 挂机7 | F148: 207
E149: 挂机8 | F149: 208
E150: 挂机1 | F150: 211
E151: 挂机2 | F151: 212
E152: 挂机3 | F152: 213
E153: 挂机4 | F153: 214
E154: 挂机5 | F154: 215
E155: 挂机6 | F155: 216
E156: 挂机7 | F156: 217
E157: 挂机8 | F157: 218
E158: 挂机1 | F158: 221
E159: 挂机2 | F159: 222
E160: 挂机3 | F160: 223
E161: 挂机4 | F161: 224
E162: 挂机5 | F162: 225
E163: 挂机6 | F163: 226
E164: 挂机7 | F164: 227
E165: 挂机8 | F165: 228
E166: 挂机1 | F166: 231
E167: 挂机2 | F167: 232
E168: 挂机3 | F168: 233
E169: 挂机4 | F169: 234
E170: 挂机5 | F170: 235
E171: 挂机6 | F171: 236
E172: 挂机7 | F172: 237
E173: 挂机8 | F173: 238
E174: 挂机1 | F174: 241
E175: 挂机2 | F175: 242
E176: 挂机3 | F176: 243
E177: 挂机4 | F177: 244
E178: 挂机5 | F178: 245
E179: 挂机6 | F179: 246
E180: 挂机7 | F180: 247
E181: 挂机8 | F181: 248
E182: 挂机1 | F182: 251
E183: 挂机2 | F183: 252
E184: 挂机3 | F184: 253
E185: 挂机4 | F185: 254
E186: 挂机5 | F186: 255
E187: 挂机6 | F187: 256
E188: 挂机7 | F188: 257
E189: 挂机8 | F189: 258
E190: 挂机1 | F190: 261
E191: 挂机2 | F191: 262
E192: 挂机3 | F192: 263
E193: 挂机4 | F193: 264
E194: 挂机5 | F194: 265
E195: 挂机6 | F195: 266
E196: 挂机7 | F196: 267
E197: 挂机8 | F197: 268
E198: 挂机1 | F198: 271
E199: 挂机2 | F199: 272
E200: 挂机3 | F200: 273
E201: 挂机4 | F201: 274
E202: 挂机5 | F202: 275
... 1113 more rows

Sheet 冒险怪物组掉落
A1: 奖励组id | B1: 备注 | E1: 固定奖励1 | F1: 固定奖励2
A2: 10101 | B2: 魔术骷髅群 | C2: 普通怪 | E2: 1000 | F2: 2000 | G2: =[1]!SUMSTRING(E2:F2,"#") -> 
A3: 10102 | B3: 无名角羊群 | C3: 普通怪 | E3: 1001 | F3: 2001 | G3: =[1]!SUMSTRING(E3:F3,"#") -> 
A4: 10103 | B4: 烛刃骷髅群 | C4: 普通怪 | E4: 1002 | F4: 2002 | G4: =[1]!SUMSTRING(E4:F4,"#") -> 
A5: 10104 | B5: 典狱官+魔法骷髅 | C5: 普通怪 | E5: 1003 | F5: 2003 | G5: =[1]!SUMSTRING(E5:F5,"#") -> 
A6: 10105 | B6: 典狱官+无名角羊 | C6: 普通怪 | E6: 1004 | F6: 2004 | G6: =[1]!SUMSTRING(E6:F6,"#") -> 
A7: 10106 | B7: 典狱官+烛刃骷髅 | C7: 普通怪 | E7: 1005 | F7: 2005 | G7: =[1]!SUMSTRING(E7:F7,"#") -> 
A8: 10107 | B8: 精英怪+魔法骷髅 | C8: 普通怪 | E8: 1006 | F8: 2006 | G8: =[1]!SUMSTRING(E8:F8,"#") -> 
A9: 10108 | B9: 精英怪+无名角羊 | C9: 普通怪 | E9: 1007 | F9: 2007 | G9: =[1]!SUMSTRING(E9:F9,"#") -> 
A10: 10109 | B10: 精英怪+烛刃骷髅 | C10: 普通怪 | E10: 1008 | F10: 2008 | G10: =[1]!SUMSTRING(E10:F10,"#") -> 
A11: 10110 | B11: 精英怪物1 | C11: 精英 | E11: 1009 | F11: 2009 | G11: =[1]!SUMSTRING(E11:F11,"#") -> 
A12: 10111 | B12: 精英怪物2 | C12: 精英 | E12: 1010 | F12: 2010 | G12: =[1]!SUMSTRING(E12:F12,"#") -> 
A13: 10201 | B13: 符文骷髅群 | C13: 普通怪 | E13: 1011 | F13: 2011 | G13: =[1]!SUMSTRING(E13:F13,"#") -> 
A14: 10202 | B14: 彼岸花妖+符文骷髅 | C14: 普通怪 | E14: 1012 | F14: 2012 | G14: =[1]!SUMSTRING(E14:F14,"#") -> 
A15: 10203 | B15: 精英怪+符文骷髅 | C15: 普通怪 | E15: 1013 | F15: 2013 | G15: =[1]!SUMSTRING(E15:F15,"#") -> 
A16: 10204 | B16: 精英怪物 | C16: 精英 | E16: 1014 | F16: 2014 | G16: =[1]!SUMSTRING(E16:F16,"#") -> 
A17: 10205 | B17: boss组 | C17: boss组 | E17: 1015 | F17: 2015 | G17: =[1]!SUMSTRING(E17:F17,"#") -> 
A18: 10301 | B18: 顽皮地鼠群 | C18: 普通怪 | E18: 1016 | F18: 2016 | G18: =[1]!SUMSTRING(E18:F18,"#") -> 
A19: 10302 | B19: 食肉兔群 | C19: 普通怪 | E19: 1017 | F19: 2017 | G19: =[1]!SUMSTRING(E19:F19,"#") -> 
A20: 10303 | B20: 精英怪+顽皮地鼠 | C20: 普通怪 | E20: 1018 | F20: 2018 | G20: =[1]!SUMSTRING(E20:F20,"#") -> 
A21: 10304 | B21: 精英怪+食肉兔 | C21: 普通怪 | E21: 1019 | F21: 2019 | G21: =[1]!SUMSTRING(E21:F21,"#") -> 
A22: 10305 | B22: 精英怪物 | C22: 精英 | E22: 1020 | F22: 2020 | G22: =[1]!SUMSTRING(E22:F22,"#") -> 
A23: 10401 | B23: 顽皮地鼠群 | C23: 普通怪 | E23: 1021 | F23: 2021 | G23: =[1]!SUMSTRING(E23:F23,"#") -> 
A24: 10402 | B24: 风见角羊群 | C24: 普通怪 | E24: 1022 | F24: 2022 | G24: =[1]!SUMSTRING(E24:F24,"#") -> 
A25: 10403 | B25: 彼岸花妖+顽皮地鼠 | C25: 普通怪 | E25: 1023 | F25: 2023 | G25: =[1]!SUMSTRING(E25:F25,"#") -> 
A26: 10404 | B26: 彼岸花妖+风见角羊 | C26: 普通怪 | E26: 1024 | F26: 2024 | G26: =[1]!SUMSTRING(E26:F26,"#") -> 
A27: 10405 | B27: 精英怪+顽皮地鼠 | C27: 普通怪 | E27: 1025 | F27: 2025 | G27: =[1]!SUMSTRING(E27:F27,"#") -> 
A28: 10406 | B28: 精英怪+风见角羊 | C28: 普通怪 | E28: 1026 | F28: 2026 | G28: =[1]!SUMSTRING(E28:F28,"#") -> 
A29: 10407 | B29: 精英怪物 | C29: 精英 | E29: 1027 | F29: 2027 | G29: =[1]!SUMSTRING(E29:F29,"#") -> 
A30: 10408 | B30: boss组 | C30: boss组 | E30: 1028 | F30: 2028 | G30: =[1]!SUMSTRING(E30:F30,"#") -> 
A31: 10409 | B31: 宝箱组 | C31: boss组 | E31: 1029 | F31: 2029 | G31: =[1]!SUMSTRING(E31:F31,"#") -> 
A32: 10501 | B32: 港口卫兵队 | C32: 普通怪 | E32: 1030 | F32: 2030 | G32: =[1]!SUMSTRING(E32:F32,"#") -> 
A33: 10502 | B33: 港口卫兵群 | C33: 普通怪 | E33: 1031 | F33: 2031 | G33: =[1]!SUMSTRING(E33:F33,"#") -> 
A34: 10503 | B34: 精英怪+港口卫兵 | C34: 普通怪 | E34: 1032 | F34: 2032 | G34: =[1]!SUMSTRING(E34:F34,"#") -> 
A35: 10504 | B35: 精英怪物 | C35: 精英 | E35: 1033 | F35: 2033 | G35: =[1]!SUMSTRING(E35:F35,"#") -> 
A36: 10505 | B36: boss组 | C36: boss组 | E36: 1034 | F36: 2034 | G36: =[1]!SUMSTRING(E36:F36,"#") -> 
A37: 10601 | B37: 白叶亡灵法师群 | C37: 普通怪 | E37: 1035 | F37: 2035 | G37: =[1]!SUMSTRING(E37:F37,"#") -> 
A38: 10602 | B38: 白叶翼魔+白叶亡灵法师 | C38: 普通怪 | E38: 1036 | F38: 2036 | G38: =[1]!SUMSTRING(E38:F38,"#") -> 
A39: 10603 | B39: 精英怪+白叶亡灵法师 | C39: 普通怪 | E39: 1037 | F39: 2037 | G39: =[1]!SUMSTRING(E39:F39,"#") -> 
A40: 10604 | B40: 精英怪物 | C40: 精英 | E40: 1038 | F40: 2038 | G40: =[1]!SUMSTRING(E40:F40,"#") -> 
A41: 10605 | B41: boss组 | C41: boss组 | E41: 1039 | F41: 2039 | G41: =[1]!SUMSTRING(E41:F41,"#") -> 
A42: 10701 | B42: 荆棘狐熊群 | C42: 普通怪 | E42: 1040 | F42: 2040 | G42: =[1]!SUMSTRING(E42:F42,"#") -> 
A43: 10702 | B43: 荆棘烛刑鬼群 | C43: 普通怪 | E43: 1041 | F43: 2041 | G43: =[1]!SUMSTRING(E43:F43,"#") -> 
A44: 10703 | B44: 荆棘巨大僵尸+荆棘狐熊+荆棘烛刑鬼 | C44: 普通怪 | E44: 1042 | F44: 2042 | G44: =[1]!SUMSTRING(E44:F44,"#") -> 
A45: 10704 | B45: 荆棘角羊王+荆棘狐熊+荆棘烛刑鬼 | C45: 普通怪 | E45: 1043 | F45: 2043 | G45: =[1]!SUMSTRING(E45:F45,"#") -> 
A46: 10705 | B46: 低级精英怪+狐熊+烛刑鬼 | C46: 普通怪 | E46: 1044 | F46: 2044 | G46: =[1]!SUMSTRING(E46:F46,"#") -> 
A47: 10706 | B47: 荆棘翼魔 | C47: 普通怪 | E47: 1045 | F47: 2045 | G47: =[1]!SUMSTRING(E47:F47,"#") -> 
A48: 10707 | B48: 低级精英怪+巨大僵尸+角羊王 | C48: 普通怪 | E48: 1046 | F48: 2046 | G48: =[1]!SUMSTRING(E48:F48,"#") -> 
A49: 10708 | B49: 精英怪物 | C49: 精英 | E49: 1047 | F49: 2047 | G49: =[1]!SUMSTRING(E49:F49,"#") -> 
A50: 10709 | B50: boss组 | C50: boss组 | E50: 1048 | F50: 2048 | G50: =[1]!SUMSTRING(E50:F50,"#") -> 
A51: 10801 | B51: 低 | C51: 普通怪 | E51: 1049 | F51: 2049 | G51: =[1]!SUMSTRING(E51:F51,"#") -> 
A52: 10802 | B52: 低 | C52: 普通怪 | E52: 1050 | F52: 2050 | G52: =[1]!SUMSTRING(E52:F52,"#") -> 
A53: 10803 | B53: 低 | C53: 普通怪 | E53: 1051 | F53: 2051 | G53: =[1]!SUMSTRING(E53:F53,"#") -> 
A54: 10804 | B54: 中 | C54: 普通怪 | E54: 1052 | F54: 2052 | G54: =[1]!SUMSTRING(E54:F54,"#") -> 
A55: 10805 | B55: 中 | C55: 普通怪 | E55: 1053 | F55: 2053 | G55: =[1]!SUMSTRING(E55:F55,"#") -> 
A56: 10806 | B56: 高 | C56: 普通怪 | E56: 1054 | F56: 2054 | G56: =[1]!SUMSTRING(E56:F56,"#") -> 
A57: 10807 | B57: 高 | C57: 普通怪 | E57: 1055 | F57: 2055 | G57: =[1]!SUMSTRING(E57:F57,"#") -> 
A58: 10808 | B58: 精英 | C58: 精英 | E58: 1056 | F58: 2056 | G58: =[1]!SUMSTRING(E58:F58,"#") -> 
A59: 10809 | B59: boss组 | C59: boss组 | E59: 1057 | F59: 2057 | G59: =[1]!SUMSTRING(E59:F59,"#") -> 
A60: 10901 | B60: 低 | C60: 普通怪 | E60: 1058 | F60: 2058 | G60: =[1]!SUMSTRING(E60:F60,"#") -> 
A61: 10902 | B61: 低 | C61: 普通怪 | E61: 1059 | F61: 2059 | G61: =[1]!SUMSTRING(E61:F61,"#") -> 
A62: 10903 | B62: 中 | C62: 普通怪 | E62: 1060 | F62: 2060 | G62: =[1]!SUMSTRING(E62:F62,"#") -> 
A63: 10904 | B63: 中 | C63: 普通怪 | E63: 1061 | F63: 2061 | G63: =[1]!SUMSTRING(E63:F63,"#") -> 
A64: 10905 | B64: 高 | C64: 普通怪 | E64: 1062 | F64: 2062 | G64: =[1]!SUMSTRING(E64:F64,"#") -> 
A65: 10906 | B65: 精英 | C65: 精英 | E65: 1063 | F65: 2063 | G65: =[1]!SUMSTRING(E65:F65,"#") -> 
A66: 10907 | B66: boss组 | C66: boss组 | E66: 1064 | F66: 2064 | G66: =[1]!SUMSTRING(E66:F66,"#") -> 
A67: 11001 | B67: 低 | C67: 普通怪 | E67: 1065 | F67: 2065 | G67: =[1]!SUMSTRING(E67:F67,"#") -> 
A68: 11002 | B68: 低 | C68: 普通怪 | E68: 1066 | F68: 2066 | G68: =[1]!SUMSTRING(E68:F68,"#") -> 
A69: 11003 | B69: 中 | C69: 普通怪 | E69: 1067 | F69: 2067 | G69: =[1]!SUMSTRING(E69:F69,"#") -> 
A70: 11004 | B70: 高 | C70: 普通怪 | E70: 1068 | F70: 2068 | G70: =[1]!SUMSTRING(E70:F70,"#") -> 
A71: 11005 | B71: 精英 | C71: 普通怪 | E71: 1069 | F71: 2069 | G71: =[1]!SUMSTRING(E71:F71,"#") -> 
A72: 11006 | B72: boss组 | C72: boss组 | E72: 1070 | F72: 2070 | G72: =[1]!SUMSTRING(E72:F72,"#") -> 
E87: 32016#31016#53016 | F87: 6060 | G87: =[1]!SUMSTRING(E87:F87,"#") -> 
E88: 32017#31017#53017 | F88: 6060 | G88: =[1]!SUMSTRING(E88:F88,"#") -> 
E89: 32018#31018#53018 | F89: 6060 | G89: =[1]!SUMSTRING(E89:F89,"#") -> 
E90: 32019#31019#53019 | F90: 6060 | G90: =[1]!SUMSTRING(E90:F90,"#") -> 
E91: 32020#31020#53020 | F91: 6060 | G91: =[1]!SUMSTRING(E91:F91,"#") -> 
E92: 32021#31021#53021 | F92: 6060 | G92: =[1]!SUMSTRING(E92:F92,"#") -> 
E93: 32022#31022#53022 | F93: 6060 | G93: =[1]!SUMSTRING(E93:F93,"#") -> 
E94: 32023#31023#53023 | F94: 6060 | G94: =[1]!SUMSTRING(E94:F94,"#") -> 
E95: 32024#31024#53024 | F95: 6060 | G95: =[1]!SUMSTRING(E95:F95,"#") -> 
E96: 32025#31025#53025 | F96: 6060 | G96: =[1]!SUMSTRING(E96:F96,"#") -> 
E97: 32026#31026#53026 | F97: 6060 | G97: =[1]!SUMSTRING(E97:F97,"#") -> 
E98: 32027#31027#53027 | F98: 6060 | G98: =[1]!SUMSTRING(E98:F98,"#") -> 
E99: 32028#31028#53028 | F99: 6060 | G99: =[1]!SUMSTRING(E99:F99,"#") -> 
E100: 32029#31029#53029 | F100: 6060 | G100: =[1]!SUMSTRING(E100:F100,"#") -> 
E101: 32030#31030#53030 | F101: 6060 | G101: =[1]!SUMSTRING(E101:F101,"#") -> 
E102: 32031#31031#53031 | F102: 6060 | G102: =[1]!SUMSTRING(E102:F102,"#") -> 
E103: 32032#31032#53032 | F103: 6060 | G103: =[1]!SUMSTRING(E103:F103,"#") -> 
E104: 32033#31033#53033 | F104: 6060 | G104: =[1]!SUMSTRING(E104:F104,"#") -> 
E105: 32034#31034#53034 | F105: 6060 | G105: =[1]!SUMSTRING(E105:F105,"#") -> 
E106: 32035#31035#53035 | F106: 6060 | G106: =[1]!SUMSTRING(E106:F106,"#") -> 
E107: 32036#31036#53036 | F107: 6060 | G107: =[1]!SUMSTRING(E107:F107,"#") -> 
E108: 32037#31037#53037 | F108: 6060 | G108: =[1]!SUMSTRING(E108:F108,"#") -> 
E109: 32038#31038#53038 | F109: 6060 | G109: =[1]!SUMSTRING(E109:F109,"#") -> 
E110: 32039#31039#53039 | F110: 6060 | G110: =[1]!SUMSTRING(E110:F110,"#") -> 
E111: 32040#31040#53040 | F111: 6060 | G111: =[1]!SUMSTRING(E111:F111,"#") -> 
E112: 32041#31041#53041 | F112: 6060 | G112: =[1]!SUMSTRING(E112:F112,"#") -> 
E113: 32042#31042#53042 | F113: 6060 | G113: =[1]!SUMSTRING(E113:F113,"#") -> 
E114: 32043#31043#53043 | F114: 6060 | G114: =[1]!SUMSTRING(E114:F114,"#") -> 
E115: 32044#31044#53044 | F115: 6060 | G115: =[1]!SUMSTRING(E115:F115,"#") -> 
E116: 32045#31045#53045 | F116: 6060 | G116: =[1]!SUMSTRING(E116:F116,"#") -> 
E117: 32046#31046#53046 | F117: 6060 | G117: =[1]!SUMSTRING(E117:F117,"#") -> 
E118: 32047#31047#53047 | F118: 6060 | G118: =[1]!SUMSTRING(E118:F118,"#") -> 
E119: 32048#31048#53048 | F119: 6060 | G119: =[1]!SUMSTRING(E119:F119,"#") -> 
E120: 32049#31049#53049 | F120: 6060 | G120: =[1]!SUMSTRING(E120:F120,"#") -> 
E121: 32050#31050#53050 | F121: 6060 | G121: =[1]!SUMSTRING(E121:F121,"#") -> 

Sheet 主线任务奖励
A1: 章节 | B1: id | C1: num | D1: id | E1: num | F1: id | G1: num | H1: id | I1: num | J1: id | K1: num | M1: 显示
A2: 1 | B2: 3001 | C2: 1 | D2: 3011 | E2: 1 | F2: 3015 | G2: 1 | H2: 3017 | I2: 1 | J2: 4 | K2: 100 | M2: =B2&"#"&C2&"|"&D2&"#"&E2&"|"&F2&"#"&G2&"|"&H2&"#"&I2 -> 3001#1|3011#1|3015#1|3017#1 | O2: =[1]!SUMSTRING(J2:K2,"#") ->  | Q2: =O2&"|"&M2 -> 
A3: 2 | B3: 3003 | C3: 1 | D3: 3013 | E3: 1 | F3: 3015 | G3: 1 | H3: 3017 | I3: 1 | J3: 4 | K3: 200 | M3: =B3&"#"&C3&"|"&D3&"#"&E3&"|"&F3&"#"&G3&"|"&H3&"#"&I3 -> 3003#1|3013#1|3015#1|3017#1 | O3: =[1]!SUMSTRING(J3:K3,"#") ->  | Q3: =O3&"|"&M3 -> 
A4: 3 | B4: 3005 | C4: 1 | D4: 3011 | E4: 1 | F4: 3015 | G4: 1 | H4: 3017 | I4: 1 | J4: 4 | K4: 300 | M4: 3005#1|3011#1|3015#1|3017#1 | O4: =[1]!SUMSTRING(J4:K4,"#") -> 
A5: 4 | B5: 3007 | C5: 1 | D5: 3013 | E5: 1 | F5: 3015 | G5: 1 | H5: 3017 | I5: 1 | J5: 4 | K5: 400 | M5: 3007#1|3013#1|3015#1|3017#1 | O5: =[1]!SUMSTRING(J5:K5,"#") -> 
A6: 5 | B6: 3101 | C6: 1 | D6: 3111 | E6: 1 | F6: 3115 | G6: 1 | H6: 3117 | I6: 1 | J6: 4 | K6: 500 | M6: 3101#1|3111#1|3115#1|3117#1 | O6: =[1]!SUMSTRING(J6:K6,"#") -> 
A7: 6 | B7: 3103 | C7: 1 | D7: 3113 | E7: 1 | F7: 3115 | G7: 1 | H7: 3117 | I7: 1 | J7: 4 | K7: 600 | M7: 3103#1|3113#1|3115#1|3117#1 | O7: =[1]!SUMSTRING(J7:K7,"#") -> 
A8: 7 | B8: 3105 | C8: 1 | D8: 3111 | E8: 1 | F8: 3115 | G8: 1 | H8: 3117 | I8: 1 | J8: 4 | K8: 700 | M8: 3105#1|3111#1|3115#1|3117#1 | O8: =[1]!SUMSTRING(J8:K8,"#") -> 
A9: 8 | B9: 3107 | C9: 1 | D9: 3113 | E9: 1 | F9: 3115 | G9: 1 | H9: 3117 | I9: 1 | J9: 4 | K9: 800 | M9: 3107#1|3113#1|3115#1|3117#1 | O9: =[1]!SUMSTRING(J9:K9,"#") -> 
A10: 9 | B10: 3109 | C10: 1 | D10: 3111 | E10: 1 | F10: 3115 | G10: 1 | H10: 3117 | I10: 1 | J10: 4 | K10: 900 | M10: 3109#1|3111#1|3115#1|3117#1 | O10: =[1]!SUMSTRING(J10:K10,"#") -> 
A11: 10 | B11: 3201 | C11: 1 | D11: 3211 | E11: 1 | F11: 3215 | G11: 1 | H11: 3217 | I11: 1 | J11: 4 | K11: 1000 | M11: 3201#1|3211#1|3215#1|3217#1 | O11: =[1]!SUMSTRING(J11:K11,"#") -> 
A12: 11 | B12: 3203 | C12: 1 | D12: 3213 | E12: 1 | F12: 3215 | G12: 1 | H12: 3217 | I12: 1 | J12: 4 | K12: 1200 | M12: 3203#1|3213#1|3215#1|3217#1 | O12: =[1]!SUMSTRING(J12:K12,"#") -> 
A13: 12 | B13: 3205 | C13: 1 | D13: 3211 | E13: 1 | F13: 3215 | G13: 1 | H13: 3217 | I13: 1 | J13: 4 | K13: 1400 | M13: 3205#1|3211#1|3215#1|3217#1 | O13: =[1]!SUMSTRING(J13:K13,"#") -> 
A14: 13 | B14: 3207 | C14: 1 | D14: 3213 | E14: 1 | F14: 3215 | G14: 1 | H14: 3217 | I14: 1 | J14: 4 | K14: 1600 | M14: 3207#1|3213#1|3215#1|3217#1 | O14: =[1]!SUMSTRING(J14:K14,"#") -> 
A15: 14 | B15: 3209 | C15: 1 | D15: 3211 | E15: 1 | F15: 3215 | G15: 1 | H15: 3217 | I15: 1 | J15: 4 | K15: 1800 | M15: 3209#1|3211#1|3215#1|3217#1 | O15: =[1]!SUMSTRING(J15:K15,"#") -> 
A16: 15 | B16: 3203 | C16: 1 | D16: 3213 | E16: 1 | F16: 3215 | G16: 1 | H16: 3217 | I16: 1 | J16: 4 | K16: 2000 | M16: 3203#1|3213#1|3215#1|3217#1 | O16: =[1]!SUMSTRING(J16:K16,"#") -> 
A17: 16 | B17: 3301 | C17: 1 | D17: 3311 | E17: 1 | J17: 4 | K17: 2200 | M17: 3301#1|3311#1|#|# | O17: =[1]!SUMSTRING(J17:K17,"#") -> 
A18: 17 | B18: 3315 | C18: 1 | D18: 3317 | E18: 1 | J18: 4 | K18: 2400 | M18: 3315#1|3317#1|#|# | O18: =[1]!SUMSTRING(J18:K18,"#") -> 
A19: 18 | B19: 3303 | C19: 1 | D19: 3313 | E19: 1 | J19: 4 | K19: 2600 | M19: 3303#1|3313#1|#|# | O19: =[1]!SUMSTRING(J19:K19,"#") -> 
A20: 19 | B20: 3315 | C20: 1 | D20: 3317 | E20: 1 | J20: 4 | K20: 2800 | M20: 3315#1|3317#1|#|# | O20: =[1]!SUMSTRING(J20:K20,"#") -> 
A21: 20 | B21: 3305 | C21: 1 | D21: 3311 | E21: 1 | J21: 4 | K21: 3000 | M21: 3305#1|3311#1|#|# | O21: =[1]!SUMSTRING(J21:K21,"#") -> 
A22: 21 | B22: 3315 | C22: 1 | D22: 3317 | E22: 1 | J22: 4 | K22: 3200 | M22: 3315#1|3317#1|#|# | O22: =[1]!SUMSTRING(J22:K22,"#") -> 
A23: 22 | B23: 3307 | C23: 1 | D23: 3313 | E23: 1 | J23: 4 | K23: 3400 | M23: 3307#1|3313#1|#|# | O23: =[1]!SUMSTRING(J23:K23,"#") -> 
A24: 23 | B24: 3309 | C24: 1 | D24: 3311 | E24: 1 | F24: 3315 | G24: 1 | H24: 3317 | I24: 1 | J24: 4 | K24: 3600 | M24: 3309#1|3311#1|3315#1|3317#1 | O24: =[1]!SUMSTRING(J24:K24,"#") -> 
E28: 6001#6005#6007#6008 | G28: 6036 | I28: =[1]!SUMSTRING(E28:G28,"#") -> 
E29: 6002#6006#6007#6008 | G29: 6037 | I29: =[1]!SUMSTRING(E29:G29,"#") -> 
E30: 6003#6005#6007#6008 | G30: 6038 | I30: =[1]!SUMSTRING(E30:G30,"#") -> 
E31: 6004#6006#6007#6008 | G31: 6039 | I31: =[1]!SUMSTRING(E31:G31,"#") -> 
E32: 6009#6014#6016#6017 | G32: 6040 | I32: =[1]!SUMSTRING(E32:G32,"#") -> 
E33: 6010#6015#6016#6017 | G33: 6041 | I33: =[1]!SUMSTRING(E33:G33,"#") -> 
E34: 6011#6014#6016#6017 | G34: 6042 | I34: =[1]!SUMSTRING(E34:G34,"#") -> 
E35: 6012#6015#6016#6017 | G35: 6043 | I35: =[1]!SUMSTRING(E35:G35,"#") -> 
E36: 6013#6014#6016#6017 | G36: 6044 | I36: =[1]!SUMSTRING(E36:G36,"#") -> 
E37: 6018#6023#6025#6026 | G37: 6045 | I37: =[1]!SUMSTRING(E37:G37,"#") -> 
E38: 6019#6024#6025#6026 | G38: 6046 | I38: =[1]!SUMSTRING(E38:G38,"#") -> 
E39: 6020#6023#6025#6026 | G39: 6047 | I39: =[1]!SUMSTRING(E39:G39,"#") -> 
E40: 6021#6024#6025#6026 | G40: 6048 | I40: =[1]!SUMSTRING(E40:G40,"#") -> 
E41: 6022#6023#6025#6026 | G41: 6049 | I41: =[1]!SUMSTRING(E41:G41,"#") -> 
E42: 6027#6032 | G42: 6050 | I42: =[1]!SUMSTRING(E42:G42,"#") -> 
E43: 6034#6035 | G43: 6051 | I43: =[1]!SUMSTRING(E43:G43,"#") -> 
E44: 6028#6033 | G44: 6052 | I44: =[1]!SUMSTRING(E44:G44,"#") -> 
E45: 6034#6035 | G45: 6053 | I45: =[1]!SUMSTRING(E45:G45,"#") -> 
E46: 6029#6032 | G46: 6054 | I46: =[1]!SUMSTRING(E46:G46,"#") -> 
E47: 6034#6035 | G47: 6055 | I47: =[1]!SUMSTRING(E47:G47,"#") -> 
E48: 6030#6033 | G48: 6056 | I48: =[1]!SUMSTRING(E48:G48,"#") -> 
E49: 6034#6035 | G49: 6057 | I49: =[1]!SUMSTRING(E49:G49,"#") -> 
E50: 6031#6032#6034#6035 | G50: 6058 | I50: =[1]!SUMSTRING(E50:G50,"#") -> 

Sheet Sheet2
C1: 6201 | D1: 6301 | K1: =VLOOKUP(B1,[2]RewardItemConfig!$B:$C,2,0) -> 0 | L1: =VLOOKUP(B1,[2]RewardItemConfig!B:F,5,0) -> 0
C2: 6202 | D2: 6302 | K2: =VLOOKUP(B2,[2]RewardItemConfig!$B:$C,2,0) -> 0 | L2: =VLOOKUP(B2,[2]RewardItemConfig!B:F,5,0) -> 0
C3: 6203 | D3: 6303 | K3: =VLOOKUP(B3,[2]RewardItemConfig!$B:$C,2,0) -> 0 | L3: =VLOOKUP(B3,[2]RewardItemConfig!B:F,5,0) -> 0
C4: 6204 | D4: 6304 | E4: 7002 | K4: =VLOOKUP(B4,[2]RewardItemConfig!$B:$C,2,0) -> 0 | L4: =VLOOKUP(B4,[2]RewardItemConfig!B:F,5,0) -> 0
B5: 7006 | C5: 6205 | D5: 6305 | E5: 7003 | F5: 7006 | K5: =VLOOKUP(B5,[2]RewardItemConfig!$B:$C,2,0) -> 12001 | L5: =VLOOKUP(B5,[2]RewardItemConfig!B:F,5,0) -> 16
B6: 7008 | C6: 6206 | D6: 6306 | E6: 7003 | F6: 7008 | K6: =VLOOKUP(B6,[2]RewardItemConfig!$B:$C,2,0) -> 12001 | L6: =VLOOKUP(B6,[2]RewardItemConfig!B:F,5,0) -> 21
B7: 7008 | C7: 6207 | D7: 6307 | E7: 7005 | F7: 7008 | K7: =VLOOKUP(B7,[2]RewardItemConfig!$B:$C,2,0) -> 12001 | L7: =VLOOKUP(B7,[2]RewardItemConfig!B:F,5,0) -> 21
B8: 7010 | C8: 6208 | D8: 6308 | E8: 7005 | F8: 7010 | K8: =VLOOKUP(B8,[2]RewardItemConfig!$B:$C,2,0) -> 12001 | L8: =VLOOKUP(B8,[2]RewardItemConfig!B:F,5,0) -> 25
B9: 7010 | C9: 6209 | D9: 6309 | E9: 7005 | F9: 7010 | K9: =VLOOKUP(B9,[2]RewardItemConfig!$B:$C,2,0) -> 12001 | L9: =VLOOKUP(B9,[2]RewardItemConfig!B:F,5,0) -> 25
B10: 7010 | C10: 6210 | D10: 6310 | E10: 7005 | F10: 7010 | K10: =VLOOKUP(B10,[2]RewardItemConfig!$B:$C,2,0) -> 12001 | L10: =VLOOKUP(B10,[2]RewardItemConfig!B:F,5,0) -> 25
B11: 7010 | C11: 6211 | D11: 6311 | E11: 7005 | F11: 7010 | K11: =VLOOKUP(B11,[2]RewardItemConfig!$B:$C,2,0) -> 12001 | L11: =VLOOKUP(B11,[2]RewardItemConfig!B:F,5,0) -> 25
B12: 7010 | C12: 6212 | D12: 6312 | E12: 7005 | F12: 7010 | K12: =VLOOKUP(B12,[2]RewardItemConfig!$B:$C,2,0) -> 12001 | L12: =VLOOKUP(B12,[2]RewardItemConfig!B:F,5,0) -> 25
B13: 7010 | C13: 6213 | D13: 6313 | E13: 7005 | F13: 7010 | K13: =VLOOKUP(B13,[2]RewardItemConfig!$B:$C,2,0) -> 12001 | L13: =VLOOKUP(B13,[2]RewardItemConfig!B:F,5,0) -> 25
B14: 7010 | C14: 6214 | D14: 6314 | E14: 7005 | F14: 7010 | K14: =VLOOKUP(B14,[2]RewardItemConfig!$B:$C,2,0) -> 12001 | L14: =VLOOKUP(B14,[2]RewardItemConfig!B:F,5,0) -> 25
B15: 7010 | C15: 6215 | D15: 6315 | E15: 7005 | F15: 7010 | K15: =VLOOKUP(B15,[2]RewardItemConfig!$B:$C,2,0) -> 12001 | L15: =VLOOKUP(B15,[2]RewardItemConfig!B:F,5,0) -> 25
B16: 7010 | C16: 6215 | D16: 6315 | E16: 7005 | F16: 7010 | K16: =VLOOKUP(B16,[2]RewardItemConfig!$B:$C,2,0) -> 12001 | L16: =VLOOKUP(B16,[2]RewardItemConfig!B:F,5,0) -> 25
B17: 7010 | C17: 6215 | D17: 6315 | E17: 7005 | F17: 7010 | K17: =VLOOKUP(B17,[2]RewardItemConfig!$B:$C,2,0) -> 12001 | L17: =VLOOKUP(B17,[2]RewardItemConfig!B:F,5,0) -> 25
B18: 7010 | C18: 6215 | D18: 6315 | E18: 7005 | F18: 7010 | K18: =VLOOKUP(B18,[2]RewardItemConfig!$B:$C,2,0) -> 12001 | L18: =VLOOKUP(B18,[2]RewardItemConfig!B:F,5,0) -> 25
B19: 7010 | C19: 6215 | D19: 6315 | E19: 7005 | F19: 7010 | K19: =VLOOKUP(B19,[2]RewardItemConfig!$B:$C,2,0) -> 12001 | L19: =VLOOKUP(B19,[2]RewardItemConfig!B:F,5,0) -> 25
B20: 7010 | C20: 6215 | D20: 6315 | E20: 7005 | F20: 7010 | K20: =VLOOKUP(B20,[2]RewardItemConfig!$B:$C,2,0) -> 12001 | L20: =VLOOKUP(B20,[2]RewardItemConfig!B:F,5,0) -> 25
A24: 1 | B24: 14 | D24: 3 | F24: 4 | R24: =[3]!SUMSTRING(B24:C24,"#") ->  | T24: =[3]!SUMSTRING(D24:E24,"#") ->  | V24: =[3]!SUMSTRING(F24:G24,"#") ->  | X24: =[3]!SUMSTRING(H24:I24,"#") ->  | Z24: =[3]!SUMSTRING(J24:K24,"#") ->  | AA24: =[3]!SUMSTRING(R24:Z24,"|") -> 
A25: 2 | B25: 14 | D25: 3 | F25: 4 | R25: =[3]!SUMSTRING(B25:C25,"#") ->  | T25: =[3]!SUMSTRING(D25:E25,"#") ->  | V25: =[3]!SUMSTRING(F25:G25,"#") ->  | X25: =[3]!SUMSTRING(H25:I25,"#") ->  | Z25: =[3]!SUMSTRING(J25:K25,"#") ->  | AA25: =[3]!SUMSTRING(R25:Z25,"|") -> 
A26: 3 | B26: 14 | D26: 3 | F26: 4 | M26: 绿色 | N26: =VLOOKUP(M26,$O$26:$P$29,2,0) -> 1508 | O26: 绿色 | P26: 1508 | R26: =[3]!SUMSTRING(B26:C26,"#") ->  | T26: =[3]!SUMSTRING(D26:E26,"#") ->  | V26: =[3]!SUMSTRING(F26:G26,"#") ->  | X26: =[3]!SUMSTRING(H26:I26,"#") ->  | Z26: =[3]!SUMSTRING(J26:K26,"#") ->  | AA26: =[3]!SUMSTRING(R26:Z26,"|") -> 
A27: 4 | B27: 14 | D27: 3 | F27: 4 | H27: 12001 | M27: 绿色 | N27: =VLOOKUP(M27,$O$26:$P$29,2,0) -> 1508 | O27: 蓝色 | P27: 1509 | R27: =[3]!SUMSTRING(B27:C27,"#") ->  | T27: =[3]!SUMSTRING(D27:E27,"#") ->  | V27: =[3]!SUMSTRING(F27:G27,"#") ->  | X27: =[3]!SUMSTRING(H27:I27,"#") ->  | Z27: =[3]!SUMSTRING(J27:K27,"#") ->  | AA27: =[3]!SUMSTRING(R27:Z27,"|") -> 
A28: 5 | B28: 14 | D28: 3 | F28: 4 | H28: 12001 | J28: 12012 | M28: 蓝色 | N28: 1509 | O28: 紫色 | P28: 1510 | R28: =[3]!SUMSTRING(B28:C28,"#") ->  | T28: =[3]!SUMSTRING(D28:E28,"#") ->  | V28: =[3]!SUMSTRING(F28:G28,"#") ->  | X28: =[3]!SUMSTRING(H28:I28,"#") ->  | Z28: =[3]!SUMSTRING(J28:K28,"#") ->  | AA28: =[3]!SUMSTRING(R28:Z28,"|") -> 
A29: 6 | B29: 14 | D29: 3 | F29: 4 | H29: 12001 | J29: 12012 | M29: 蓝色 | N29: 1509 | O29: 橙色 | P29: 1511 | R29: =[3]!SUMSTRING(B29:C29,"#") ->  | T29: =[3]!SUMSTRING(D29:E29,"#") ->  | V29: =[3]!SUMSTRING(F29:G29,"#") ->  | X29: =[3]!SUMSTRING(H29:I29,"#") ->  | Z29: =[3]!SUMSTRING(J29:K29,"#") ->  | AA29: =[3]!SUMSTRING(R29:Z29,"|") -> 
A30: 7 | B30: 14 | D30: 3 | F30: 4 | H30: 12001 | J30: 12012 | M30: 紫色 | N30: 1510 | R30: =[3]!SUMSTRING(B30:C30,"#") ->  | T30: =[3]!SUMSTRING(D30:E30,"#") ->  | V30: =[3]!SUMSTRING(F30:G30,"#") ->  | X30: =[3]!SUMSTRING(H30:I30,"#") ->  | Z30: =[3]!SUMSTRING(J30:K30,"#") ->  | AA30: =[3]!SUMSTRING(R30:Z30,"|") -> 
A31: 8 | B31: 14 | D31: 3 | F31: 4 | H31: 12001 | J31: 12012 | M31: 紫色 | N31: 1510 | R31: =[3]!SUMSTRING(B31:C31,"#") ->  | T31: =[3]!SUMSTRING(D31:E31,"#") ->  | V31: =[3]!SUMSTRING(F31:G31,"#") ->  | X31: =[3]!SUMSTRING(H31:I31,"#") ->  | Z31: =[3]!SUMSTRING(J31:K31,"#") ->  | AA31: =[3]!SUMSTRING(R31:Z31,"|") -> 
A32: 9 | B32: 14 | D32: 3 | F32: 4 | H32: 12001 | J32: 12012 | M32: 紫色 | N32: 1510 | R32: =[3]!SUMSTRING(B32:C32,"#") ->  | T32: =[3]!SUMSTRING(D32:E32,"#") ->  | V32: =[3]!SUMSTRING(F32:G32,"#") ->  | X32: =[3]!SUMSTRING(H32:I32,"#") ->  | Z32: =[3]!SUMSTRING(J32:K32,"#") ->  | AA32: =[3]!SUMSTRING(R32:Z32,"|") -> 
A33: 10 | B33: 14 | D33: 3 | F33: 4 | H33: 12001 | J33: 12012 | M33: 紫色 | N33: 1510 | R33: =[3]!SUMSTRING(B33:C33,"#") ->  | T33: =[3]!SUMSTRING(D33:E33,"#") ->  | V33: =[3]!SUMSTRING(F33:G33,"#") ->  | X33: =[3]!SUMSTRING(H33:I33,"#") ->  | Z33: =[3]!SUMSTRING(J33:K33,"#") ->  | AA33: =[3]!SUMSTRING(R33:Z33,"|") -> 
A34: 11 | B34: 14 | D34: 3 | F34: 4 | H34: 12001 | J34: 12012 | M34: 紫色 | N34: 1510 | R34: =[3]!SUMSTRING(B34:C34,"#") ->  | T34: =[3]!SUMSTRING(D34:E34,"#") ->  | V34: =[3]!SUMSTRING(F34:G34,"#") ->  | X34: =[3]!SUMSTRING(H34:I34,"#") ->  | Z34: =[3]!SUMSTRING(J34:K34,"#") ->  | AA34: =[3]!SUMSTRING(R34:Z34,"|") -> 
A35: 12 | B35: 14 | D35: 3 | F35: 4 | H35: 12001 | J35: 12012 | M35: 橙色 | N35: 1511 | R35: =[3]!SUMSTRING(B35:C35,"#") ->  | T35: =[3]!SUMSTRING(D35:E35,"#") ->  | V35: =[3]!SUMSTRING(F35:G35,"#") ->  | X35: =[3]!SUMSTRING(H35:I35,"#") ->  | Z35: =[3]!SUMSTRING(J35:K35,"#") ->  | AA35: =[3]!SUMSTRING(R35:Z35,"|") -> 
A36: 13 | B36: 14 | D36: 3 | F36: 4 | H36: 12001 | J36: 12012 | M36: 橙色 | N36: 1511 | R36: =[3]!SUMSTRING(B36:C36,"#") ->  | T36: =[3]!SUMSTRING(D36:E36,"#") ->  | V36: =[3]!SUMSTRING(F36:G36,"#") ->  | X36: =[3]!SUMSTRING(H36:I36,"#") ->  | Z36: =[3]!SUMSTRING(J36:K36,"#") ->  | AA36: =[3]!SUMSTRING(R36:Z36,"|") -> 
A37: 14 | B37: 14 | D37: 3 | F37: 4 | H37: 12001 | J37: 12012 | M37: 橙色 | N37: 1511 | R37: =[3]!SUMSTRING(B37:C37,"#") ->  | T37: =[3]!SUMSTRING(D37:E37,"#") ->  | V37: =[3]!SUMSTRING(F37:G37,"#") ->  | X37: =[3]!SUMSTRING(H37:I37,"#") ->  | Z37: =[3]!SUMSTRING(J37:K37,"#") ->  | AA37: =[3]!SUMSTRING(R37:Z37,"|") -> 
A38: 15 | B38: 14 | D38: 3 | F38: 4 | H38: 12001 | J38: 12012 | M38: 橙色 | N38: 1511 | R38: =[3]!SUMSTRING(B38:C38,"#") ->  | T38: =[3]!SUMSTRING(D38:E38,"#") ->  | V38: =[3]!SUMSTRING(F38:G38,"#") ->  | X38: =[3]!SUMSTRING(H38:I38,"#") ->  | Z38: =[3]!SUMSTRING(J38:K38,"#") ->  | AA38: =[3]!SUMSTRING(R38:Z38,"|") -> 
A39: 16 | B39: 14 | D39: 3 | F39: 4 | H39: 12001 | J39: 12012 | M39: 橙色 | N39: 1511 | R39: =[3]!SUMSTRING(B39:C39,"#") ->  | T39: =[3]!SUMSTRING(D39:E39,"#") ->  | V39: =[3]!SUMSTRING(F39:G39,"#") ->  | X39: =[3]!SUMSTRING(H39:I39,"#") ->  | Z39: =[3]!SUMSTRING(J39:K39,"#") ->  | AA39: =[3]!SUMSTRING(R39:Z39,"|") -> 
A40: 17 | B40: 14 | D40: 3 | F40: 4 | H40: 12001 | J40: 12012 | M40: 橙色 | N40: 1511 | R40: =[3]!SUMSTRING(B40:C40,"#") ->  | T40: =[3]!SUMSTRING(D40:E40,"#") ->  | V40: =[3]!SUMSTRING(F40:G40,"#") ->  | X40: =[3]!SUMSTRING(H40:I40,"#") ->  | Z40: =[3]!SUMSTRING(J40:K40,"#") ->  | AA40: =[3]!SUMSTRING(R40:Z40,"|") -> 
A41: 18 | B41: 14 | D41: 3 | F41: 4 | H41: 12001 | J41: 12012 | M41: 橙色 | N41: 1511 | R41: =[3]!SUMSTRING(B41:C41,"#") ->  | T41: =[3]!SUMSTRING(D41:E41,"#") ->  | V41: =[3]!SUMSTRING(F41:G41,"#") ->  | X41: =[3]!SUMSTRING(H41:I41,"#") ->  | Z41: =[3]!SUMSTRING(J41:K41,"#") ->  | AA41: =[3]!SUMSTRING(R41:Z41,"|") -> 
A42: 19 | B42: 14 | D42: 3 | F42: 4 | H42: 12001 | J42: 12012 | M42: 橙色 | N42: 1511 | R42: =[3]!SUMSTRING(B42:C42,"#") ->  | T42: =[3]!SUMSTRING(D42:E42,"#") ->  | V42: =[3]!SUMSTRING(F42:G42,"#") ->  | X42: =[3]!SUMSTRING(H42:I42,"#") ->  | Z42: =[3]!SUMSTRING(J42:K42,"#") ->  | AA42: =[3]!SUMSTRING(R42:Z42,"|") -> 
A43: 20 | B43: 14 | D43: 3 | F43: 4 | H43: 12001 | J43: 12012 | M43: 橙色 | N43: 1511 | R43: =[3]!SUMSTRING(B43:C43,"#") ->  | T43: =[3]!SUMSTRING(D43:E43,"#") ->  | V43: =[3]!SUMSTRING(F43:G43,"#") ->  | X43: =[3]!SUMSTRING(H43:I43,"#") ->  | Z43: =[3]!SUMSTRING(J43:K43,"#") ->  | AA43: =[3]!SUMSTRING(R43:Z43,"|") -> 
A48: 1 | H48: 4 | I48: 3 | J48: 14 | K48: =[3]!SUMSTRING(H48:J48,"#") -> 
A49: 2 | H49: 4 | I49: 3 | J49: 14 | K49: =[3]!SUMSTRING(H49:J49,"#") -> 
A50: 3 | H50: 1508 | I50: 4 | J50: 3 | K50: =[3]!SUMSTRING(H50:J50,"#") -> 
A51: 4 | H51: 1508 | I51: 12001 | J51: 4 | K51: =[3]!SUMSTRING(H51:J51,"#") -> 
A52: 5 | H52: 1509 | I52: 12001 | J52: 12012 | K52: =[3]!SUMSTRING(H52:J52,"#") -> 
A53: 6 | H53: 1509 | I53: 12001 | J53: 12012 | K53: =[3]!SUMSTRING(H53:J53,"#") -> 
A54: 7 | H54: 1510 | I54: 12001 | J54: 12012 | K54: =[3]!SUMSTRING(H54:J54,"#") -> 
A55: 8 | H55: 1510 | I55: 12001 | J55: 12012 | K55: =[3]!SUMSTRING(H55:J55,"#") -> 
A56: 9 | H56: 1510 | I56: 12001 | J56: 12012 | K56: =[3]!SUMSTRING(H56:J56,"#") -> 
A57: 10 | H57: 1510 | I57: 12001 | J57: 12012 | K57: =[3]!SUMSTRING(H57:J57,"#") -> 
A58: 11 | H58: 1510 | I58: 12001 | J58: 12012 | K58: =[3]!SUMSTRING(H58:J58,"#") -> 
A59: 12 | H59: 1511 | I59: 12001 | J59: 12012 | K59: =[3]!SUMSTRING(H59:J59,"#") -> 
A60: 13 | H60: 1511 | I60: 12001 | J60: 12012 | K60: =[3]!SUMSTRING(H60:J60,"#") -> 
A61: 14 | H61: 1511 | I61: 12001 | J61: 12012 | K61: =[3]!SUMSTRING(H61:J61,"#") -> 
A62: 15 | H62: 1511 | I62: 12001 | J62: 12012 | K62: =[3]!SUMSTRING(H62:J62,"#") -> 
A63: 16 | H63: 1511 | I63: 12001 | J63: 12012 | K63: =[3]!SUMSTRING(H63:J63,"#") -> 
A64: 17 | H64: 1511 | I64: 12001 | J64: 12012 | K64: =[3]!SUMSTRING(H64:J64,"#") -> 
A65: 18 | H65: 1511 | I65: 12001 | J65: 12012 | K65: =[3]!SUMSTRING(H65:J65,"#") -> 
A66: 19 | H66: 1511 | I66: 12001 | J66: 12012 | K66: =[3]!SUMSTRING(H66:J66,"#") -> 
A67: 20 | H67: 1511 | I67: 12001 | J67: 12012 | K67: =[3]!SUMSTRING(H67:J67,"#") -> 

Sheet 装备分类辅助表
B1: 22 | C1: 绿色普通装备 | D1: 2 | E1: =_xlfn.TEXTJOIN("#",TRUE,[2]RewardItemConfig!$B$61:$B$209) -> 137#138#139#140#141#142#143#144#145#146#300#301#302#303#304#305#310#311#312#313#314#315#316#317#491#492#493#494#495#514#515#516#517#601#602#603#604#605#606#607#608#609#610#611#612#613#614#615#616#617#618#619#620#651#652#653#654#655#656#657#658#659#660#661#662#663#664#665#666#667#668#669#670#701#702#703#704#1001#1002#1003#1004#1005#1006#1007#1008#1009#1010#1011#1012#1013#1014#1015#1016#1017#1018#1019#1020#1021#1022#1023#1024#1025#1026#1027#1028#1029#1030#1031#1032#1033#1034#1035#1036#1037#1038#1039#1040#1041#1042#1043#1044#1045#1046#1047#1048#1049#1050#1051#1052#1053#1054#1055#1056#1057#1058#1059#1060#1061#1062#1063#1064#1065#1066#1067#1068#1069#1070#1071#1072 | F1: 1 | H1: 0 | I1: 不带特性，不带副属性，纯主属性 | J1: 1
B2: 23 | C2: 绿色带副属性 | D2: 2 | E2: =_xlfn.TEXTJOIN("#",TRUE,[2]RewardItemConfig!$B$210:$B$238) -> 1073#1074#1075#1076#1077#1078#1079#1080#1081#1082#1083#1084#1085#1086#1087#1088#1089#1090#1091#1092#1093#1094#1095#1096#1097#1098#1099#1100#1101 | F2: 1 | H2: 0 | I2: 绿色带副属性 | J2: 1
B3: 24 | C3: 绿色装备带重铸等级 | D3: 2 | E3: =_xlfn.TEXTJOIN("#",TRUE,[2]RewardItemConfig!$B$254:$B$273) -> 1117#1118#1119#1120#1121#1122#1123#1124#1125#1126#1127#1128#1129#1130#1131#1132#1133#1134#1135#1136 | F3: 1 | H3: 0 | I3: 绿色装备带重铸等级 | J3: 1
B4: 25 | C4: 绿色装备带特性 | D4: 2 | E4: =_xlfn.TEXTJOIN("#",TRUE,[2]RewardItemConfig!$B$239:$B$253) -> 1102#1103#1104#1105#1106#1107#1108#1109#1110#1111#1112#1113#1114#1115#1116 | F4: 1 | H4: 0 | I4: 绿色装备带特性 | J4: 1
B5: 26 | C5: 蓝色0-1副属性 | D5: 2 | E5: =_xlfn.TEXTJOIN("#",TRUE,[2]RewardItemConfig!$B$274:$B$299) -> 1137#1138#1139#1140#1141#1142#1143#1144#1145#1146#1147#1148#1149#1150#1151#1152#1153#1154#1155#1156#1157#1158#1159#1160#1161#1162 | F5: 1 | H5: 0 | I5: 蓝色0-1副属性 | J5: 0.8
B6: 27 | C6: 蓝色1-2副属性 | D6: 2 | E6: =_xlfn.TEXTJOIN("#",TRUE,[2]RewardItemConfig!$B$300:$B$323) -> 1163#1164#1165#1166#1167#1168#1169#1170#1171#1172#1173#1174#1175#1176#1177#1178#1179#1180#1181#1182#1183#1184#1185#1186 | F6: 1 | H6: 0 | I6: 蓝色1-2副属性 | J6: 0.8
B7: 28 | C7: 蓝色带重铸等级装备 | D7: 2 | E7: =_xlfn.TEXTJOIN("#",TRUE,[2]RewardItemConfig!$B$324:$B$342) -> 1187#1188#1189#1190#1191#1192#1193#1194#1195#1196#1197#1198#1199#1200#1201#1202#1203#1204#1205 | F7: 1 | H7: 0 | I7: 蓝色带重铸等级装备 | J7: 0.8
B8: 29 | C8: 蓝色带特性装备 | D8: 2 | E8: =_xlfn.TEXTJOIN("#",TRUE,[2]RewardItemConfig!#REF!) ->  | F8: 1 | H8: 0 | I8: 蓝色带特性装备 | J8: 0.8
B9: 30 | C9: 紫色普通装备 | D9: 2 | E9: =_xlfn.TEXTJOIN("#",TRUE,[2]RewardItemConfig!#REF!) ->  | F9: 1 | H9: 0 | I9: 紫色普通装备 | J9: 0.8
B10: 31 | C10: 紫色重铸装备、紫色特性装备 | D10: 2 | E10: =_xlfn.TEXTJOIN("#",TRUE,[2]RewardItemConfig!#REF!) ->  | F10: 1 | H10: 0 | I10: 紫色重铸装备、紫色特性装备 | J10: 0.6
B11: 32 | C11: 紫色装备-戒指 | D11: 2 | E11: =_xlfn.TEXTJOIN("#",TRUE,[2]RewardItemConfig!#REF!) ->  | F11: 1 | H11: 0 | I11: 紫色装备-戒指 | J11: 0.6
B12: 33 | C12: 紫色装备-腰带 | D12: 2 | E12: =_xlfn.TEXTJOIN("#",TRUE,[2]RewardItemConfig!#REF!) ->  | F12: 1 | H12: 0 | I12: 紫色装备-腰带 | J12: 0.6
B13: 34 | C13: 橙色2-4装备 | D13: 2 | E13: =_xlfn.TEXTJOIN("#",TRUE,[2]RewardItemConfig!#REF!) ->  | F13: 1 | H13: 0 | I13: 橙色2-4装备 | J13: 0.6
B14: 35 | C14: 橙色2-4戒指、腰带 | D14: 2 | E14: =_xlfn.TEXTJOIN("#",TRUE,[2]RewardItemConfig!#REF!) ->  | F14: 1 | H14: 0 | I14: 橙色2-4戒指、腰带 | J14: 0.6
B15: 36 | C15: 橙色3-3装备 | D15: 2 | E15: =_xlfn.TEXTJOIN("#",TRUE,[2]RewardItemConfig!#REF!) ->  | F15: 1 | H15: 0 | I15: 橙色3-3装备 | J15: 0.6
B16: 37 | C16: 橙色4-4装备 | D16: 2 | E16: =_xlfn.TEXTJOIN("#",TRUE,[2]RewardItemConfig!#REF!) ->  | F16: 1 | H16: 0 | I16: 橙色4-4装备 | J16: 0.6
B17: 38 | C17: 橙色重铸装备 | D17: 2 | E17: =_xlfn.TEXTJOIN("#",TRUE,[2]RewardItemConfig!#REF!) ->  | F17: 1 | H17: 0 | I17: 橙色重铸装备 | J17: 0.6
B18: 39 | C18: 橙色特性装备 | D18: 2 | E18: =_xlfn.TEXTJOIN("#",TRUE,[2]RewardItemConfig!#REF!) ->  | F18: 1 | H18: 0 | I18: 橙色特性装备 | J18: 0.276
B19: 52 | C19: 绿色普通装备 | D19: 2 | E19: =E1 -> 137#138#139#140#141#142#143#144#145#146#300#301#302#303#304#305#310#311#312#313#314#315#316#317#491#492#493#494#495#514#515#516#517#601#602#603#604#605#606#607#608#609#610#611#612#613#614#615#616#617#618#619#620#651#652#653#654#655#656#657#658#659#660#661#662#663#664#665#666#667#668#669#670#701#702#703#704#1001#1002#1003#1004#1005#1006#1007#1008#1009#1010#1011#1012#1013#1014#1015#1016#1017#1018#1019#1020#1021#1022#1023#1024#1025#1026#1027#1028#1029#1030#1031#1032#1033#1034#1035#1036#1037#1038#1039#1040#1041#1042#1043#1044#1045#1046#1047#1048#1049#1050#1051#1052#1053#1054#1055#1056#1057#1058#1059#1060#1061#1062#1063#1064#1065#1066#1067#1068#1069#1070#1071#1072 | F19: 1 | H19: 0 | I19: 不带特性，不带副属性，纯主属性 | J19: 0 | K19: 不带空组
B20: 53 | C20: 绿色带副属性 | D20: 2 | E20: =E2 -> 1073#1074#1075#1076#1077#1078#1079#1080#1081#1082#1083#1084#1085#1086#1087#1088#1089#1090#1091#1092#1093#1094#1095#1096#1097#1098#1099#1100#1101 | F20: 1 | H20: 0 | I20: 绿色带副属性 | J20: 0 | K20: 不带空组
B21: 54 | C21: 绿色装备带重铸等级 | D21: 2 | E21: =E3 -> 1117#1118#1119#1120#1121#1122#1123#1124#1125#1126#1127#1128#1129#1130#1131#1132#1133#1134#1135#1136 | F21: 1 | H21: 0 | I21: 绿色装备带重铸等级 | J21: 0 | K21: 不带空组
B22: 55 | C22: 绿色装备带特性 | D22: 2 | E22: =E4 -> 1102#1103#1104#1105#1106#1107#1108#1109#1110#1111#1112#1113#1114#1115#1116 | F22: 1 | H22: 0 | I22: 绿色装备带特性 | J22: 0 | K22: 不带空组
B23: 56 | C23: 蓝色0-1副属性 | D23: 2 | E23: =REPLACE(E5,LEN(E5)-4,5,"") -> 1137#1138#1139#1140#1141#1142#1143#1144#1145#1146#1147#1148#1149#1150#1151#1152#1153#1154#1155#1156#1157#1158#1159#1160#1161 | F23: 1 | H23: 0 | I23: 蓝色0-1副属性 | J23: 0 | K23: 不带空组
B24: 57 | C24: 蓝色1-2副属性 | D24: 2 | E24: =REPLACE(E6,LEN(E6)-4,5,"") -> 1163#1164#1165#1166#1167#1168#1169#1170#1171#1172#1173#1174#1175#1176#1177#1178#1179#1180#1181#1182#1183#1184#1185 | F24: 1 | H24: 0 | I24: 蓝色1-2副属性 | J24: 0 | K24: 不带空组
B25: 58 | C25: 蓝色带重铸等级装备 | D25: 2 | E25: =REPLACE(E7,LEN(E7)-4,5,"") -> 1187#1188#1189#1190#1191#1192#1193#1194#1195#1196#1197#1198#1199#1200#1201#1202#1203#1204 | F25: 1 | H25: 0 | I25: 蓝色带重铸等级装备 | J25: 0 | K25: 不带空组
B26: 59 | C26: 蓝色带特性装备 | D26: 2 | F26: 1 | H26: 0 | I26: 蓝色带特性装备 | J26: 0 | K26: 不带空组
B27: 60 | C27: 紫色普通装备 | D27: 2 | F27: 1 | H27: 0 | I27: 紫色2-3装备 | J27: 0 | K27: 不带空组
B28: 61 | C28: 紫色重铸装备、紫色特性装备 | D28: 2 | F28: 1 | H28: 0 | I28: 紫色重铸装备 | J28: 0 | K28: 不带空组
B29: 62 | C29: 紫色装备-戒指 | D29: 2 | F29: 1 | H29: 0 | I29: 紫色特性装备 | J29: 0 | K29: 不带空组
B30: 63 | C30: 紫色装备-腰带 | D30: 2 | F30: 1 | H30: 0 | I30: 橙色2-4装备 | J30: 0 | K30: 不带空组
B31: 64 | C31: 橙色2-4装备 | D31: 2 | F31: 1 | H31: 0 | I31: 橙色重铸装备 | J31: 0 | K31: 不带空组
B32: 65 | C32: 橙色2-4戒指、腰带 | D32: 2 | F32: 1 | H32: 0 | I32: 橙色特性装备 | J32: 0 | K32: 不带空组
B33: 66 | C33: 橙色3-3装备 | D33: 2 | F33: 1 | H33: 0 | I33: 紫色装备特性-武器 | J33: 0 | K33: 不带空组
B34: 67 | C34: 橙色4-4装备 | D34: 2 | F34: 1 | H34: 0 | I34: 紫色装备特性-铠甲 | J34: 0 | K34: 不带空组
B35: 68 | C35: 橙色重铸装备 | D35: 2 | F35: 1 | H35: 0 | I35: 紫色装备-戒指 | J35: 0 | K35: 不带空组
B36: 69 | C36: 橙色特性装备 | D36: 2 | F36: 1 | H36: 0 | I36: 紫色装备-腰带 | J36: 0 | K36: 不带空组

Sheet 材料掉落跳转
E3: 材料掉落 | H3: 7 | I3: 7 | J3: 掉落显示1 | K3: 掉落显示2 | L3: 掉落显示 | Q3: 1 | R3: 2 | S3: 3 | T3: 4 | U3: 5 | V3: 6 | W3: 7 | X3: 8 | Y3: 9 | Z3: 10 | AA3: 11 | AB3: 12 | AC3: 13 | AD3: 14 | AE3: 15 | AF3: 16 | AG3: 17 | AH3: 18 | AI3: 19 | AJ3: 20 | AK3: 21 | AL3: 22 | AM3: 23 | AN3: 24 | AO3: 25 | AP3: 26 | AQ3: 1 | AR3: 2 | AS3: 3 | AT3: 4 | AU3: 5 | AV3: 6 | AW3: 7 | AX3: 8 | AY3: 9 | AZ3: 10 | BA3: 11 | BB3: 12 | BC3: 13 | BD3: 14 | BE3: 15 | BF3: 16 | BG3: 17 | BH3: 18 | BI3: 19 | BJ3: 20 | BK3: 21 | BL3: 22 | BM3: 23 | BN3: 24 | BO3: 25 | BP3: 26
B4: 14#100|3#10 | C4: 26002 | D4: 简单-1-1 | E4: 610101 | G4: 610101 | H4: =$H$3&RIGHT(E4,4) -> 70101 | I4: =IF(F4="","",$I$3&RIGHT(F4,4)) ->  | J4: =H4&"#1" -> 70101#1 | K4: =IF(I4="","",I4&"#1") ->  | L4: =IF(K4="",J4,J4&"|"&K4) -> 70101#1 | M4: =L4&"|"&B4 -> 70101#1|14#100|3#10 | N4: =--RIGHT(E4,2) -> 1 | O4: =IFERROR(--RIGHT(F4,2),"") ->  | Q4: =IF($N4=Q$3,$C4,"") -> 26002 | R4: =IF($N4=R$3,$C4,"") ->  | X4: =IF($N4=X$3,$C4,"") ->  | AI4: =IF($N4=AI$3,$C4,"") ->  | AQ4: =IF($O4=AQ$3,$C4,"") ->  | AR4: =IF($O4=AR$3,$C4,"") -> 
B5: 14#100|3#10 | C5: 26003 | D5: 简单-1-2 | E5: 610201 | G5: 610201 | H5: =$H$3&RIGHT(E5,4) -> 70201 | I5: =IF(F5="","",$I$3&RIGHT(F5,4)) ->  | J5: =H5&"#1" -> 70201#1 | K5: =IF(I5="","",I5&"#1") ->  | L5: =IF(K5="",J5,J5&"|"&K5) -> 70201#1 | M5: 70201#1|14#100|3#10 | N5: =--RIGHT(E5,2) -> 1 | O5: =IFERROR(--RIGHT(F5,2),"") ->  | Q5: =IF($N5=Q$3,$C5,"") -> 26003 | R5: =IF($N5=R$3,$C5,"") ->  | S5: =IF($N5=S$3,$C5,"") ->  | T5: =IF($N5=T$3,$C5,"") ->  | U5: =IF($N5=U$3,$C5,"") ->  | V5: =IF($N5=V$3,$C5,"") ->  | W5: =IF($N5=W$3,$C5,"") ->  | X5: =IF($N5=X$3,$C5,"") ->  | Y5: =IF($N5=Y$3,$C5,"") ->  | Z5: =IF($N5=Z$3,$C5,"") ->  | AA5: =IF($N5=AA$3,$C5,"") ->  | AB5: =IF($N5=AB$3,$C5,"") ->  | AC5: =IF($N5=AC$3,$C5,"") ->  | AD5: =IF($N5=AD$3,$C5,"") ->  | AE5: =IF($N5=AE$3,$C5,"") ->  | AF5: =IF($N5=AF$3,$C5,"") ->  | AG5: =IF($N5=AG$3,$C5,"") ->  | AH5: =IF($N5=AH$3,$C5,"") ->  | AI5: =IF($N5=AI$3,$C5,"") ->  | AJ5: =IF($N5=AJ$3,$C5,"") ->  | AK5: =IF($N5=AK$3,$C5,"") ->  | AL5: =IF($N5=AL$3,$C5,"") ->  | AM5: =IF($N5=AM$3,$C5,"") ->  | AN5: =IF($N5=AN$3,$C5,"") ->  | AO5: =IF($N5=AO$3,$C5,"") ->  | AP5: =IF($N5=AP$3,$C5,"") ->  | AQ5: =IF($O5=AQ$3,$C5,"") ->  | AR5: =IF($O5=AR$3,$C5,"") ->  | AS5: =IF($O5=AS$3,$C5,"") ->  | AT5: =IF($O5=AT$3,$C5,"") ->  | AU5: =IF($O5=AU$3,$C5,"") ->  | AV5: =IF($O5=AV$3,$C5,"") ->  | AW5: =IF($O5=AW$3,$C5,"") ->  | AX5: =IF($O5=AX$3,$C5,"") ->  | AY5: =IF($O5=AY$3,$C5,"") ->  | AZ5: =IF($O5=AZ$3,$C5,"") ->  | BA5: =IF($O5=BA$3,$C5,"") ->  | BB5: =IF($O5=BB$3,$C5,"") ->  | BC5: =IF($O5=BC$3,$C5,"") ->  | BD5: =IF($O5=BD$3,$C5,"") ->  | BE5: =IF($O5=BE$3,$C5,"") ->  | BF5: =IF($O5=BF$3,$C5,"") ->  | BG5: =IF($O5=BG$3,$C5,"") ->  | BH5: =IF($O5=BH$3,$C5,"") ->  | BI5: =IF($O5=BI$3,$C5,"") ->  | BJ5: =IF($O5=BJ$3,$C5,"") ->  | BK5: =IF($O5=BK$3,$C5,"") ->  | BL5: =IF($O5=BL$3,$C5,"") ->  | BM5: =IF($O5=BM$3,$C5,"") ->  | BN5: =IF($O5=BN$3,$C5,"") ->  | BO5: =IF($O5=BO$3,$C5,"") ->  | BP5: =IF($O5=BP$3,$C5,"") -> 
B6: 14#100|3#10 | C6: 26004 | D6: 简单-1-3 | E6: 610301 | G6: 610301 | H6: 70301 | J6: 70301#1 | L6: 70301#1 | M6: 70301#1|14#100|3#10 | N6: 1 | Q6: 26004
B7: 14#100|3#10 | C7: 26005 | D7: 简单-1-4 | E7: 610401 | G7: 610401 | H7: 70401 | J7: 70401#1 | L7: 70401#1 | M7: 70401#1|14#100|3#10 | N7: 1 | Q7: 26005
B8: 14#100|3#10 | C8: 26006 | D8: 简单-1-5 | E8: 610501 | G8: 610501 | H8: 70501 | J8: 70501#1 | L8: 70501#1 | M8: 70501#1|14#100|3#10 | N8: 1 | Q8: 26006
B9: 14#120|3#12 | C9: 26007 | D9: 简单-2-1 | E9: 610102 | G9: 610102 | H9: 70102 | J9: 70102#1 | L9: 70102#1 | M9: 70102#1|14#120|3#12 | N9: 2 | R9: 26007
B10: 14#120|3#12 | C10: 26008 | D10: 简单-2-2 | E10: 610202 | G10: 610202 | H10: 70202 | J10: 70202#1 | L10: 70202#1 | M10: 70202#1|14#120|3#12 | N10: 2 | R10: 26008
B11: 14#120|3#12 | C11: 26009 | D11: 简单-2-3 | E11: 610302 | G11: 610302 | H11: 70302 | J11: 70302#1 | L11: 70302#1 | M11: 70302#1|14#120|3#12 | N11: 2 | R11: 26009
B12: 14#120|3#12 | C12: 26010 | D12: 简单-2-4 | E12: 610402 | G12: 610402 | H12: 70402 | J12: 70402#1 | L12: 70402#1 | M12: 70402#1|14#120|3#12 | N12: 2 | R12: 26010
B13: 14#120|3#12 | C13: 26011 | D13: 简单-2-5 | E13: 610502 | G13: 610502 | H13: 70502 | J13: 70502#1 | L13: 70502#1 | M13: 70502#1|14#120|3#12 | N13: 2 | R13: 26011
B14: 14#140|3#14 | C14: 26012 | D14: 简单-3-1 | E14: 610103 | G14: 610103 | H14: 70103 | J14: 70103#1 | L14: 70103#1 | M14: 70103#1|14#140|3#14 | N14: 3 | S14: 26012
B15: 14#140|3#14 | C15: 26013 | D15: 简单-3-2 | E15: 610203 | G15: 610203 | H15: 70203 | J15: 70203#1 | L15: 70203#1 | M15: 70203#1|14#140|3#14 | N15: 3 | S15: 26013
B16: 14#140|3#14 | C16: 26014 | D16: 简单-3-3 | E16: 610303 | G16: 610303 | H16: 70303 | J16: 70303#1 | L16: 70303#1 | M16: 70303#1|14#140|3#14 | N16: 3 | S16: 26014
B17: 14#140|3#14 | C17: 26015 | D17: 简单-3-4 | E17: 610403 | G17: 610403 | H17: 70403 | J17: 70403#1 | L17: 70403#1 | M17: 70403#1|14#140|3#14 | N17: 3 | S17: 26015
B18: 14#140|3#14 | C18: 26016 | D18: 简单-3-5 | E18: 610503 | G18: 610503 | H18: 70503 | J18: 70503#1 | L18: 70503#1 | M18: 70503#1|14#140|3#14 | N18: 3 | S18: 26016
B19: 14#160|3#16 | C19: 26017 | D19: 简单-4-1 | E19: 610104 | G19: 610104 | H19: 70104 | J19: 70104#1 | L19: 70104#1 | M19: 70104#1|14#160|3#16 | N19: 4 | T19: 26017
B20: 14#160|3#16 | C20: 26018 | D20: 简单-4-2 | E20: 610204 | G20: 610204 | H20: 70204 | J20: 70204#1 | L20: 70204#1 | M20: 70204#1|14#160|3#16 | N20: 4 | T20: 26018
B21: 14#160|3#16 | C21: 26019 | D21: 简单-4-3 | E21: 610304 | G21: 610304 | H21: 70304 | J21: 70304#1 | L21: 70304#1 | M21: 70304#1|14#160|3#16 | N21: 4 | T21: 26019
B22: 14#160|3#16 | C22: 26020 | D22: 简单-4-4 | E22: 610404 | G22: 610404 | H22: 70404 | J22: 70404#1 | L22: 70404#1 | M22: 70404#1|14#160|3#16 | N22: 4 | T22: 26020
B23: 14#160|3#16 | C23: 26021 | D23: 简单-4-5 | E23: 610504 | G23: 610504 | H23: 70504 | J23: 70504#1 | L23: 70504#1 | M23: 70504#1|14#160|3#16 | N23: 4 | T23: 26021
B24: 14#180|3#18 | C24: 26022 | D24: 简单-5-1 | E24: 610105 | G24: 610105 | H24: 70105 | J24: 70105#1 | L24: 70105#1 | M24: 70105#1|14#180|3#18 | N24: 5 | U24: 26022
B25: 14#180|3#18 | C25: 26023 | D25: 简单-5-2 | E25: 610205 | G25: 610205 | H25: 70205 | J25: 70205#1 | L25: 70205#1 | M25: 70205#1|14#180|3#18 | N25: 5 | U25: 26023
B26: 14#180|3#18 | C26: 26024 | D26: 简单-5-3 | E26: 610305 | G26: 610305 | H26: 70305 | J26: 70305#1 | L26: 70305#1 | M26: 70305#1|14#180|3#18 | N26: 5 | U26: 26024
B27: 14#180|3#18 | C27: 26025 | D27: 简单-5-4 | E27: 610405 | G27: 610405 | H27: 70405 | J27: 70405#1 | L27: 70405#1 | M27: 70405#1|14#180|3#18 | N27: 5 | U27: 26025
B28: 14#180|3#18 | C28: 26026 | D28: 简单-5-5 | E28: 610505 | G28: 610505 | H28: 70505 | J28: 70505#1 | L28: 70505#1 | M28: 70505#1|14#180|3#18 | N28: 5 | U28: 26026
B29: 14#200|3#20 | C29: 26027 | D29: 简单-6-1 | E29: 610106 | G29: 610106 | H29: 70106 | J29: 70106#1 | L29: 70106#1 | M29: 70106#1|14#200|3#20 | N29: 6 | V29: 26027
B30: 14#200|3#20 | C30: 26028 | D30: 简单-6-2 | E30: 610206 | G30: 610206 | H30: 70206 | J30: 70206#1 | L30: 70206#1 | M30: 70206#1|14#200|3#20 | N30: 6 | V30: 26028
B31: 14#200|3#20 | C31: 26029 | D31: 简单-6-3 | E31: 610306 | G31: 610306 | H31: 70306 | J31: 70306#1 | L31: 70306#1 | M31: 70306#1|14#200|3#20 | N31: 6 | V31: 26029
B32: 14#200|3#20 | C32: 26030 | D32: 简单-6-4 | E32: 610406 | G32: 610406 | H32: 70406 | J32: 70406#1 | L32: 70406#1 | M32: 70406#1|14#200|3#20 | N32: 6 | V32: 26030
B33: 14#200|3#20 | C33: 26031 | D33: 简单-6-5 | E33: 610506 | G33: 610506 | H33: 70506 | J33: 70506#1 | L33: 70506#1 | M33: 70506#1|14#200|3#20 | N33: 6 | V33: 26031
B34: 14#220|3#22 | C34: 26032 | D34: 简单-7-1 | E34: 610106 | F34: 610101 | G34: 610106 | H34: 70106 | I34: 70101 | J34: 70106#1 | K34: 70101#1 | L34: 70106#1|70101#1 | M34: 70106#1|70101#1|14#220|3#22 | N34: 6 | O34: 1 | V34: 26032 | AQ34: 26032
B35: 14#220|3#22 | C35: 26033 | D35: 简单-7-2 | E35: 610206 | F35: 610201 | G35: 610206 | H35: 70206 | I35: 70201 | J35: 70206#1 | K35: 70201#1 | L35: 70206#1|70201#1 | M35: 70206#1|70201#1|14#220|3#22 | N35: 6 | O35: 1 | V35: 26033 | AQ35: 26033
B36: 14#220|3#22 | C36: 26034 | D36: 简单-7-3 | E36: 610306 | F36: 610301 | G36: 610306 | H36: 70306 | I36: 70301 | J36: 70306#1 | K36: 70301#1 | L36: 70306#1|70301#1 | M36: =L36&"|"&B36 -> 70306#1|70301#1|14#220|3#22 | N36: 6 | O36: 1 | V36: 26034 | AQ36: 26034
B37: 14#220|3#22 | C37: 26035 | D37: 简单-7-4 | E37: 610406 | F37: 610401 | G37: 610406 | H37: 70406 | I37: 70401 | J37: 70406#1 | K37: 70401#1 | L37: 70406#1|70401#1 | M37: 70406#1|70401#1|14#220|3#22 | N37: 6 | O37: 1 | Q37: =IF($N37=Q$3,$C37,"") ->  | R37: =IF($N37=R$3,$C37,"") ->  | S37: =IF($N37=S$3,$C37,"") ->  | T37: =IF($N37=T$3,$C37,"") ->  | U37: =IF($N37=U$3,$C37,"") ->  | V37: =IF($N37=V$3,$C37,"") -> 26035 | W37: =IF($N37=W$3,$C37,"") ->  | X37: =IF($N37=X$3,$C37,"") ->  | Y37: =IF($N37=Y$3,$C37,"") ->  | Z37: =IF($N37=Z$3,$C37,"") ->  | AA37: =IF($N37=AA$3,$C37,"") ->  | AB37: =IF($N37=AB$3,$C37,"") ->  | AC37: =IF($N37=AC$3,$C37,"") ->  | AD37: =IF($N37=AD$3,$C37,"") ->  | AE37: =IF($N37=AE$3,$C37,"") ->  | AF37: =IF($N37=AF$3,$C37,"") ->  | AG37: =IF($N37=AG$3,$C37,"") ->  | AH37: =IF($N37=AH$3,$C37,"") ->  | AI37: =IF($N37=AI$3,$C37,"") ->  | AJ37: =IF($N37=AJ$3,$C37,"") ->  | AK37: =IF($N37=AK$3,$C37,"") ->  | AL37: =IF($N37=AL$3,$C37,"") ->  | AM37: =IF($N37=AM$3,$C37,"") ->  | AN37: =IF($N37=AN$3,$C37,"") ->  | AQ37: =IF($O37=AQ$3,$C37,"") -> 26035 | AR37: =IF($O37=AR$3,$C37,"") ->  | AS37: =IF($O37=AS$3,$C37,"") ->  | AT37: =IF($O37=AT$3,$C37,"") ->  | AU37: =IF($O37=AU$3,$C37,"") ->  | AV37: =IF($O37=AV$3,$C37,"") ->  | AW37: =IF($O37=AW$3,$C37,"") ->  | AX37: =IF($O37=AX$3,$C37,"") ->  | AY37: =IF($O37=AY$3,$C37,"") ->  | AZ37: =IF($O37=AZ$3,$C37,"") ->  | BA37: =IF($O37=BA$3,$C37,"") ->  | BB37: =IF($O37=BB$3,$C37,"") ->  | BC37: =IF($O37=BC$3,$C37,"") ->  | BD37: =IF($O37=BD$3,$C37,"") ->  | BE37: =IF($O37=BE$3,$C37,"") ->  | BF37: =IF($O37=BF$3,$C37,"") ->  | BG37: =IF($O37=BG$3,$C37,"") ->  | BH37: =IF($O37=BH$3,$C37,"") ->  | BI37: =IF($O37=BI$3,$C37,"") ->  | BJ37: =IF($O37=BJ$3,$C37,"") ->  | BK37: =IF($O37=BK$3,$C37,"") ->  | BL37: =IF($O37=BL$3,$C37,"") ->  | BM37: =IF($O37=BM$3,$C37,"") ->  | BN37: =IF($O37=BN$3,$C37,"") -> 
B38: 14#220|3#22 | C38: 26036 | D38: 简单-7-5 | E38: 610506 | F38: 610501 | G38: 610506 | H38: 70506 | I38: 70501 | J38: 70506#1 | K38: 70501#1 | L38: 70506#1|70501#1 | M38: 70506#1|70501#1|14#220|3#22 | N38: 6 | O38: 1 | V38: 26036 | AQ38: 26036
B39: 14#240|3#24 | C39: 26037 | D39: 简单-8-1 | E39: 610107 | F39: 610102 | G39: 610107#610101 | H39: 70107 | I39: 70102 | J39: 70107#1 | K39: 70102#1 | L39: 70107#1|70102#1 | M39: 70107#1|70102#1|14#240|3#24 | N39: 7 | O39: 2 | W39: 26037 | AR39: 26037
B40: 14#240|3#24 | C40: 26038 | D40: 简单-8-2 | E40: 610207 | F40: 610202 | G40: 610207#610201 | H40: 70207 | I40: 70202 | J40: 70207#1 | K40: 70202#1 | L40: 70207#1|70202#1 | M40: 70207#1|70202#1|14#240|3#24 | N40: 7 | O40: 2 | W40: 26038 | AR40: 26038
B41: 14#240|3#24 | C41: 26039 | D41: 简单-8-3 | E41: 610307 | F41: 610302 | G41: 610307#610301 | H41: 70307 | I41: 70302 | J41: 70307#1 | K41: 70302#1 | L41: 70307#1|70302#1 | M41: 70307#1|70302#1|14#240|3#24 | N41: 7 | O41: 2 | W41: 26039 | AR41: 26039
B42: 14#240|3#24 | C42: 26040 | D42: 简单-8-4 | E42: 610407 | F42: 610402 | G42: 610407#610401 | H42: 70407 | I42: 70402 | J42: 70407#1 | K42: 70402#1 | L42: 70407#1|70402#1 | M42: 70407#1|70402#1|14#240|3#24 | N42: 7 | O42: 2 | W42: 26040 | AR42: 26040
B43: 14#240|3#24 | C43: 26041 | D43: 简单-8-5 | E43: 610507 | F43: 610502 | G43: 610507#610501 | H43: 70507 | I43: 70502 | J43: 70507#1 | K43: 70502#1 | L43: 70507#1|70502#1 | M43: 70507#1|70502#1|14#240|3#24 | N43: 7 | O43: 2 | W43: 26041 | AR43: 26041
B44: 14#260|3#26 | C44: 26042 | D44: 简单-9-1 | E44: 610108 | G44: 610107#610102 | H44: 70108 | J44: 70108#1 | L44: 70108#1 | M44: 70108#1|14#260|3#26 | N44: 8 | X44: 26042
B45: 14#260|3#26 | C45: 26043 | D45: 简单-9-2 | E45: 610208 | G45: 610207#610202 | H45: 70208 | J45: 70208#1 | L45: 70208#1 | M45: 70208#1|14#260|3#26 | N45: 8 | X45: 26043
B46: 14#260|3#26 | C46: 26044 | D46: 简单-9-3 | E46: 610308 | G46: 610307#610302 | H46: 70308 | J46: 70308#1 | L46: 70308#1 | M46: 70308#1|14#260|3#26 | N46: 8 | X46: 26044
B47: 14#260|3#26 | C47: 26045 | D47: 简单-9-4 | E47: 610408 | G47: 610407#610402 | H47: 70408 | J47: 70408#1 | L47: 70408#1 | M47: 70408#1|14#260|3#26 | N47: 8 | X47: 26045
B48: 14#260|3#26 | C48: 26046 | D48: 简单-9-5 | E48: 610508 | G48: 610507#610502 | H48: 70508 | J48: 70508#1 | L48: 70508#1 | M48: 70508#1|14#260|3#26 | N48: 8 | X48: 26046
B49: 14#280|3#28 | C49: 26047 | D49: 简单-10-1 | E49: 610108 | F49: 610101 | G49: 610108#610103 | H49: 70108 | I49: 70101 | J49: 70108#1 | K49: 70101#1 | L49: 70108#1|70101#1 | M49: 70108#1|70101#1|14#280|3#28 | N49: 8 | O49: 1 | X49: 26047 | AQ49: 26047
B50: 14#280|3#28 | C50: 26048 | D50: 简单-10-2 | E50: 610208 | F50: 610201 | G50: 610208#610203 | H50: 70208 | I50: 70201 | J50: 70208#1 | K50: 70201#1 | L50: 70208#1|70201#1 | M50: 70208#1|70201#1|14#280|3#28 | N50: 8 | O50: 1 | X50: 26048 | AQ50: 26048
B51: 14#280|3#28 | C51: 26049 | D51: 简单-10-3 | E51: 610308 | F51: 610301 | G51: 610308#610303 | H51: 70308 | I51: 70301 | J51: 70308#1 | K51: 70301#1 | L51: 70308#1|70301#1 | M51: 70308#1|70301#1|14#280|3#28 | N51: 8 | O51: 1 | X51: 26049 | AQ51: 26049
B52: 14#280|3#28 | C52: 26050 | D52: 简单-10-4 | E52: 610408 | F52: 610401 | G52: 610408#610403 | H52: 70408 | I52: 70401 | J52: 70408#1 | K52: 70401#1 | L52: 70408#1|70401#1 | M52: 70408#1|70401#1|14#280|3#28 | N52: =--RIGHT(E52,2) -> 8 | O52: =IFERROR(--RIGHT(F52,2),"") -> 1 | X52: 26050 | AQ52: 26050
B53: 14#280|3#28 | C53: 26051 | D53: 简单-10-5 | E53: 610508 | F53: 610501 | G53: 610508#610503 | H53: 70508 | I53: 70501 | J53: 70508#1 | K53: 70501#1 | L53: 70508#1|70501#1 | M53: 70508#1|70501#1|14#280|3#28 | N53: 8 | O53: 1 | X53: 26051 | AQ53: 26051
B54: 14#300|3#30 | C54: 26052 | D54: 简单-11-1 | E54: 610108 | G54: 610108#610104 | H54: 70108 | J54: 70108#1 | L54: 70108#1 | M54: 70108#1|14#300|3#30 | N54: 8 | X54: 26052
B55: 14#300|3#30 | C55: 26053 | D55: 简单-11-2 | E55: 610208 | G55: 610208#610204 | H55: 70208 | J55: 70208#1 | L55: 70208#1 | M55: 70208#1|14#300|3#30 | N55: 8 | X55: 26053
B56: 14#300|3#30 | C56: 26054 | D56: 简单-11-3 | E56: 610308 | G56: 610308#610304 | H56: 70308 | J56: 70308#1 | L56: 70308#1 | M56: 70308#1|14#300|3#30 | N56: 8 | X56: 26054
B57: 14#300|3#30 | C57: 26055 | D57: 简单-11-4 | E57: 610408 | G57: 610408#610404 | H57: 70408 | J57: 70408#1 | L57: 70408#1 | M57: 70408#1|14#300|3#30 | N57: 8 | X57: 26055
B58: 14#300|3#30 | C58: 26056 | D58: 简单-11-5 | E58: 610508 | G58: 610508#610504 | H58: 70508 | J58: 70508#1 | L58: 70508#1 | M58: 70508#1|14#300|3#30 | N58: 8 | X58: 26056
B59: 14#320|3#32 | C59: 26057 | D59: 简单-12-1 | E59: 610109 | F59: 610102 | G59: 610109#610105 | H59: 70109 | I59: 70102 | J59: 70109#1 | K59: 70102#1 | L59: 70109#1|70102#1 | M59: 70109#1|70102#1|14#320|3#32 | N59: 9 | O59: 2 | Y59: 26057 | AR59: 26057
B60: 14#320|3#32 | C60: 26058 | D60: 简单-12-2 | E60: 610209 | F60: 610202 | G60: 610209#610205 | H60: 70209 | I60: 70202 | J60: 70209#1 | K60: 70202#1 | L60: 70209#1|70202#1 | M60: 70209#1|70202#1|14#320|3#32 | N60: 9 | O60: 2 | Y60: 26058 | AR60: 26058
B61: 14#320|3#32 | C61: 26059 | D61: 简单-12-3 | E61: 610309 | F61: 610302 | G61: 610309#610305 | H61: 70309 | I61: 70302 | J61: 70309#1 | K61: 70302#1 | L61: 70309#1|70302#1 | M61: 70309#1|70302#1|14#320|3#32 | N61: 9 | O61: 2 | Y61: 26059 | AR61: 26059
B62: 14#320|3#32 | C62: 26060 | D62: 简单-12-4 | E62: 610409 | F62: 610402 | G62: 610409#610405 | H62: 70409 | I62: 70402 | J62: 70409#1 | K62: 70402#1 | L62: 70409#1|70402#1 | M62: 70409#1|70402#1|14#320|3#32 | N62: 9 | O62: 2 | Y62: 26060 | AR62: 26060
B63: 14#320|3#32 | C63: 26061 | D63: 简单-12-5 | E63: 610509 | F63: 610502 | G63: 610509#610505 | H63: 70509 | I63: 70502 | J63: 70509#1 | K63: 70502#1 | L63: 70509#1|70502#1 | M63: 70509#1|70502#1|14#320|3#32 | N63: 9 | O63: 2 | Y63: 26061 | AR63: 26061
B64: 14#340|3#34 | C64: 26062 | D64: 简单-13-1 | E64: 610109 | G64: 610109#610106 | H64: 70109 | J64: 70109#1 | L64: 70109#1 | M64: 70109#1|14#340|3#34 | N64: 9 | Y64: 26062
B65: 14#340|3#34 | C65: 26063 | D65: 简单-13-2 | E65: 610209 | G65: 610209#610206 | H65: 70209 | J65: 70209#1 | L65: 70209#1 | M65: 70209#1|14#340|3#34 | N65: 9 | Y65: 26063
B66: 14#340|3#34 | C66: 26064 | D66: 简单-13-3 | E66: 610309 | G66: 610309#610306 | H66: 70309 | J66: 70309#1 | L66: 70309#1 | M66: 70309#1|14#340|3#34 | N66: 9 | Y66: 26064
B67: 14#340|3#34 | C67: 26065 | D67: 简单-13-4 | E67: 610409 | G67: 610409#610406 | H67: 70409 | J67: 70409#1 | L67: 70409#1 | M67: 70409#1|14#340|3#34 | N67: 9 | Y67: 26065
B68: 14#340|3#34 | C68: 26066 | D68: 简单-13-5 | E68: 610509 | G68: 610509#610506 | H68: 70509 | J68: 70509#1 | L68: 70509#1 | M68: 70509#1|14#340|3#34 | N68: 9 | Y68: 26066
B69: 14#360|3#36 | C69: 26067 | D69: 简单-14-1 | E69: 610110 | F69: 610101 | G69: 610110#610103 | H69: =$H$3&RIGHT(E69,4) -> 70110 | I69: =IF(F69="","",$I$3&RIGHT(F69,4)) -> 70101 | J69: =H69&"#1" -> 70110#1 | K69: =IF(I69="","",I69&"#1") -> 70101#1 | L69: =IF(K69="",J69,J69&"|"&K69) -> 70110#1|70101#1 | M69: 70110#1|70101#1|14#360|3#36 | N69: 10 | O69: 1 | Q69: =IF($N69=Q$3,$C69,"") ->  | R69: =IF($N69=R$3,$C69,"") ->  | S69: =IF($N69=S$3,$C69,"") ->  | T69: =IF($N69=T$3,$C69,"") ->  | U69: =IF($N69=U$3,$C69,"") ->  | V69: =IF($N69=V$3,$C69,"") ->  | W69: =IF($N69=W$3,$C69,"") ->  | X69: =IF($N69=X$3,$C69,"") ->  | Y69: =IF($N69=Y$3,$C69,"") ->  | Z69: =IF($N69=Z$3,$C69,"") -> 26067 | AA69: =IF($N69=AA$3,$C69,"") ->  | AB69: =IF($N69=AB$3,$C69,"") ->  | AC69: =IF($N69=AC$3,$C69,"") ->  | AD69: =IF($N69=AD$3,$C69,"") ->  | AE69: =IF($N69=AE$3,$C69,"") ->  | AF69: =IF($N69=AF$3,$C69,"") ->  | AG69: =IF($N69=AG$3,$C69,"") ->  | AH69: =IF($N69=AH$3,$C69,"") ->  | AI69: =IF($N69=AI$3,$C69,"") ->  | AJ69: =IF($N69=AJ$3,$C69,"") ->  | AK69: =IF($N69=AK$3,$C69,"") ->  | AL69: =IF($N69=AL$3,$C69,"") ->  | AM69: =IF($N69=AM$3,$C69,"") ->  | AN69: =IF($N69=AN$3,$C69,"") ->  | AO69: =IF($N69=AO$3,$C69,"") ->  | AP69: =IF($N69=AP$3,$C69,"") ->  | AQ69: =IF($O69=AQ$3,$C69,"") -> 26067 | AR69: =IF($O69=AR$3,$C69,"") ->  | AS69: =IF($O69=AS$3,$C69,"") ->  | AT69: =IF($O69=AT$3,$C69,"") ->  | AU69: =IF($O69=AU$3,$C69,"") ->  | AV69: =IF($O69=AV$3,$C69,"") ->  | AW69: =IF($O69=AW$3,$C69,"") ->  | AX69: =IF($O69=AX$3,$C69,"") ->  | AY69: =IF($O69=AY$3,$C69,"") ->  | AZ69: =IF($O69=AZ$3,$C69,"") ->  | BA69: =IF($O69=BA$3,$C69,"") ->  | BB69: =IF($O69=BB$3,$C69,"") ->  | BC69: =IF($O69=BC$3,$C69,"") ->  | BD69: =IF($O69=BD$3,$C69,"") ->  | BE69: =IF($O69=BE$3,$C69,"") ->  | BF69: =IF($O69=BF$3,$C69,"") ->  | BG69: =IF($O69=BG$3,$C69,"") ->  | BH69: =IF($O69=BH$3,$C69,"") ->  | BI69: =IF($O69=BI$3,$C69,"") ->  | BJ69: =IF($O69=BJ$3,$C69,"") ->  | BK69: =IF($O69=BK$3,$C69,"") ->  | BL69: =IF($O69=BL$3,$C69,"") ->  | BM69: =IF($O69=BM$3,$C69,"") ->  | BN69: =IF($O69=BN$3,$C69,"") ->  | BO69: =IF($O69=BO$3,$C69,"") ->  | BP69: =IF($O69=BP$3,$C69,"") -> 
B70: 14#360|3#36 | C70: 26068 | D70: 简单-14-2 | E70: 610210 | F70: 610201 | G70: 610210#610203 | H70: 70210 | I70: 70201 | J70: 70210#1 | K70: 70201#1 | L70: 70210#1|70201#1 | M70: 70210#1|70201#1|14#360|3#36 | N70: 10 | O70: 1 | Z70: 26068 | AQ70: 26068
B71: 14#360|3#36 | C71: 26069 | D71: 简单-14-3 | E71: 610310 | F71: 610301 | G71: 610310#610303 | H71: 70310 | I71: 70301 | J71: 70310#1 | K71: 70301#1 | L71: 70310#1|70301#1 | M71: 70310#1|70301#1|14#360|3#36 | N71: 10 | O71: 1 | Z71: 26069 | AQ71: 26069
B72: 14#360|3#36 | C72: 26070 | D72: 简单-14-4 | E72: 610410 | F72: 610401 | G72: 610410#610403 | H72: 70410 | I72: 70401 | J72: 70410#1 | K72: 70401#1 | L72: 70410#1|70401#1 | M72: 70410#1|70401#1|14#360|3#36 | N72: 10 | O72: 1 | Z72: 26070 | AQ72: 26070
B73: 14#360|3#36 | C73: 26071 | D73: 简单-14-5 | E73: 610510 | F73: 610501 | G73: 610510#610503 | H73: 70510 | I73: 70501 | J73: 70510#1 | K73: 70501#1 | L73: 70510#1|70501#1 | M73: 70510#1|70501#1|14#360|3#36 | N73: 10 | O73: 1 | Z73: 26071 | AQ73: 26071
B74: 14#380|3#38 | C74: 26072 | D74: 简单-15-1 | E74: 610110 | F74: 610102 | G74: 610110#610104 | H74: 70110 | I74: 70102 | J74: 70110#1 | K74: 70102#1 | L74: 70110#1|70102#1 | M74: 70110#1|70102#1|14#380|3#38 | N74: 10 | O74: 2 | Z74: 26072 | AR74: 26072
B75: 14#380|3#38 | C75: 26073 | D75: 简单-15-2 | E75: 610210 | F75: 610202 | G75: 610210#610204 | H75: 70210 | I75: 70202 | J75: 70210#1 | K75: 70202#1 | L75: 70210#1|70202#1 | M75: 70210#1|70202#1|14#380|3#38 | N75: 10 | O75: 2 | Z75: 26073 | AR75: 26073
B76: 14#380|3#38 | C76: 26074 | D76: 简单-15-3 | E76: 610310 | F76: 610302 | G76: 610310#610304 | H76: 70310 | I76: 70302 | J76: 70310#1 | K76: 70302#1 | L76: 70310#1|70302#1 | M76: 70310#1|70302#1|14#380|3#38 | N76: 10 | O76: 2 | Z76: 26074 | AR76: 26074
B77: 14#380|3#38 | C77: 26075 | D77: 简单-15-4 | E77: 610410 | F77: 610402 | G77: 610410#610404 | H77: 70410 | I77: 70402 | J77: 70410#1 | K77: 70402#1 | L77: 70410#1|70402#1 | M77: 70410#1|70402#1|14#380|3#38 | N77: 10 | O77: 2 | Z77: 26075 | AR77: 26075
B78: 14#380|3#38 | C78: 26076 | D78: 简单-15-5 | E78: 610510 | F78: 610502 | G78: 610510#610504 | H78: 70510 | I78: 70502 | J78: 70510#1 | K78: 70502#1 | L78: 70510#1|70502#1 | M78: 70510#1|70502#1|14#380|3#38 | N78: 10 | O78: 2 | Z78: 26076 | AR78: 26076
B79: 14#180|3#18 | C79: 260101 | D79: 普通-1-1 | E79: 610111 | F79: 610103 | G79: =_xlfn.TEXTJOIN("#",TRUE,E79:F79) -> 610111#610103 | H79: 70111 | I79: 70103 | J79: 70111#1 | K79: 70103#1 | L79: 70111#1|70103#1 | M79: =L79&"|"&B79 -> 70111#1|70103#1|14#180|3#18 | N79: 11 | O79: 3 | AA79: 260101 | AS79: 260101
B80: 14#180|3#18 | C80: 260102 | D80: 普通-1-2 | E80: 610211 | F80: 610203 | G80: =_xlfn.TEXTJOIN("#",TRUE,E80:F80) -> 610211#610203 | H80: 70211 | I80: 70203 | J80: 70211#1 | K80: 70203#1 | L80: 70211#1|70203#1 | M80: 70211#1|70203#1|14#180|3#18 | N80: 11 | O80: 3 | AA80: 260102 | AS80: 260102
B81: 14#180|3#18 | C81: 260103 | D81: 普通-1-3 | E81: 610311 | F81: 610303 | G81: 610311#610303 | H81: 70311 | I81: 70303 | J81: 70311#1 | K81: 70303#1 | L81: 70311#1|70303#1 | M81: 70311#1|70303#1|14#180|3#18 | N81: 11 | O81: 3 | AA81: 260103 | AS81: 260103
B82: 14#180|3#18 | C82: 260104 | D82: 普通-1-4 | E82: 610411 | F82: 610403 | G82: 610411#610403 | H82: 70411 | I82: 70403 | J82: 70411#1 | K82: 70403#1 | L82: 70411#1|70403#1 | M82: 70411#1|70403#1|14#180|3#18 | N82: 11 | O82: 3 | AA82: 260104 | AS82: 260104
B83: 14#180|3#18 | C83: 260105 | D83: 普通-1-5 | E83: 610511 | F83: 610503 | G83: 610511#610503 | H83: 70511 | I83: 70503 | J83: 70511#1 | K83: 70503#1 | L83: 70511#1|70503#1 | M83: 70511#1|70503#1|14#180|3#18 | N83: 11 | O83: 3 | AA83: 260105 | AS83: 260105
B84: 14#200|3#20 | C84: 260201 | D84: 普通-2-1 | E84: 610111 | G84: 610111 | H84: 70111 | J84: 70111#1 | L84: 70111#1 | M84: 70111#1|14#200|3#20 | N84: =--RIGHT(E84,2) -> 11 | O84: =IFERROR(--RIGHT(F84,2),"") ->  | AA84: 260201
B85: 14#200|3#20 | C85: 260202 | D85: 普通-2-2 | E85: 610211 | G85: 610211 | H85: 70211 | J85: 70211#1 | L85: 70211#1 | M85: 70211#1|14#200|3#20 | N85: 11 | AA85: 260202
B86: 14#200|3#20 | C86: 260203 | D86: 普通-2-3 | E86: 610311 | G86: 610311 | H86: 70311 | J86: 70311#1 | L86: 70311#1 | M86: 70311#1|14#200|3#20 | N86: 11 | AA86: 260203
B87: 14#200|3#20 | C87: 260204 | D87: 普通-2-4 | E87: 610411 | G87: 610411 | H87: 70411 | J87: 70411#1 | L87: 70411#1 | M87: 70411#1|14#200|3#20 | N87: 11 | AA87: 260204
B88: 14#200|3#20 | C88: 260205 | D88: 普通-2-5 | E88: 610511 | G88: 610511 | H88: 70511 | J88: 70511#1 | L88: 70511#1 | M88: 70511#1|14#200|3#20 | N88: 11 | AA88: 260205
B89: 14#220|3#22 | C89: 260301 | D89: 普通-3-1 | E89: 610111 | G89: 610111 | H89: 70111 | J89: 70111#1 | L89: 70111#1 | M89: 70111#1|14#220|3#22 | N89: 11 | AA89: 260301
B90: 14#220|3#22 | C90: 260302 | D90: 普通-3-2 | E90: 610211 | G90: 610211 | H90: 70211 | J90: 70211#1 | L90: 70211#1 | M90: 70211#1|14#220|3#22 | N90: 11 | AA90: 260302
B91: 14#220|3#22 | C91: 260303 | D91: 普通-3-3 | E91: 610311 | G91: 610311 | H91: 70311 | J91: 70311#1 | L91: 70311#1 | M91: 70311#1|14#220|3#22 | N91: 11 | AA91: 260303
B92: 14#220|3#22 | C92: 260304 | D92: 普通-3-4 | E92: 610411 | G92: 610411 | H92: 70411 | J92: 70411#1 | L92: 70411#1 | M92: 70411#1|14#220|3#22 | N92: 11 | AA92: 260304
B93: 14#220|3#22 | C93: 260305 | D93: 普通-3-5 | E93: 610511 | G93: 610511 | H93: 70511 | J93: 70511#1 | L93: 70511#1 | M93: 70511#1|14#220|3#22 | N93: 11 | AA93: 260305
B94: 14#240|3#24 | C94: 260401 | D94: 普通-4-1 | E94: 610112 | G94: 610112 | H94: 70112 | J94: 70112#1 | L94: 70112#1 | M94: 70112#1|14#240|3#24 | N94: 12 | AB94: 260401
B95: 14#240|3#24 | C95: 260402 | D95: 普通-4-2 | E95: 610212 | G95: 610212 | H95: 70212 | J95: 70212#1 | L95: 70212#1 | M95: 70212#1|14#240|3#24 | N95: 12 | AB95: 260402
B96: 14#240|3#24 | C96: 260403 | D96: 普通-4-3 | E96: 610312 | G96: 610312 | H96: 70312 | J96: 70312#1 | L96: 70312#1 | M96: 70312#1|14#240|3#24 | N96: 12 | AB96: 260403
B97: 14#240|3#24 | C97: 260404 | D97: 普通-4-4 | E97: 610412 | G97: 610412 | H97: 70412 | J97: 70412#1 | L97: 70412#1 | M97: 70412#1|14#240|3#24 | N97: 12 | AB97: 260404
B98: 14#240|3#24 | C98: 260405 | D98: 普通-4-5 | E98: 610512 | G98: 610512 | H98: 70512 | J98: 70512#1 | L98: 70512#1 | M98: 70512#1|14#240|3#24 | N98: 12 | AB98: 260405
B99: 14#260|3#26 | C99: 260501 | D99: 普通-5-1 | E99: 610112 | G99: 610112 | H99: 70112 | J99: 70112#1 | L99: 70112#1 | M99: 70112#1|14#260|3#26 | N99: 12 | AB99: 260501
B100: 14#260|3#26 | C100: 260502 | D100: 普通-5-2 | E100: 610212 | G100: 610212 | H100: 70212 | J100: 70212#1 | L100: 70212#1 | M100: 70212#1|14#260|3#26 | N100: 12 | AB100: 260502
B101: 14#260|3#26 | C101: 260503 | D101: 普通-5-3 | E101: 610312 | G101: 610312 | H101: 70312 | J101: 70312#1 | L101: 70312#1 | M101: 70312#1|14#260|3#26 | N101: 12 | Q101: =IF($N101=Q$3,$C101,"") ->  | R101: =IF($N101=R$3,$C101,"") ->  | S101: =IF($N101=S$3,$C101,"") ->  | T101: =IF($N101=T$3,$C101,"") ->  | U101: =IF($N101=U$3,$C101,"") ->  | V101: =IF($N101=V$3,$C101,"") ->  | W101: =IF($N101=W$3,$C101,"") ->  | X101: =IF($N101=X$3,$C101,"") ->  | Y101: =IF($N101=Y$3,$C101,"") ->  | Z101: =IF($N101=Z$3,$C101,"") ->  | AA101: =IF($N101=AA$3,$C101,"") ->  | AB101: =IF($N101=AB$3,$C101,"") -> 260503 | AC101: =IF($N101=AC$3,$C101,"") ->  | AD101: =IF($N101=AD$3,$C101,"") ->  | AE101: =IF($N101=AE$3,$C101,"") ->  | AF101: =IF($N101=AF$3,$C101,"") ->  | AG101: =IF($N101=AG$3,$C101,"") ->  | AH101: =IF($N101=AH$3,$C101,"") ->  | AI101: =IF($N101=AI$3,$C101,"") ->  | AJ101: =IF($N101=AJ$3,$C101,"") ->  | AK101: =IF($N101=AK$3,$C101,"") ->  | AL101: =IF($N101=AL$3,$C101,"") ->  | AM101: =IF($N101=AM$3,$C101,"") ->  | AN101: =IF($N101=AN$3,$C101,"") ->  | AQ101: =IF($O101=AQ$3,$C101,"") ->  | AR101: =IF($O101=AR$3,$C101,"") ->  | AS101: =IF($O101=AS$3,$C101,"") ->  | AT101: =IF($O101=AT$3,$C101,"") ->  | AU101: =IF($O101=AU$3,$C101,"") ->  | AV101: =IF($O101=AV$3,$C101,"") ->  | AW101: =IF($O101=AW$3,$C101,"") ->  | AX101: =IF($O101=AX$3,$C101,"") ->  | AY101: =IF($O101=AY$3,$C101,"") ->  | AZ101: =IF($O101=AZ$3,$C101,"") ->  | BA101: =IF($O101=BA$3,$C101,"") ->  | BB101: =IF($O101=BB$3,$C101,"") ->  | BC101: =IF($O101=BC$3,$C101,"") ->  | BD101: =IF($O101=BD$3,$C101,"") ->  | BE101: =IF($O101=BE$3,$C101,"") ->  | BF101: =IF($O101=BF$3,$C101,"") ->  | BG101: =IF($O101=BG$3,$C101,"") ->  | BH101: =IF($O101=BH$3,$C101,"") ->  | BI101: =IF($O101=BI$3,$C101,"") ->  | BJ101: =IF($O101=BJ$3,$C101,"") ->  | BK101: =IF($O101=BK$3,$C101,"") ->  | BL101: =IF($O101=BL$3,$C101,"") ->  | BM101: =IF($O101=BM$3,$C101,"") ->  | BN101: =IF($O101=BN$3,$C101,"") -> 
B102: 14#260|3#26 | C102: 260504 | D102: 普通-5-4 | E102: 610412 | G102: 610412 | H102: 70412 | J102: 70412#1 | L102: 70412#1 | M102: 70412#1|14#260|3#26 | N102: 12 | AB102: 260504
B103: 14#260|3#26 | C103: 260505 | D103: 普通-5-5 | E103: 610512 | G103: 610512 | H103: 70512 | J103: 70512#1 | L103: 70512#1 | M103: 70512#1|14#260|3#26 | N103: 12 | AB103: 260505
B104: 14#280|3#28 | C104: 260601 | D104: 普通-6-1 | E104: 610112 | F104: 610101 | G104: 610112#610101 | H104: 70112 | I104: 70101 | J104: 70112#1 | K104: 70101#1 | L104: 70112#1|70101#1 | M104: 70112#1|70101#1|14#280|3#28 | N104: 12 | O104: 1 | AB104: 260601 | AQ104: 260601
B105: 14#280|3#28 | C105: 260602 | D105: 普通-6-2 | E105: 610212 | F105: 610201 | G105: 610212#610201 | H105: 70212 | I105: 70201 | J105: 70212#1 | K105: 70201#1 | L105: 70212#1|70201#1 | M105: 70212#1|70201#1|14#280|3#28 | N105: 12 | O105: 1 | AB105: 260602 | AQ105: 260602
B106: 14#280|3#28 | C106: 260603 | D106: 普通-6-3 | E106: 610312 | F106: 610301 | G106: 610312#610301 | H106: 70312 | I106: 70301 | J106: 70312#1 | K106: 70301#1 | L106: 70312#1|70301#1 | M106: 70312#1|70301#1|14#280|3#28 | N106: 12 | O106: 1 | AB106: 260603 | AQ106: 260603
B107: 14#280|3#28 | C107: 260604 | D107: 普通-6-4 | E107: 610412 | F107: 610401 | G107: 610412#610401 | H107: 70412 | I107: 70401 | J107: 70412#1 | K107: 70401#1 | L107: 70412#1|70401#1 | M107: 70412#1|70401#1|14#280|3#28 | N107: 12 | O107: 1 | AB107: 260604 | AQ107: 260604
B108: 14#280|3#28 | C108: 260605 | D108: 普通-6-5 | E108: 610512 | F108: 610501 | G108: 610512#610501 | H108: 70512 | I108: 70501 | J108: 70512#1 | K108: 70501#1 | L108: 70512#1|70501#1 | M108: 70512#1|70501#1|14#280|3#28 | N108: 12 | O108: 1 | AB108: 260605 | AQ108: 260605
B109: 14#300|3#30 | C109: 260701 | D109: 普通-7-1 | E109: 610113 | F109: 610102 | G109: 610113#610102 | H109: 70113 | I109: 70102 | J109: 70113#1 | K109: 70102#1 | L109: 70113#1|70102#1 | M109: 70113#1|70102#1|14#300|3#30 | N109: 13 | O109: 2 | AC109: 260701 | AR109: 260701
B110: 14#300|3#30 | C110: 260702 | D110: 普通-7-2 | E110: 610213 | F110: 610202 | G110: 610213#610202 | H110: 70213 | I110: 70202 | J110: 70213#1 | K110: 70202#1 | L110: 70213#1|70202#1 | M110: 70213#1|70202#1|14#300|3#30 | N110: 13 | O110: 2 | AC110: 260702 | AR110: 260702
B111: 14#300|3#30 | C111: 260703 | D111: 普通-7-3 | E111: 610313 | F111: 610302 | G111: 610313#610302 | H111: 70313 | I111: 70302 | J111: 70313#1 | K111: 70302#1 | L111: 70313#1|70302#1 | M111: =L111&"|"&B111 -> 70313#1|70302#1|14#300|3#30 | N111: 13 | O111: 2 | AC111: 260703 | AR111: 260703
B112: 14#300|3#30 | C112: 260704 | D112: 普通-7-4 | E112: 610413 | F112: 610402 | G112: =_xlfn.TEXTJOIN("#",TRUE,E112:F112) -> 610413#610402 | H112: 70413 | I112: 70402 | J112: 70413#1 | K112: 70402#1 | L112: 70413#1|70402#1 | M112: 70413#1|70402#1|14#300|3#30 | N112: 13 | O112: 2 | AC112: 260704 | AR112: 260704
B113: 14#300|3#30 | C113: 260705 | D113: 普通-7-5 | E113: 610513 | F113: 610502 | G113: 610513#610502 | H113: 70513 | I113: 70502 | J113: 70513#1 | K113: 70502#1 | L113: 70513#1|70502#1 | M113: 70513#1|70502#1|14#300|3#30 | N113: 13 | O113: 2 | AC113: 260705 | AR113: 260705
B114: 14#320|3#32 | C114: 260801 | D114: 普通-8-1 | E114: 610113 | F114: 610103 | G114: 610113#610103 | H114: 70113 | I114: 70103 | J114: 70113#1 | K114: 70103#1 | L114: 70113#1|70103#1 | M114: 70113#1|70103#1|14#320|3#32 | N114: 13 | O114: 3 | AC114: 260801 | AS114: 260801
B115: 14#320|3#32 | C115: 260802 | D115: 普通-8-2 | E115: 610213 | F115: 610203 | G115: 610213#610203 | H115: 70213 | I115: 70203 | J115: 70213#1 | K115: 70203#1 | L115: 70213#1|70203#1 | M115: 70213#1|70203#1|14#320|3#32 | N115: 13 | O115: 3 | AC115: 260802 | AS115: 260802
B116: 14#320|3#32 | C116: 260803 | D116: 普通-8-3 | E116: 610313 | F116: 610303 | G116: 610313#610303 | H116: 70313 | I116: 70303 | J116: 70313#1 | K116: 70303#1 | L116: 70313#1|70303#1 | M116: 70313#1|70303#1|14#320|3#32 | N116: =--RIGHT(E116,2) -> 13 | O116: =IFERROR(--RIGHT(F116,2),"") -> 3 | AC116: 260803 | AS116: 260803
B117: 14#320|3#32 | C117: 260804 | D117: 普通-8-4 | E117: 610413 | F117: 610403 | G117: 610413#610403 | H117: 70413 | I117: 70403 | J117: 70413#1 | K117: 70403#1 | L117: 70413#1|70403#1 | M117: 70413#1|70403#1|14#320|3#32 | N117: 13 | O117: 3 | AC117: 260804 | AS117: 260804
B118: 14#320|3#32 | C118: 260805 | D118: 普通-8-5 | E118: 610513 | F118: 610503 | G118: 610513#610503 | H118: 70513 | I118: 70503 | J118: 70513#1 | K118: 70503#1 | L118: 70513#1|70503#1 | M118: 70513#1|70503#1|14#320|3#32 | N118: 13 | O118: 3 | AC118: 260805 | AS118: 260805
B119: 14#340|3#34 | C119: 260901 | D119: 普通-9-1 | E119: 610113 | G119: 610113 | H119: 70113 | J119: 70113#1 | L119: 70113#1 | M119: 70113#1|14#340|3#34 | N119: 13 | AC119: 260901
B120: 14#340|3#34 | C120: 260902 | D120: 普通-9-2 | E120: 610213 | G120: 610213 | H120: 70213 | J120: 70213#1 | L120: 70213#1 | M120: 70213#1|14#340|3#34 | N120: 13 | AC120: 260902
B121: 14#340|3#34 | C121: 260903 | D121: 普通-9-3 | E121: 610313 | G121: 610313 | H121: 70313 | J121: 70313#1 | L121: 70313#1 | M121: 70313#1|14#340|3#34 | N121: 13 | AC121: 260903
B122: 14#340|3#34 | C122: 260904 | D122: 普通-9-4 | E122: 610413 | G122: 610413 | H122: 70413 | J122: 70413#1 | L122: 70413#1 | M122: 70413#1|14#340|3#34 | N122: 13 | AC122: 260904
B123: 14#340|3#34 | C123: 260905 | D123: 普通-9-5 | E123: 610513 | G123: 610513 | H123: 70513 | J123: 70513#1 | L123: 70513#1 | M123: 70513#1|14#340|3#34 | N123: 13 | AC123: 260905
B124: 14#360|3#36 | C124: 261001 | D124: 普通-10-1 | E124: 610114 | G124: 610114 | H124: 70114 | J124: 70114#1 | L124: 70114#1 | M124: 70114#1|14#360|3#36 | N124: 14 | AD124: 261001
B125: 14#360|3#36 | C125: 261002 | D125: 普通-10-2 | E125: 610214 | G125: 610214 | H125: 70214 | J125: 70214#1 | L125: 70214#1 | M125: 70214#1|14#360|3#36 | N125: 14 | AD125: 261002
B126: 14#360|3#36 | C126: 261003 | D126: 普通-10-3 | E126: 610314 | G126: 610314 | H126: 70314 | J126: 70314#1 | L126: 70314#1 | M126: 70314#1|14#360|3#36 | N126: 14 | AD126: 261003
B127: 14#360|3#36 | C127: 261004 | D127: 普通-10-4 | E127: 610414 | G127: 610414 | H127: 70414 | J127: 70414#1 | L127: 70414#1 | M127: 70414#1|14#360|3#36 | N127: 14 | AD127: 261004
B128: 14#360|3#36 | C128: 261005 | D128: 普通-10-5 | E128: 610514 | G128: 610514 | H128: 70514 | J128: 70514#1 | L128: 70514#1 | M128: 70514#1|14#360|3#36 | N128: 14 | AD128: 261005
B129: 14#380|3#38 | C129: 261101 | D129: 普通-11-1 | E129: 610114 | G129: 610114 | H129: 70114 | J129: 70114#1 | L129: 70114#1 | M129: 70114#1|14#380|3#38 | N129: 14 | AD129: 261101
B130: 14#380|3#38 | C130: 261102 | D130: 普通-11-2 | E130: 610214 | G130: 610214 | H130: 70214 | J130: 70214#1 | L130: 70214#1 | M130: 70214#1|14#380|3#38 | N130: 14 | AD130: 261102
B131: 14#380|3#38 | C131: 261103 | D131: 普通-11-3 | E131: 610314 | G131: 610314 | H131: 70314 | J131: 70314#1 | L131: 70314#1 | M131: 70314#1|14#380|3#38 | N131: 14 | AD131: 261103
B132: 14#380|3#38 | C132: 261104 | D132: 普通-11-4 | E132: 610414 | G132: 610414 | H132: 70414 | J132: 70414#1 | L132: 70414#1 | M132: 70414#1|14#380|3#38 | N132: 14 | AD132: 261104
B133: 14#380|3#38 | C133: 261105 | D133: 普通-11-5 | E133: 610514 | G133: 610514 | H133: =$H$3&RIGHT(E133,4) -> 70514 | I133: =IF(F133="","",$I$3&RIGHT(F133,4)) ->  | J133: =H133&"#1" -> 70514#1 | K133: =IF(I133="","",I133&"#1") ->  | L133: =IF(K133="",J133,J133&"|"&K133) -> 70514#1 | M133: 70514#1|14#380|3#38 | N133: 14 | Q133: =IF($N133=Q$3,$C133,"") ->  | R133: =IF($N133=R$3,$C133,"") ->  | S133: =IF($N133=S$3,$C133,"") ->  | T133: =IF($N133=T$3,$C133,"") ->  | U133: =IF($N133=U$3,$C133,"") ->  | V133: =IF($N133=V$3,$C133,"") ->  | W133: =IF($N133=W$3,$C133,"") ->  | X133: =IF($N133=X$3,$C133,"") ->  | Y133: =IF($N133=Y$3,$C133,"") ->  | Z133: =IF($N133=Z$3,$C133,"") ->  | AA133: =IF($N133=AA$3,$C133,"") ->  | AB133: =IF($N133=AB$3,$C133,"") ->  | AC133: =IF($N133=AC$3,$C133,"") ->  | AD133: =IF($N133=AD$3,$C133,"") -> 261105 | AE133: =IF($N133=AE$3,$C133,"") ->  | AF133: =IF($N133=AF$3,$C133,"") ->  | AG133: =IF($N133=AG$3,$C133,"") ->  | AH133: =IF($N133=AH$3,$C133,"") ->  | AI133: =IF($N133=AI$3,$C133,"") ->  | AJ133: =IF($N133=AJ$3,$C133,"") ->  | AK133: =IF($N133=AK$3,$C133,"") ->  | AL133: =IF($N133=AL$3,$C133,"") ->  | AM133: =IF($N133=AM$3,$C133,"") ->  | AN133: =IF($N133=AN$3,$C133,"") ->  | AO133: =IF($N133=AO$3,$C133,"") ->  | AP133: =IF($N133=AP$3,$C133,"") ->  | AQ133: =IF($O133=AQ$3,$C133,"") ->  | AR133: =IF($O133=AR$3,$C133,"") ->  | AS133: =IF($O133=AS$3,$C133,"") ->  | AT133: =IF($O133=AT$3,$C133,"") ->  | AU133: =IF($O133=AU$3,$C133,"") ->  | AV133: =IF($O133=AV$3,$C133,"") ->  | AW133: =IF($O133=AW$3,$C133,"") ->  | AX133: =IF($O133=AX$3,$C133,"") ->  | AY133: =IF($O133=AY$3,$C133,"") ->  | AZ133: =IF($O133=AZ$3,$C133,"") ->  | BA133: =IF($O133=BA$3,$C133,"") ->  | BB133: =IF($O133=BB$3,$C133,"") ->  | BC133: =IF($O133=BC$3,$C133,"") ->  | BD133: =IF($O133=BD$3,$C133,"") ->  | BE133: =IF($O133=BE$3,$C133,"") ->  | BF133: =IF($O133=BF$3,$C133,"") ->  | BG133: =IF($O133=BG$3,$C133,"") ->  | BH133: =IF($O133=BH$3,$C133,"") ->  | BI133: =IF($O133=BI$3,$C133,"") ->  | BJ133: =IF($O133=BJ$3,$C133,"") ->  | BK133: =IF($O133=BK$3,$C133,"") ->  | BL133: =IF($O133=BL$3,$C133,"") ->  | BM133: =IF($O133=BM$3,$C133,"") ->  | BN133: =IF($O133=BN$3,$C133,"") ->  | BO133: =IF($O133=BO$3,$C133,"") ->  | BP133: =IF($O133=BP$3,$C133,"") -> 
B134: 14#400|3#40 | C134: 261201 | D134: 普通-12-1 | E134: 610114 | G134: 610114 | H134: 70114 | J134: 70114#1 | L134: 70114#1 | M134: 70114#1|14#400|3#40 | N134: 14 | AD134: 261201
B135: 14#400|3#40 | C135: 261202 | D135: 普通-12-2 | E135: 610214 | G135: 610214 | H135: 70214 | J135: 70214#1 | L135: 70214#1 | M135: 70214#1|14#400|3#40 | N135: 14 | AD135: 261202
B136: 14#400|3#40 | C136: 261203 | D136: 普通-12-3 | E136: 610314 | G136: 610314 | H136: 70314 | J136: 70314#1 | L136: 70314#1 | M136: 70314#1|14#400|3#40 | N136: 14 | AD136: 261203
B137: 14#400|3#40 | C137: 261204 | D137: 普通-12-4 | E137: 610414 | G137: 610414 | H137: 70414 | J137: 70414#1 | L137: 70414#1 | M137: 70414#1|14#400|3#40 | N137: 14 | AD137: 261204
B138: 14#400|3#40 | C138: 261205 | D138: 普通-12-5 | E138: 610514 | G138: 610514 | H138: 70514 | J138: 70514#1 | L138: 70514#1 | M138: 70514#1|14#400|3#40 | N138: 14 | AD138: 261205
B139: 14#420|3#42 | C139: 261301 | D139: 普通-13-1 | E139: 610115 | G139: 610115 | H139: 70115 | J139: 70115#1 | L139: 70115#1 | M139: 70115#1|14#420|3#42 | N139: 15 | AE139: 261301
B140: 14#420|3#42 | C140: 261302 | D140: 普通-13-2 | E140: 610215 | G140: 610215 | H140: 70215 | J140: 70215#1 | L140: 70215#1 | M140: 70215#1|14#420|3#42 | N140: 15 | AE140: 261302
B141: 14#420|3#42 | C141: 261303 | D141: 普通-13-3 | E141: 610315 | G141: 610315 | H141: 70315 | J141: 70315#1 | L141: 70315#1 | M141: 70315#1|14#420|3#42 | N141: 15 | AE141: 261303
B142: 14#420|3#42 | C142: 261304 | D142: 普通-13-4 | E142: 610415 | G142: 610415 | H142: 70415 | J142: 70415#1 | L142: 70415#1 | M142: 70415#1|14#420|3#42 | N142: 15 | AE142: 261304
B143: 14#420|3#42 | C143: 261305 | D143: 普通-13-5 | E143: 610515 | G143: 610515 | H143: 70515 | J143: 70515#1 | L143: 70515#1 | M143: 70515#1|14#420|3#42 | N143: 15 | AE143: 261305
B144: 14#440|3#44 | C144: 261401 | D144: 普通-14-1 | E144: 610115 | G144: =_xlfn.TEXTJOIN("#",TRUE,E144:F144) -> 610115 | H144: 70115 | J144: 70115#1 | L144: 70115#1 | M144: 70115#1|14#440|3#44 | N144: 15 | AE144: 261401
B145: 14#440|3#44 | C145: 261402 | D145: 普通-14-2 | E145: 610215 | G145: 610215 | H145: 70215 | J145: 70215#1 | L145: 70215#1 | M145: 70215#1|14#440|3#44 | N145: 15 | AE145: 261402
B146: 14#440|3#44 | C146: 261403 | D146: 普通-14-3 | E146: 610315 | G146: 610315 | H146: 70315 | J146: 70315#1 | L146: 70315#1 | M146: 70315#1|14#440|3#44 | N146: 15 | AE146: 261403
B147: 14#440|3#44 | C147: 261404 | D147: 普通-14-4 | E147: 610415 | G147: 610415 | H147: 70415 | J147: 70415#1 | L147: 70415#1 | M147: 70415#1|14#440|3#44 | N147: 15 | AE147: 261404
B148: 14#440|3#44 | C148: 261405 | D148: 普通-14-5 | E148: 610515 | G148: 610515 | H148: 70515 | J148: 70515#1 | L148: 70515#1 | M148: 70515#1|14#440|3#44 | N148: =--RIGHT(E148,2) -> 15 | O148: =IFERROR(--RIGHT(F148,2),"") ->  | AE148: 261405
B149: 14#460|3#46 | C149: 261501 | D149: 普通-15-1 | E149: 610115 | G149: 610115 | H149: 70115 | J149: 70115#1 | L149: 70115#1 | M149: 70115#1|14#460|3#46 | N149: 15 | AE149: 261501
B150: 14#460|3#46 | C150: 261502 | D150: 普通-15-2 | E150: 610215 | G150: 610215 | H150: 70215 | J150: 70215#1 | L150: 70215#1 | M150: 70215#1|14#460|3#46 | N150: 15 | AE150: 261502
B151: 14#460|3#46 | C151: 261503 | D151: 普通-15-3 | E151: 610315 | G151: 610315 | H151: 70315 | J151: 70315#1 | L151: 70315#1 | M151: 70315#1|14#460|3#46 | N151: 15 | AE151: 261503
B152: 14#460|3#46 | C152: 261504 | D152: 普通-15-4 | E152: 610415 | G152: 610415 | H152: 70415 | J152: 70415#1 | L152: 70415#1 | M152: 70415#1|14#460|3#46 | N152: 15 | AE152: 261504
B153: 14#460|3#46 | C153: 261505 | D153: 普通-15-5 | E153: 610515 | G153: 610515 | H153: 70515 | J153: 70515#1 | L153: 70515#1 | M153: 70515#1|14#460|3#46 | N153: 15 | AE153: 261505
B154: 14#220|3#22 | C154: 270101 | D154: 困难-1-1 | E154: 610116 | G154: =_xlfn.TEXTJOIN("#",TRUE,E154:F154) -> 610116 | H154: 70116 | J154: 70116#1 | L154: 70116#1 | M154: 70116#1|14#220|3#22 | N154: 16 | AF154: 270101
B155: 14#220|3#22 | C155: 270102 | D155: 困难-1-2 | E155: 610216 | G155: 610216 | H155: 70216 | J155: 70216#1 | L155: 70216#1 | M155: =L155&"|"&B155 -> 70216#1|14#220|3#22 | N155: 16 | AF155: 270102
B156: 14#220|3#22 | C156: 270103 | D156: 困难-1-3 | E156: 610316 | G156: 610316 | H156: 70316 | J156: 70316#1 | L156: 70316#1 | M156: 70316#1|14#220|3#22 | N156: 16 | AF156: 270103
B157: 14#220|3#22 | C157: 270104 | D157: 困难-1-4 | E157: 610416 | G157: 610416 | H157: 70416 | J157: 70416#1 | L157: 70416#1 | M157: 70416#1|14#220|3#22 | N157: 16 | AF157: 270104
B158: 14#220|3#22 | C158: 270105 | D158: 困难-1-5 | E158: 610516 | G158: 610516 | H158: 70516 | J158: 70516#1 | L158: 70516#1 | M158: 70516#1|14#220|3#22 | N158: 16 | AF158: 270105
B159: 14#240|3#24 | C159: 270201 | D159: 困难-2-1 | E159: 610116 | G159: 610116 | H159: 70116 | J159: 70116#1 | L159: 70116#1 | M159: 70116#1|14#240|3#24 | N159: 16 | AF159: 270201
B160: 14#240|3#24 | C160: 270202 | D160: 困难-2-2 | E160: 610216 | G160: 610216 | H160: 70216 | J160: 70216#1 | L160: 70216#1 | M160: 70216#1|14#240|3#24 | N160: 16 | AF160: 270202
B161: 14#240|3#24 | C161: 270203 | D161: 困难-2-3 | E161: 610316 | G161: 610316 | H161: 70316 | J161: 70316#1 | L161: 70316#1 | M161: 70316#1|14#240|3#24 | N161: 16 | AF161: 270203
B162: 14#240|3#24 | C162: 270204 | D162: 困难-2-4 | E162: 610416 | G162: 610416 | H162: 70416 | J162: 70416#1 | L162: 70416#1 | M162: 70416#1|14#240|3#24 | N162: 16 | Q162: =IF($N162=Q$3,$C162,"") ->  | R162: =IF($N162=R$3,$C162,"") ->  | S162: =IF($N162=S$3,$C162,"") ->  | T162: =IF($N162=T$3,$C162,"") ->  | U162: =IF($N162=U$3,$C162,"") ->  | V162: =IF($N162=V$3,$C162,"") ->  | W162: =IF($N162=W$3,$C162,"") ->  | X162: =IF($N162=X$3,$C162,"") ->  | Y162: =IF($N162=Y$3,$C162,"") ->  | Z162: =IF($N162=Z$3,$C162,"") ->  | AA162: =IF($N162=AA$3,$C162,"") ->  | AB162: =IF($N162=AB$3,$C162,"") ->  | AC162: =IF($N162=AC$3,$C162,"") ->  | AD162: =IF($N162=AD$3,$C162,"") ->  | AE162: =IF($N162=AE$3,$C162,"") ->  | AF162: =IF($N162=AF$3,$C162,"") -> 270204 | AG162: =IF($N162=AG$3,$C162,"") ->  | AH162: =IF($N162=AH$3,$C162,"") ->  | AI162: =IF($N162=AI$3,$C162,"") ->  | AJ162: =IF($N162=AJ$3,$C162,"") ->  | AK162: =IF($N162=AK$3,$C162,"") ->  | AL162: =IF($N162=AL$3,$C162,"") ->  | AM162: =IF($N162=AM$3,$C162,"") ->  | AN162: =IF($N162=AN$3,$C162,"") ->  | AQ162: =IF($O162=AQ$3,$C162,"") ->  | AR162: =IF($O162=AR$3,$C162,"") ->  | AS162: =IF($O162=AS$3,$C162,"") ->  | AT162: =IF($O162=AT$3,$C162,"") ->  | AU162: =IF($O162=AU$3,$C162,"") ->  | AV162: =IF($O162=AV$3,$C162,"") ->  | AW162: =IF($O162=AW$3,$C162,"") ->  | AX162: =IF($O162=AX$3,$C162,"") ->  | AY162: =IF($O162=AY$3,$C162,"") ->  | AZ162: =IF($O162=AZ$3,$C162,"") ->  | BA162: =IF($O162=BA$3,$C162,"") ->  | BB162: =IF($O162=BB$3,$C162,"") ->  | BC162: =IF($O162=BC$3,$C162,"") ->  | BD162: =IF($O162=BD$3,$C162,"") ->  | BE162: =IF($O162=BE$3,$C162,"") ->  | BF162: =IF($O162=BF$3,$C162,"") ->  | BG162: =IF($O162=BG$3,$C162,"") ->  | BH162: =IF($O162=BH$3,$C162,"") ->  | BI162: =IF($O162=BI$3,$C162,"") ->  | BJ162: =IF($O162=BJ$3,$C162,"") ->  | BK162: =IF($O162=BK$3,$C162,"") ->  | BL162: =IF($O162=BL$3,$C162,"") ->  | BM162: =IF($O162=BM$3,$C162,"") ->  | BN162: =IF($O162=BN$3,$C162,"") -> 
B163: 14#240|3#24 | C163: 270205 | D163: 困难-2-5 | E163: 610516 | G163: 610516 | H163: 70516 | J163: 70516#1 | L163: 70516#1 | M163: 70516#1|14#240|3#24 | N163: 16 | AF163: 270205
B164: 14#260|3#26 | C164: 270301 | D164: 困难-3-1 | E164: 610116 | G164: 610116 | H164: 70116 | J164: 70116#1 | L164: 70116#1 | M164: 70116#1|14#260|3#26 | N164: 16 | AF164: 270301
B165: 14#260|3#26 | C165: 270302 | D165: 困难-3-2 | E165: 610216 | G165: 610216 | H165: 70216 | J165: 70216#1 | L165: 70216#1 | M165: 70216#1|14#260|3#26 | N165: 16 | AF165: 270302
B166: 14#260|3#26 | C166: 270303 | D166: 困难-3-3 | E166: 610316 | G166: 610316 | H166: 70316 | J166: 70316#1 | L166: 70316#1 | M166: 70316#1|14#260|3#26 | N166: 16 | AF166: 270303
B167: 14#260|3#26 | C167: 270304 | D167: 困难-3-4 | E167: 610416 | G167: 610416 | H167: 70416 | J167: 70416#1 | L167: 70416#1 | M167: 70416#1|14#260|3#26 | N167: 16 | AF167: 270304
B168: 14#260|3#26 | C168: 270305 | D168: 困难-3-5 | E168: 610516 | G168: 610516 | H168: 70516 | J168: 70516#1 | L168: 70516#1 | M168: 70516#1|14#260|3#26 | N168: 16 | AF168: 270305
B169: 14#280|3#28 | C169: 270401 | D169: 困难-4-1 | E169: 610117 | G169: 610117 | H169: 70117 | J169: 70117#1 | L169: 70117#1 | M169: 70117#1|14#280|3#28 | N169: 17 | AG169: 270401
B170: 14#280|3#28 | C170: 270402 | D170: 困难-4-2 | E170: 610217 | G170: 610217 | H170: 70217 | J170: 70217#1 | L170: 70217#1 | M170: 70217#1|14#280|3#28 | N170: 17 | AG170: 270402
B171: 14#280|3#28 | C171: 270403 | D171: 困难-4-3 | E171: 610317 | G171: 610317 | H171: 70317 | J171: 70317#1 | L171: 70317#1 | M171: 70317#1|14#280|3#28 | N171: 17 | AG171: 270403
B172: 14#280|3#28 | C172: 270404 | D172: 困难-4-4 | E172: 610417 | G172: 610417 | H172: 70417 | J172: 70417#1 | L172: 70417#1 | M172: 70417#1|14#280|3#28 | N172: 17 | AG172: 270404
B173: 14#280|3#28 | C173: 270405 | D173: 困难-4-5 | E173: 610517 | G173: 610517 | H173: 70517 | J173: 70517#1 | L173: 70517#1 | M173: 70517#1|14#280|3#28 | N173: 17 | AG173: 270405
B174: 14#300|3#30 | C174: 270501 | D174: 困难-5-1 | E174: 610117 | G174: 610117 | H174: 70117 | J174: 70117#1 | L174: 70117#1 | M174: 70117#1|14#300|3#30 | N174: 17 | AG174: 270501
B175: 14#300|3#30 | C175: 270502 | D175: 困难-5-2 | E175: 610217 | G175: 610217 | H175: 70217 | J175: 70217#1 | L175: 70217#1 | M175: 70217#1|14#300|3#30 | N175: 17 | AG175: 270502
B176: 14#300|3#30 | C176: 270503 | D176: 困难-5-3 | E176: 610317 | G176: 610317 | H176: 70317 | J176: 70317#1 | L176: 70317#1 | M176: 70317#1|14#300|3#30 | N176: 17 | AG176: 270503
B177: 14#300|3#30 | C177: 270504 | D177: 困难-5-4 | E177: 610417 | G177: 610417 | H177: 70417 | J177: 70417#1 | L177: 70417#1 | M177: 70417#1|14#300|3#30 | N177: 17 | AG177: 270504
B178: 14#300|3#30 | C178: 270505 | D178: 困难-5-5 | E178: 610517 | G178: 610517 | H178: 70517 | J178: 70517#1 | L178: 70517#1 | M178: 70517#1|14#300|3#30 | N178: 17 | AG178: 270505
B179: 14#320|3#32 | C179: 270601 | D179: 困难-6-1 | E179: 610117 | G179: 610117 | H179: 70117 | J179: 70117#1 | L179: 70117#1 | M179: 70117#1|14#320|3#32 | N179: 17 | AG179: 270601
B180: 14#320|3#32 | C180: 270602 | D180: 困难-6-2 | E180: 610217 | G180: 610217 | H180: 70217 | J180: 70217#1 | L180: 70217#1 | M180: 70217#1|14#320|3#32 | N180: =--RIGHT(E180,2) -> 17 | O180: =IFERROR(--RIGHT(F180,2),"") ->  | AG180: 270602
B181: 14#320|3#32 | C181: 270603 | D181: 困难-6-3 | E181: 610317 | G181: 610317 | H181: 70317 | J181: 70317#1 | L181: 70317#1 | M181: 70317#1|14#320|3#32 | N181: 17 | AG181: 270603
B182: 14#320|3#32 | C182: 270604 | D182: 困难-6-4 | E182: 610417 | G182: 610417 | H182: 70417 | J182: 70417#1 | L182: 70417#1 | M182: 70417#1|14#320|3#32 | N182: 17 | AG182: 270604
B183: 14#320|3#32 | C183: 270605 | D183: 困难-6-5 | E183: 610517 | G183: 610517 | H183: 70517 | J183: 70517#1 | L183: 70517#1 | M183: 70517#1|14#320|3#32 | N183: 17 | AG183: 270605
B184: 14#340|3#34 | C184: 270701 | D184: 困难-7-1 | E184: 610118 | G184: 610118 | H184: 70118 | J184: 70118#1 | L184: 70118#1 | M184: 70118#1|14#340|3#34 | N184: 18 | AH184: 270701
B185: 14#340|3#34 | C185: 270702 | D185: 困难-7-2 | E185: 610218 | G185: 610218 | H185: 70218 | J185: 70218#1 | L185: 70218#1 | M185: 70218#1|14#340|3#34 | N185: 18 | AH185: 270702
B186: 14#340|3#34 | C186: 270703 | D186: 困难-7-3 | E186: 610318 | G186: =_xlfn.TEXTJOIN("#",TRUE,E186:F186) -> 610318 | H186: 70318 | J186: 70318#1 | L186: 70318#1 | M186: 70318#1|14#340|3#34 | N186: 18 | AH186: 270703
B187: 14#340|3#34 | C187: 270704 | D187: 困难-7-4 | E187: 610418 | G187: 610418 | H187: 70418 | J187: 70418#1 | L187: 70418#1 | M187: =L187&"|"&B187 -> 70418#1|14#340|3#34 | N187: 18 | AH187: 270704
B188: 14#340|3#34 | C188: 270705 | D188: 困难-7-5 | E188: 610518 | G188: 610518 | H188: 70518 | J188: 70518#1 | L188: 70518#1 | M188: 70518#1|14#340|3#34 | N188: 18 | AH188: 270705
B189: 14#360|3#36 | C189: 270801 | D189: 困难-8-1 | E189: 610118 | G189: 610118 | H189: 70118 | J189: 70118#1 | L189: 70118#1 | M189: 70118#1|14#360|3#36 | N189: 18 | AH189: 270801
B190: 14#360|3#36 | C190: 270802 | D190: 困难-8-2 | E190: 610218 | G190: 610218 | H190: 70218 | J190: 70218#1 | L190: 70218#1 | M190: 70218#1|14#360|3#36 | N190: 18 | AH190: 270802
B191: 14#360|3#36 | C191: 270803 | D191: 困难-8-3 | E191: 610318 | G191: 610318 | H191: 70318 | J191: 70318#1 | L191: 70318#1 | M191: 70318#1|14#360|3#36 | N191: 18 | AH191: 270803
B192: 14#360|3#36 | C192: 270804 | D192: 困难-8-4 | E192: 610418 | G192: 610418 | H192: 70418 | J192: 70418#1 | L192: 70418#1 | M192: 70418#1|14#360|3#36 | N192: 18 | AH192: 270804
B193: 14#360|3#36 | C193: 270805 | D193: 困难-8-5 | E193: 610518 | G193: 610518 | H193: 70518 | J193: 70518#1 | L193: 70518#1 | M193: 70518#1|14#360|3#36 | N193: 18 | AH193: 270805
B194: 14#380|3#38 | C194: 270901 | D194: 困难-9-1 | E194: 610119 | G194: 610119 | H194: 70119 | J194: 70119#1 | L194: 70119#1 | M194: 70119#1|14#380|3#38 | N194: 19 | Q194: =IF($N194=Q$3,$C194,"") ->  | R194: =IF($N194=R$3,$C194,"") ->  | S194: =IF($N194=S$3,$C194,"") ->  | T194: =IF($N194=T$3,$C194,"") ->  | U194: =IF($N194=U$3,$C194,"") ->  | V194: =IF($N194=V$3,$C194,"") ->  | W194: =IF($N194=W$3,$C194,"") ->  | X194: =IF($N194=X$3,$C194,"") ->  | Y194: =IF($N194=Y$3,$C194,"") ->  | Z194: =IF($N194=Z$3,$C194,"") ->  | AA194: =IF($N194=AA$3,$C194,"") ->  | AB194: =IF($N194=AB$3,$C194,"") ->  | AC194: =IF($N194=AC$3,$C194,"") ->  | AD194: =IF($N194=AD$3,$C194,"") ->  | AE194: =IF($N194=AE$3,$C194,"") ->  | AF194: =IF($N194=AF$3,$C194,"") ->  | AG194: =IF($N194=AG$3,$C194,"") ->  | AH194: =IF($N194=AH$3,$C194,"") ->  | AI194: =IF($N194=AI$3,$C194,"") -> 270901 | AJ194: =IF($N194=AJ$3,$C194,"") ->  | AK194: =IF($N194=AK$3,$C194,"") ->  | AL194: =IF($N194=AL$3,$C194,"") ->  | AM194: =IF($N194=AM$3,$C194,"") ->  | AN194: =IF($N194=AN$3,$C194,"") ->  | AQ194: =IF($O194=AQ$3,$C194,"") ->  | AR194: =IF($O194=AR$3,$C194,"") ->  | AS194: =IF($O194=AS$3,$C194,"") ->  | AT194: =IF($O194=AT$3,$C194,"") ->  | AU194: =IF($O194=AU$3,$C194,"") ->  | AV194: =IF($O194=AV$3,$C194,"") ->  | AW194: =IF($O194=AW$3,$C194,"") ->  | AX194: =IF($O194=AX$3,$C194,"") ->  | AY194: =IF($O194=AY$3,$C194,"") ->  | AZ194: =IF($O194=AZ$3,$C194,"") ->  | BA194: =IF($O194=BA$3,$C194,"") ->  | BB194: =IF($O194=BB$3,$C194,"") ->  | BC194: =IF($O194=BC$3,$C194,"") ->  | BD194: =IF($O194=BD$3,$C194,"") ->  | BE194: =IF($O194=BE$3,$C194,"") ->  | BF194: =IF($O194=BF$3,$C194,"") ->  | BG194: =IF($O194=BG$3,$C194,"") ->  | BH194: =IF($O194=BH$3,$C194,"") ->  | BI194: =IF($O194=BI$3,$C194,"") ->  | BJ194: =IF($O194=BJ$3,$C194,"") ->  | BK194: =IF($O194=BK$3,$C194,"") ->  | BL194: =IF($O194=BL$3,$C194,"") ->  | BM194: =IF($O194=BM$3,$C194,"") ->  | BN194: =IF($O194=BN$3,$C194,"") -> 
B195: 14#380|3#38 | C195: 270902 | D195: 困难-9-2 | E195: 610219 | G195: 610219 | H195: 70219 | J195: 70219#1 | L195: 70219#1 | M195: 70219#1|14#380|3#38 | N195: 19 | AI195: 270902
B196: 14#380|3#38 | C196: 270903 | D196: 困难-9-3 | E196: 610319 | G196: 610319 | H196: 70319 | J196: 70319#1 | L196: 70319#1 | M196: 70319#1|14#380|3#38 | N196: 19 | AI196: 270903
B197: 14#380|3#38 | C197: 270904 | D197: 困难-9-4 | E197: 610419 | G197: 610419 | H197: =$H$3&RIGHT(E197,4) -> 70419 | I197: =IF(F197="","",$I$3&RIGHT(F197,4)) ->  | J197: =H197&"#1" -> 70419#1 | K197: =IF(I197="","",I197&"#1") ->  | L197: =IF(K197="",J197,J197&"|"&K197) -> 70419#1 | M197: 70419#1|14#380|3#38 | N197: 19 | AI197: 270904 | AO197: =IF($N197=AO$3,$C197,"") ->  | AP197: =IF($N197=AP$3,$C197,"") ->  | BO197: =IF($O197=BO$3,$C197,"") ->  | BP197: =IF($O197=BP$3,$C197,"") -> 
B198: 14#380|3#38 | C198: 270905 | D198: 困难-9-5 | E198: 610519 | G198: 610519 | H198: 70519 | J198: 70519#1 | L198: 70519#1 | M198: 70519#1|14#380|3#38 | N198: 19 | AI198: 270905
B199: 14#400|3#40 | C199: 271001 | D199: 困难-10-1 | E199: 610119 | G199: 610119 | H199: 70119 | J199: 70119#1 | L199: 70119#1 | M199: 70119#1|14#400|3#40 | N199: 19 | AI199: 271001
B200: 14#400|3#40 | C200: 271002 | D200: 困难-10-2 | E200: 610219 | G200: 610219 | H200: 70219 | J200: 70219#1 | L200: 70219#1 | M200: 70219#1|14#400|3#40 | N200: 19 | AI200: 271002
B201: 14#400|3#40 | C201: 271003 | D201: 困难-10-3 | E201: 610319 | G201: 610319 | H201: 70319 | J201: 70319#1 | L201: 70319#1 | M201: 70319#1|14#400|3#40 | N201: 19 | AI201: 271003
B202: 14#400|3#40 | C202: 271004 | D202: 困难-10-4 | E202: 610419 | G202: 610419 | H202: 70419 | J202: 70419#1 | L202: 70419#1 | M202: 70419#1|14#400|3#40 | N202: 19 | AI202: 271004
... 288 more rows

Sheet 普通副本掉落
G1: 三星 | I1: 四星 | K1: 突破石 | M1: 成长护符 | O1: 金币
F2: 1 | K2: 4 | L2: 150 | M2: 3 | N2: 2500 | O2: 14 | P2: 50000 | R2: =_xlfn.TEXTJOIN("#",TRUE,G2:H2) ->  | S2: =_xlfn.TEXTJOIN("#",TRUE,I2:J2) ->  | T2: =_xlfn.TEXTJOIN("#",TRUE,K2:L2) -> 4#150 | U2: =_xlfn.TEXTJOIN("#",TRUE,M2:N2) -> 3#2500 | V2: =_xlfn.TEXTJOIN("#",TRUE,O2:P2) -> 14#50000 | W2: =_xlfn.TEXTJOIN("|",TRUE,R2:V2) -> 4#150|3#2500|14#50000
F3: 2 | K3: =K2 -> 4 | L3: 150 | M3: =M2 -> 3 | N3: 2800 | O3: =O2 -> 14 | P3: 60000 | R3: =_xlfn.TEXTJOIN("#",TRUE,G3:H3) ->  | T3: 4#150 | U3: =_xlfn.TEXTJOIN("#",TRUE,M3:N3) -> 3#2800 | V3: =_xlfn.TEXTJOIN("#",TRUE,O3:P3) -> 14#60000 | W3: =_xlfn.TEXTJOIN("|",TRUE,R3:V3) -> 4#150|3#2800|14#60000
F4: 3 | K4: =K3 -> 4 | L4: 150 | M4: =M3 -> 3 | N4: 3100 | O4: =O3 -> 14 | P4: 70000 | T4: 4#150 | U4: 3#3100 | V4: 14#70000 | W4: 4#150|3#3100|14#70000
E5: =VLOOKUP(J5,[2]RewardItemConfig!F$722:K$729,4,FALSE) ->  | F5: 4 | G5: 12001 | H5: 5 | K5: 4 | L5: 150 | M5: 3 | N5: 3400 | O5: 14 | P5: 80000 | R5: 12001#5 | T5: 4#150 | U5: 3#3400 | V5: 14#80000 | W5: 12001#5|4#150|3#3400|14#80000
E6: =VLOOKUP(J6,[2]RewardItemConfig!F$722:K$729,4,FALSE) ->  | F6: 5 | G6: =G5 -> 12001 | H6: =H5+5 -> 10 | I6: 12012 | J6: 5 | K6: 4 | L6: 150 | M6: 3 | N6: 3700 | O6: 14 | P6: 90000 | R6: 12001#10 | S6: 12012#5 | T6: 4#150 | U6: 3#3700 | V6: 14#90000 | W6: 12001#10|12012#5|4#150|3#3700|14#90000
E7: =VLOOKUP(J7,[2]RewardItemConfig!F$722:K$729,4,FALSE) ->  | F7: 6 | G7: =G6 -> 12001 | H7: =H6+5 -> 15 | I7: =I6 -> 12012 | J7: 5 | K7: 4 | L7: 150 | M7: 3 | N7: 4000 | O7: 14 | P7: 100000 | R7: 12001#15 | S7: 12012#5 | T7: 4#150 | U7: 3#4000 | V7: 14#100000 | W7: 12001#15|12012#5|4#150|3#4000|14#100000
E8: =VLOOKUP(J8,[2]RewardItemConfig!F$722:K$729,4,FALSE) -> 0 | F8: 7 | G8: 12001 | H8: =H7 -> 15 | I8: =I7 -> 12012 | J8: 10 | K8: 4 | L8: 150 | M8: 3 | N8: 4300 | O8: 14 | P8: 110000 | R8: 12001#15 | S8: 12012#10 | T8: 4#150 | U8: 3#4300 | V8: 14#110000 | W8: 12001#15|12012#10|4#150|3#4300|14#110000
E9: =VLOOKUP(J9,[2]RewardItemConfig!F$722:K$729,4,FALSE) -> 0 | F9: 8 | G9: 12001 | H9: =H8+5 -> 20 | I9: 12012 | J9: 10 | K9: 4 | L9: 150 | M9: 3 | N9: 4600 | O9: 14 | P9: 120000 | R9: 12001#20 | S9: 12012#10 | T9: 4#150 | U9: 3#4600 | V9: 14#120000 | W9: 12001#20|12012#10|4#150|3#4600|14#120000
E10: =VLOOKUP(J10,[2]RewardItemConfig!F$722:K$729,4,FALSE) -> 0 | F10: 9 | G10: 12001 | H10: =H9+5 -> 25 | I10: 12012 | J10: 10 | K10: 4 | L10: 150 | M10: 3 | N10: 4900 | O10: 14 | P10: 130000 | R10: 12001#25 | S10: 12012#10 | T10: 4#150 | U10: 3#4900 | V10: 14#130000 | W10: 12001#25|12012#10|4#150|3#4900|14#130000
E11: =VLOOKUP(J11,[2]RewardItemConfig!F$722:K$729,4,FALSE) -> 0 | F11: 10 | G11: 12001 | H11: =H10+5 -> 30 | I11: 12012 | J11: 10 | K11: 4 | L11: 150 | M11: 3 | N11: 5200 | O11: 14 | P11: 140000 | R11: 12001#30 | S11: 12012#10 | T11: 4#150 | U11: 3#5200 | V11: 14#140000 | W11: 12001#30|12012#10|4#150|3#5200|14#140000
E12: =VLOOKUP(J12,[2]RewardItemConfig!F$722:K$729,4,FALSE) ->  | F12: 11 | G12: 12001 | H12: =H11 -> 30 | I12: 12012 | J12: 15 | K12: 4 | L12: 150 | M12: 3 | N12: 5500 | O12: 14 | P12: 150000 | R12: 12001#30 | S12: 12012#15 | T12: 4#150 | U12: 3#5500 | V12: 14#150000 | W12: 12001#30|12012#15|4#150|3#5500|14#150000
E13: =VLOOKUP(J13,[2]RewardItemConfig!F$722:K$729,4,FALSE) ->  | F13: 12 | G13: 12001 | H13: =H12 -> 30 | I13: 12012 | J13: 20 | K13: 4 | L13: 150 | M13: 3 | N13: 5800 | O13: 14 | P13: 160000 | R13: 12001#30 | S13: 12012#20 | T13: 4#150 | U13: 3#5800 | V13: 14#160000 | W13: 12001#30|12012#20|4#150|3#5800|14#160000
E14: =VLOOKUP(J14,[2]RewardItemConfig!F$722:K$729,4,FALSE) ->  | F14: 13 | G14: 12001 | H14: =H13 -> 30 | I14: 12012 | J14: 25 | K14: 4 | L14: 150 | M14: 3 | N14: 6100 | O14: 14 | P14: 170000 | R14: 12001#30 | S14: 12012#25 | T14: 4#150 | U14: 3#6100 | V14: 14#170000 | W14: 12001#30|12012#25|4#150|3#6100|14#170000
E15: =VLOOKUP(J15,[2]RewardItemConfig!F$722:K$729,4,FALSE) ->  | F15: 14 | G15: 12001 | H15: =H14+5 -> 35 | I15: 12012 | J15: 25 | K15: 4 | L15: 150 | M15: 3 | N15: 6400 | O15: 14 | P15: 180000 | R15: 12001#35 | S15: 12012#25 | T15: 4#150 | U15: 3#6400 | V15: 14#180000 | W15: 12001#35|12012#25|4#150|3#6400|14#180000
E16: =VLOOKUP(J16,[2]RewardItemConfig!F$722:K$729,4,FALSE) ->  | F16: 15 | G16: 12001 | H16: =H15+5 -> 40 | I16: 12012 | J16: 25 | K16: 4 | L16: 150 | M16: 3 | N16: 6700 | O16: 14 | P16: 190000 | R16: 12001#40 | S16: 12012#25 | T16: 4#150 | U16: 3#6700 | V16: 14#190000 | W16: 12001#40|12012#25|4#150|3#6700|14#190000
E17: =VLOOKUP(J17,[2]RewardItemConfig!F$722:K$729,4,FALSE) ->  | F17: 16 | G17: 12001 | H17: =H16 -> 40 | I17: 12012 | J17: 30 | K17: 4 | L17: 150 | M17: 3 | N17: 7000 | O17: 14 | P17: 200000 | R17: 12001#40 | S17: 12012#30 | T17: 4#150 | U17: 3#7000 | V17: 14#200000 | W17: 12001#40|12012#30|4#150|3#7000|14#200000
E18: =VLOOKUP(J18,[2]RewardItemConfig!F$722:K$729,4,FALSE) ->  | F18: 17 | G18: 12001 | H18: =H17 -> 40 | I18: 12012 | J18: 35 | K18: 4 | L18: 150 | M18: 3 | N18: 7300 | O18: 14 | P18: 210000 | R18: 12001#40 | S18: 12012#35 | T18: 4#150 | U18: 3#7300 | V18: 14#210000 | W18: 12001#40|12012#35|4#150|3#7300|14#210000
E19: =VLOOKUP(J19,[2]RewardItemConfig!F$722:K$729,4,FALSE) ->  | F19: 18 | G19: 12001 | H19: =H18 -> 40 | I19: 12012 | J19: 40 | K19: 4 | L19: 150 | M19: 3 | N19: 7600 | O19: 14 | P19: 220000 | R19: 12001#40 | S19: 12012#40 | T19: 4#150 | U19: 3#7600 | V19: 14#220000 | W19: 12001#40|12012#40|4#150|3#7600|14#220000
E20: =VLOOKUP(J20,[2]RewardItemConfig!F$722:K$729,4,FALSE) ->  | F20: 19 | G20: 12001 | H20: =H19+5 -> 45 | I20: 12012 | J20: 40 | K20: 4 | L20: 150 | M20: 3 | N20: 7900 | O20: 14 | P20: 230000 | R20: 12001#45 | S20: 12012#40 | T20: 4#150 | U20: 3#7900 | V20: 14#230000 | W20: 12001#45|12012#40|4#150|3#7900|14#230000
E21: =VLOOKUP(J21,[2]RewardItemConfig!F$722:K$729,4,FALSE) ->  | F21: 20 | G21: 12001 | H21: =H20+5 -> 50 | I21: 12012 | J21: 40 | K21: 4 | L21: 150 | M21: 3 | N21: 8200 | O21: 14 | P21: 240000 | R21: 12001#50 | S21: 12012#40 | T21: 4#150 | U21: 3#8200 | V21: 14#240000 | W21: 12001#50|12012#40|4#150|3#8200|14#240000
G26: 6101 | H26: 6201 | I26: 6301 | L26: =_xlfn.TEXTJOIN("#",TRUE,G26:K26) -> 6101#6201#6301
G27: 6102 | H27: 6202 | I27: 6302 | L27: =_xlfn.TEXTJOIN("#",TRUE,G27:K27) -> 6102#6202#6302
G28: 6103 | H28: 6203 | I28: 6303 | L28: 6103#6203#6303
G29: 6104 | H29: 6204 | I29: 6304 | J29: 7001 | L29: 6104#6204#6304#7001
G30: 6105 | H30: 6205 | I30: 6305 | J30: 7002 | K30: 7011 | L30: 6105#6205#6305#7002#7011
G31: 6106 | H31: 6206 | I31: 6306 | J31: 7003 | K31: 7011 | L31: 6106#6206#6306#7003#7011
G32: 6107 | H32: 6207 | I32: 6307 | J32: 7003 | K32: 7012 | L32: 6107#6207#6307#7003#7012
G33: 6108 | H33: 6208 | I33: 6308 | J33: 7004 | K33: 7012 | L33: 6108#6208#6308#7004#7012
G34: 6109 | H34: 6209 | I34: 6309 | J34: 7005 | K34: 7012 | L34: 6109#6209#6309#7005#7012
G35: 6110 | H35: 6210 | I35: 6310 | J35: 7006 | K35: 7012 | L35: 6110#6210#6310#7006#7012
G36: 6111 | H36: 6211 | I36: 6311 | J36: 7006 | K36: 7013 | L36: 6111#6211#6311#7006#7013
G37: 6112 | H37: 6212 | I37: 6312 | J37: 7006 | K37: 7014 | L37: 6112#6212#6312#7006#7014
G38: 6113 | H38: 6213 | I38: 6313 | J38: 7006 | K38: 7015 | L38: 6113#6213#6313#7006#7015
G39: 6114 | H39: 6214 | I39: 6314 | J39: 7007 | K39: 7015 | L39: 6114#6214#6314#7007#7015
G40: 6115 | H40: 6215 | I40: 6315 | J40: 7008 | K40: 7015 | L40: 6115#6215#6315#7008#7015
G41: 6116 | H41: 6216 | I41: 6316 | J41: 7008 | K41: 7016 | L41: 6116#6216#6316#7008#7016
G42: 6117 | H42: 6217 | I42: 6317 | J42: 7008 | K42: 7017 | L42: 6117#6217#6317#7008#7017
G43: 6118 | H43: 6218 | I43: 6318 | J43: 7008 | K43: 7018 | L43: 6118#6218#6318#7008#7018
G44: 6119 | H44: 6219 | I44: 6319 | J44: 7009 | K44: 7018 | L44: 6119#6219#6319#7009#7018
G45: 6120 | H45: 6220 | I45: 6320 | J45: 7010 | K45: 7018 | L45: 6120#6220#6320#7010#7018

Sheet Sheet4
M4: 水 | N4: 水 | O4: 水 | P4: 水
I5: 风 | J5: 60170 | M5: =VLOOKUP(M4,$I:$J,2,TRUE) -> 60189 | N5: =VLOOKUP(N4,$I:$J,2,FALSE) -> 60182 | O5: =VLOOKUP(O4,$I:$J,2,FALSE) -> 60182 | P5: =VLOOKUP(P4,$I:$J,2,FALSE) -> 60182
I6: 火 | J6: 60171
I7: 光 | J7: 60172
I8: 光 | J8: 60173 | M8: 火 | N8: 火 | O8: 火 | P8: 火
I9: 光 | J9: 60174
I10: 地 | J10: 60175
I11: 风 | J11: 60176
I12: 地 | J12: 60177 | M12: 地 | N12: 地 | O12: 地 | P12: 地
I13: 地 | J13: 60178
I14: 地 | J14: 60179
I15: 暗 | J15: 60180
I16: 暗 | J16: 60181 | M16: 风 | N16: 风 | O16: 风 | P16: 风
I17: 水 | J17: 60182
I18: 水 | J18: 60183
I19: 火 | J19: 60184
I20: 水 | J20: 60185
I21: 火 | J21: 60186
I22: 火 | J22: 60187
I23: 风 | J23: 60188
I24: 水 | J24: 60189
I25: 暗 | J25: 60190
I26: 风 | J26: 60191
I27: 光 | J27: 60192
M53: 水 | N53: =_xlfn.TEXTJOIN("#",TRUE,J17,J18,J20,J24) -> 60182#60183#60185#60189 | R53: 60182#60183#60185#60189
M54: 火 | N54: =_xlfn.TEXTJOIN("#",TRUE,J6,J19,J21,J22) -> 60171#60184#60186#60187 | R54: 60171#60184#60186#60187
M55: 地 | N55: =_xlfn.TEXTJOIN("#",TRUE,J10,J12,J13,J14) -> 60175#60177#60178#60179 | R55: 60175#60177#60178#60179
M56: 风 | N56: =_xlfn.TEXTJOIN("#",TRUE,J5,J11,J23,J26) -> 60170#60176#60188#60191 | R56: 60170#60176#60188#60191

Sheet Sheet5
B1: 14#79500|3#30065 | C1: 511007 | D1: 511008 | E1: =C1&$B$3&D1&$B$4 -> 511007#1|511008#1 | I1: 511007511008#1 | N1: 511007 | O1: =VLOOKUP(N1,[2]RewardItemConfig!$B$15899:$C$16130,2,FALSE) -> 100031 | P1: 511008 | Q1: =VLOOKUP(P1,[2]RewardItemConfig!$B$15899:$C$16130,2,FALSE) -> 100036 | R1: =O1&$M$2&Q1&$M$3 -> 100031#1|100036#1
C2: 511007 | D2: 511008 | E2: =C2&$B$3&D2&$B$4 -> 511007#1|511008#1 | M2: #1| | N2: 511007 | O2: =VLOOKUP(N2,[2]RewardItemConfig!$B$15899:$C$16130,2,FALSE) -> 100031 | P2: 511008 | Q2: =VLOOKUP(P2,[2]RewardItemConfig!$B$15899:$C$16130,2,FALSE) -> 100036 | R2: =O2&$M$2&Q2&$M$3 -> 100031#1|100036#1
B3: #1| | C3: 512015 | D3: 512016 | E3: 512015#1|512016#1 | M3: #1 | N3: 512015 | O3: =VLOOKUP(N3,[2]RewardItemConfig!$B$15899:$C$16130,2,FALSE) -> 100032 | P3: 512016 | Q3: =VLOOKUP(P3,[2]RewardItemConfig!$B$15899:$C$16130,2,FALSE) -> 100037 | R3: 100032#1|100037#1
B4: #1 | C4: 513015 | D4: 513016 | E4: 513015#1|513016#1 | N4: 513015 | O4: =VLOOKUP(N4,[2]RewardItemConfig!$B$15899:$C$16130,2,FALSE) -> 100032 | P4: 513016 | Q4: =VLOOKUP(P4,[2]RewardItemConfig!$B$15899:$C$16130,2,FALSE) -> 100037 | R4: 100032#1|100037#1
C5: 514023 | D5: 514024 | E5: 514023#1|514024#1 | N5: 514023 | O5: =VLOOKUP(N5,[2]RewardItemConfig!$B$15899:$C$16130,2,FALSE) -> 100033 | P5: 514024 | Q5: =VLOOKUP(P5,[2]RewardItemConfig!$B$15899:$C$16130,2,FALSE) -> 100038 | R5: 100033#1|100038#1
C6: 515023 | D6: 515024 | E6: 515023#1|515024#1 | N6: 515023 | O6: =VLOOKUP(N6,[2]RewardItemConfig!$B$15899:$C$16130,2,FALSE) -> 100033 | P6: 515024 | Q6: =VLOOKUP(P6,[2]RewardItemConfig!$B$15899:$C$16130,2,FALSE) -> 100038 | R6: 100033#1|100038#1
C7: 516031 | D7: 516032 | E7: 516031#1|516032#1 | N7: 516031 | O7: =VLOOKUP(N7,[2]RewardItemConfig!$B$15899:$C$16130,2,FALSE) -> 100034 | P7: 516032 | Q7: =VLOOKUP(P7,[2]RewardItemConfig!$B$15899:$C$16130,2,FALSE) -> 100039 | R7: 100034#1|100039#1
C8: 517031 | D8: 517032 | E8: 517031#1|517032#1 | N8: 517031 | O8: =VLOOKUP(N8,[2]RewardItemConfig!$B$15899:$C$16130,2,FALSE) -> 100034 | P8: 517032 | Q8: =VLOOKUP(P8,[2]RewardItemConfig!$B$15899:$C$16130,2,FALSE) -> 100039 | R8: 100034#1|100039#1
C9: 518039 | D9: 518040 | E9: 518039#1|518040#1 | N9: 518039 | O9: =VLOOKUP(N9,[2]RewardItemConfig!$B$15899:$C$16130,2,FALSE) -> 100035 | P9: 518040 | Q9: =VLOOKUP(P9,[2]RewardItemConfig!$B$15899:$C$16130,2,FALSE) -> 100040 | R9: 100035#1|100040#1
C10: 519039 | D10: 519040 | E10: 519039#1|519040#1 | N10: 519039 | O10: =VLOOKUP(N10,[2]RewardItemConfig!$B$15899:$C$16130,2,FALSE) ->  | P10: 519040 | Q10: =VLOOKUP(P10,[2]RewardItemConfig!$B$15899:$C$16130,2,FALSE) -> 
C11: 511003 | D11: 511004 | E11: 511003#1|511004#1 | N11: 511003 | O11: =VLOOKUP(N11,[2]RewardItemConfig!$B$15899:$C$16130,2,FALSE) -> 100011 | P11: 511004 | Q11: =VLOOKUP(P11,[2]RewardItemConfig!$B$15899:$C$16130,2,FALSE) -> 100016 | R11: 100011#1|100016#1
C12: 511003 | D12: 511004 | E12: 511003#1|511004#1 | N12: 511003 | O12: =VLOOKUP(N12,[2]RewardItemConfig!$B$15899:$C$16130,2,FALSE) -> 100011 | P12: 511004 | Q12: =VLOOKUP(P12,[2]RewardItemConfig!$B$15899:$C$16130,2,FALSE) -> 100016 | R12: 100011#1|100016#1
C13: 512011 | D13: 512012 | E13: 512011#1|512012#1 | N13: 512011 | O13: =VLOOKUP(N13,[2]RewardItemConfig!$B$15899:$C$16130,2,FALSE) -> 100012 | P13: 512012 | Q13: =VLOOKUP(P13,[2]RewardItemConfig!$B$15899:$C$16130,2,FALSE) -> 100017 | R13: 100012#1|100017#1
C14: 513011 | D14: 513012 | E14: 513011#1|513012#1 | N14: 513011 | O14: =VLOOKUP(N14,[2]RewardItemConfig!$B$15899:$C$16130,2,FALSE) -> 100012 | P14: 513012 | Q14: =VLOOKUP(P14,[2]RewardItemConfig!$B$15899:$C$16130,2,FALSE) -> 100017 | R14: 100012#1|100017#1
C15: 514019 | D15: 514020 | E15: 514019#1|514020#1 | N15: 514019 | O15: =VLOOKUP(N15,[2]RewardItemConfig!$B$15899:$C$16130,2,FALSE) -> 100013 | P15: 514020 | Q15: =VLOOKUP(P15,[2]RewardItemConfig!$B$15899:$C$16130,2,FALSE) -> 100018 | R15: 100013#1|100018#1
C16: 515019 | D16: 515020 | E16: 515019#1|515020#1 | N16: 515019 | O16: =VLOOKUP(N16,[2]RewardItemConfig!$B$15899:$C$16130,2,FALSE) -> 100013 | P16: 515020 | Q16: =VLOOKUP(P16,[2]RewardItemConfig!$B$15899:$C$16130,2,FALSE) -> 100018 | R16: 100013#1|100018#1
C17: 516027 | D17: 516028 | E17: 516027#1|516028#1 | N17: 516027 | O17: =VLOOKUP(N17,[2]RewardItemConfig!$B$15899:$C$16130,2,FALSE) -> 100014 | P17: 516028 | Q17: =VLOOKUP(P17,[2]RewardItemConfig!$B$15899:$C$16130,2,FALSE) -> 100019 | R17: 100014#1|100019#1
C18: 517027 | D18: 517028 | E18: 517027#1|517028#1 | N18: 517027 | O18: =VLOOKUP(N18,[2]RewardItemConfig!$B$15899:$C$16130,2,FALSE) -> 100014 | P18: 517028 | Q18: =VLOOKUP(P18,[2]RewardItemConfig!$B$15899:$C$16130,2,FALSE) -> 100019 | R18: 100014#1|100019#1
C19: 518035 | D19: 518036 | E19: 518035#1|518036#1 | N19: 518035 | O19: =VLOOKUP(N19,[2]RewardItemConfig!$B$15899:$C$16130,2,FALSE) -> 100015 | P19: 518036 | Q19: =VLOOKUP(P19,[2]RewardItemConfig!$B$15899:$C$16130,2,FALSE) -> 100020 | R19: 100015#1|100020#1
C20: 519035 | D20: 519036 | E20: 519035#1|519036#1 | N20: 519035 | O20: =VLOOKUP(N20,[2]RewardItemConfig!$B$15899:$C$16130,2,FALSE) -> 100015 | P20: 519036 | Q20: =VLOOKUP(P20,[2]RewardItemConfig!$B$15899:$C$16130,2,FALSE) -> 
C21: 511001 | D21: 511002 | E21: 511001#1|511002#1 | N21: 511001 | O21: =VLOOKUP(N21,[2]RewardItemConfig!$B$15899:$C$16130,2,FALSE) -> 100001 | P21: 511002 | Q21: =VLOOKUP(P21,[2]RewardItemConfig!$B$15899:$C$16130,2,FALSE) -> 100006 | R21: 100001#1|100006#1
C22: 511001 | D22: 511002 | E22: 511001#1|511002#1 | N22: 511001 | O22: =VLOOKUP(N22,[2]RewardItemConfig!$B$15899:$C$16130,2,FALSE) -> 100001 | P22: 511002 | Q22: =VLOOKUP(P22,[2]RewardItemConfig!$B$15899:$C$16130,2,FALSE) -> 100006 | R22: 100001#1|100006#1
C23: 512009 | D23: 512010 | E23: 512009#1|512010#1 | N23: 512009 | O23: =VLOOKUP(N23,[2]RewardItemConfig!$B$15899:$C$16130,2,FALSE) -> 100002 | P23: 512010 | Q23: =VLOOKUP(P23,[2]RewardItemConfig!$B$15899:$C$16130,2,FALSE) -> 100007 | R23: 100002#1|100007#1
C24: 513009 | D24: 513010 | E24: 513009#1|513010#1 | N24: 513009 | O24: =VLOOKUP(N24,[2]RewardItemConfig!$B$15899:$C$16130,2,FALSE) -> 100002 | P24: 513010 | Q24: =VLOOKUP(P24,[2]RewardItemConfig!$B$15899:$C$16130,2,FALSE) -> 100007 | R24: 100002#1|100007#1
C25: 514017 | D25: 514018 | E25: 514017#1|514018#1 | N25: 514017 | O25: =VLOOKUP(N25,[2]RewardItemConfig!$B$15899:$C$16130,2,FALSE) -> 100003 | P25: 514018 | Q25: =VLOOKUP(P25,[2]RewardItemConfig!$B$15899:$C$16130,2,FALSE) -> 100008 | R25: 100003#1|100008#1
C26: 515017 | D26: 515018 | E26: 515017#1|515018#1 | N26: 515017 | O26: =VLOOKUP(N26,[2]RewardItemConfig!$B$15899:$C$16130,2,FALSE) -> 100003 | P26: 515018 | Q26: =VLOOKUP(P26,[2]RewardItemConfig!$B$15899:$C$16130,2,FALSE) -> 100008 | R26: 100003#1|100008#1
C27: 516025 | D27: 516026 | E27: 516025#1|516026#1 | N27: 516025 | O27: =VLOOKUP(N27,[2]RewardItemConfig!$B$15899:$C$16130,2,FALSE) -> 100004 | P27: 516026 | Q27: =VLOOKUP(P27,[2]RewardItemConfig!$B$15899:$C$16130,2,FALSE) -> 100009 | R27: 100004#1|100009#1
C28: 517025 | D28: 517026 | E28: 517025#1|517026#1 | N28: 517025 | O28: =VLOOKUP(N28,[2]RewardItemConfig!$B$15899:$C$16130,2,FALSE) -> 100004 | P28: 517026 | Q28: =VLOOKUP(P28,[2]RewardItemConfig!$B$15899:$C$16130,2,FALSE) -> 100009 | R28: 100004#1|100009#1
C29: 518033 | D29: 518034 | E29: 518033#1|518034#1 | N29: 518033 | O29: =VLOOKUP(N29,[2]RewardItemConfig!$B$15899:$C$16130,2,FALSE) -> 100005 | P29: 518034 | Q29: =VLOOKUP(P29,[2]RewardItemConfig!$B$15899:$C$16130,2,FALSE) -> 100010 | R29: 100005#1|100010#1
C30: 519033 | D30: 519034 | E30: 519033#1|519034#1 | N30: 519033 | O30: =VLOOKUP(N30,[2]RewardItemConfig!$B$15899:$C$16130,2,FALSE) -> 100005 | P30: 519034 | Q30: =VLOOKUP(P30,[2]RewardItemConfig!$B$15899:$C$16130,2,FALSE) -> 100010 | R30: 100005#1|100010#1
C31: 511005 | D31: 511006 | E31: 511005#1|511006#1 | N31: 511005 | O31: =VLOOKUP(N31,[2]RewardItemConfig!$B$15899:$C$16130,2,FALSE) -> 100021 | P31: 511006 | Q31: =VLOOKUP(P31,[2]RewardItemConfig!$B$15899:$C$16130,2,FALSE) -> 100026 | R31: 100021#1|100026#1
C32: 511005 | D32: 511006 | E32: 511005#1|511006#1 | N32: 511005 | O32: =VLOOKUP(N32,[2]RewardItemConfig!$B$15899:$C$16130,2,FALSE) -> 100021 | P32: 511006 | Q32: =VLOOKUP(P32,[2]RewardItemConfig!$B$15899:$C$16130,2,FALSE) -> 100026 | R32: 100021#1|100026#1
C33: 512013 | D33: 512014 | E33: 512013#1|512014#1 | N33: 512013 | O33: =VLOOKUP(N33,[2]RewardItemConfig!$B$15899:$C$16130,2,FALSE) -> 100022 | P33: 512014 | Q33: =VLOOKUP(P33,[2]RewardItemConfig!$B$15899:$C$16130,2,FALSE) -> 100027 | R33: 100022#1|100027#1
C34: 513013 | D34: 513014 | E34: 513013#1|513014#1 | N34: 513013 | O34: =VLOOKUP(N34,[2]RewardItemConfig!$B$15899:$C$16130,2,FALSE) -> 100022 | P34: 513014 | Q34: =VLOOKUP(P34,[2]RewardItemConfig!$B$15899:$C$16130,2,FALSE) -> 100027 | R34: 100022#1|100027#1
C35: 514021 | D35: 514022 | E35: 514021#1|514022#1 | N35: 514021 | O35: =VLOOKUP(N35,[2]RewardItemConfig!$B$15899:$C$16130,2,FALSE) -> 100023 | P35: 514022 | Q35: =VLOOKUP(P35,[2]RewardItemConfig!$B$15899:$C$16130,2,FALSE) -> 100028 | R35: 100023#1|100028#1
C36: 515021 | D36: 515022 | E36: 515021#1|515022#1 | N36: 515021 | O36: =VLOOKUP(N36,[2]RewardItemConfig!$B$15899:$C$16130,2,FALSE) -> 100023 | P36: 515022 | Q36: =VLOOKUP(P36,[2]RewardItemConfig!$B$15899:$C$16130,2,FALSE) -> 100028 | R36: 100023#1|100028#1
C37: 516029 | D37: 516030 | E37: 516029#1|516030#1 | N37: 516029 | O37: =VLOOKUP(N37,[2]RewardItemConfig!$B$15899:$C$16130,2,FALSE) -> 100024 | P37: 516030 | Q37: =VLOOKUP(P37,[2]RewardItemConfig!$B$15899:$C$16130,2,FALSE) -> 100029 | R37: 100024#1|100029#1
C38: 517029 | D38: 517030 | E38: 517029#1|517030#1 | N38: 517029 | O38: =VLOOKUP(N38,[2]RewardItemConfig!$B$15899:$C$16130,2,FALSE) -> 100024 | P38: 517030 | Q38: =VLOOKUP(P38,[2]RewardItemConfig!$B$15899:$C$16130,2,FALSE) -> 100029 | R38: 100024#1|100029#1
C39: 518037 | D39: 518038 | E39: 518037#1|518038#1 | N39: 518037 | O39: =VLOOKUP(N39,[2]RewardItemConfig!$B$15899:$C$16130,2,FALSE) -> 100025 | P39: 518038 | Q39: =VLOOKUP(P39,[2]RewardItemConfig!$B$15899:$C$16130,2,FALSE) -> 100030 | R39: 100025#1|100030#1
C40: 519037 | D40: 519038 | E40: 519037#1|519038#1 | N40: 519037 | O40: =VLOOKUP(N40,[2]RewardItemConfig!$B$15899:$C$16130,2,FALSE) ->  | P40: 519038 | Q40: =VLOOKUP(P40,[2]RewardItemConfig!$B$15899:$C$16130,2,FALSE) -> 
